{"text_format":"3","workbook":"xlsx","n_sheets":1,"sheets":["Sheet1"],"not_rendered":{"comments":1},"read":"whole","date_system":"1900"}

{"sheet":"Sheet1","index":0,"n_rows":793,"n_cols":8,"rows_kept":793,"merged":[[136,0,137,0],[136,1,137,1],[136,2,137,2],[136,3,137,3],[136,4,137,4],[136,5,137,5],[136,6,137,6],[136,7,137,7],[142,0,143,0],[142,1,143,1],[142,2,143,2],[142,3,143,3],[142,4,143,4],[142,5,143,5],[142,6,143,6],[142,7,143,7],[155,0,156,0],[155,1,156,1],[155,2,156,2],[155,3,156,3],[155,4,156,4],[155,5,156,5],[155,6,156,6],[155,7,156,7],[209,0,211,0],[209,1,211,1],[209,2,211,2],[209,3,211,3],[209,4,211,4],[209,5,211,5],[209,6,211,6],[209,7,211,7],[239,0,240,0],[239,1,240,1],[239,2,240,2],[239,3,240,3],[239,4,240,4],[239,5,240,5],[239,6,240,6],[239,7,240,7],[241,0,243,0],[241,1,243,1],[241,2,243,2],[241,3,243,3],[241,4,243,4],[241,5,243,5],[241,6,243,6],[241,7,243,7],[245,0,246,0],[245,1,246,1],[245,2,246,2],[245,3,246,3],[245,4,246,4],[245,5,246,5],[245,6,246,6],[245,7,246,7],[247,0,248,0],[247,1,248,1],[247,2,248,2],[247,3,248,3],[247,4,248,4],[247,5,248,5],[247,6,248,6],[247,7,248,7],[299,0,302,0],[304,0,307,0],[308,0,311,0],[339,1,339,2],[340,0,342,0],[345,0,347,0],[354,0,358,0],[504,0,505,0],[504,1,506,1],[504,2,506,2],[504,3,506,3],[504,4,506,4],[504,5,506,5],[504,6,506,6],[504,7,506,7],[507,0,510,0],[507,1,509,1],[507,2,509,2],[507,3,509,3],[507,4,509,4],[507,5,509,5],[507,6,509,6],[507,7,509,7],[507,8,509,8],[512,0,513,0],[512,1,513,1],[512,2,513,2],[512,3,513,3],[512,4,513,4],[512,5,513,5],[512,6,513,6],[512,7,513,7],[512,8,513,8],[517,0,518,0],[517,1,518,1],[517,2,518,2],[517,3,518,3],[517,4,518,4],[517,5,518,5],[517,6,518,6],[522,0,531,0],[522,1,523,1],[522,2,523,2],[522,3,523,3],[522,4,523,4],[522,5,523,5],[522,6,523,6],[522,7,523,7],[522,8,523,8],[532,0,533,0],[532,1,533,1],[532,2,533,2],[532,3,533,3],[532,4,533,4],[532,5,533,5],[532,6,533,6],[532,7,533,7],[532,8,533,8],[535,0,536,0],[535,1,536,1],[535,2,536,2],[535,3,536,3],[535,4,536,4],[535,5,536,5],[535,6,536,6],[535,7,536,7],[571,0,579,0],[582,0,584,0],[590,0,591,0],[590,1,591,1],[590,2,591,2],[590,3,591,3],[590,4,591,4],[590,5,591,5],[590,6,591,6],[590,7,591,7],[592,0,593,0],[592,1,593,1],[592,2,593,2],[592,3,593,3],[592,4,593,4],[592,5,593,5],[592,6,593,6],[592,7,593,7],[603,0,604,0],[603,1,604,1],[603,2,604,2],[603,3,604,3],[603,4,604,4],[603,5,604,5],[603,6,604,6],[603,7,604,7],[608,0,610,0],[612,0,613,0],[614,0,615,0],[616,0,619,0],[620,0,621,0],[632,0,633,0],[632,1,633,1],[632,2,633,2],[632,3,633,3],[632,4,633,4],[632,5,633,5],[632,6,633,6],[632,7,633,7],[656,0,657,0],[656,2,657,7],[681,0,687,0],[681,1,687,1],[681,2,687,2],[681,3,687,3],[681,4,687,4],[681,5,687,5],[681,6,687,6],[681,7,687,7],[689,0,691,0],[697,0,698,0],[697,1,698,1],[697,2,698,2],[697,3,698,3],[697,4,698,4],[697,5,698,5],[697,6,698,6],[697,7,698,7],[700,0,701,0],[700,1,701,1],[700,2,701,2],[700,3,701,3],[700,4,701,4],[700,5,701,5],[700,6,701,6],[700,7,701,7],[768,1,768,3],[769,1,769,3],[770,1,770,3],[771,1,771,3],[773,1,773,3],[774,1,774,3],[775,1,775,3],[776,1,776,3],[777,1,777,3],[778,1,778,3],[779,1,779,3],[780,1,780,3],[781,1,781,3],[782,1,782,3],[783,1,783,3],[784,1,784,3],[785,1,785,3],[786,1,786,3],[787,1,787,3],[788,1,788,3],[789,1,789,3],[790,1,790,3],[791,1,791,3],[792,0,792,3]]}
["Предмер и предрачун грађевинско-занатских радова на реконструкцији и адаптацији"]
["Назив објекта: Музеј кошарке, По+П+1, к.п.бр.454/2 К.О. Чачак"]
["Инвеститор: Град Чачак"]
["Израђивач пројекта: ''Primavera studio'' Чачак"]
["Одговорни пројектант: Душан Тојага, маст.инж.арх."]
["Број техничке документације: ИДП 01/2023"]
["Датум израде:фебруар 2023."]
["Све цене су изражене у динарима Републике Србије - РСД."]
["Ред. бр.","Опис позиције","јед. мере","колич.","рач.опер.","јед.цена","рач.опер.","укупно  "]
["1. ПРИПРЕМНО – ЗАВРШНИ РАДОВИ",{"$nulls":6},"       "]
[1,"Упознавање са пројектно-техничком документацијом и свим предвиђеним грађевинским радовима. \nОбрачун паушално.\n","паушално",1,"x",null,"=",{"$f":"D11*F11","v":{"v":0,"d":"0.00"}}]
[2,"Израда и постављање табли обавештења да се изводе грађевински радови, са основним подацима о објекту, извођачу, инвеститору и пројектанту. Облик, изглед, начин постављања табле према прописима за ову позицију.                                     Обрачун по комаду табле.","комада",1,"x",null,"=",{"$f":"D12*F12","v":{"v":0,"d":"0.00"}}]
[3,"Израда и постављање табли и других ознака са упозорењем, а по техничким прописима. Табла је димензија 80х60цм.\nОбрачун по комаду табле.\n","комада",1,"x",null,"=",{"$f":"D13*F13","v":{"v":0,"d":"0.00"}}]
[4,"Накнада за увођење  привременог градилишног прикључка за електричну енергију. \nОбрачун паушално.\n","паушално",1,"x",null,"=",{"v":0,"d":"0.00"}]
[5,"Накнада за увођење градилишне воде.                                                   Обрачун паушално.","паушално",1,"x",null,"=",{"v":0,"d":"0.00"}]
[6,"Накнада за заузеће тротоара. Обрачун по данима заузетости.","дан",180,"x",null,"=",{"v":0,"d":"0.00"}]
[7,"Монтажа и демонтажа приручне бараке за смештај алата, материјала и радника. Бараку израдити од монтажних елемената или дасака дебљине 1\" са дрвеном конструкцијом. Бараку покрити даскама и тер папиром или салонитом.            Обрачун паушално.","паушално",1,"x",null,"=",{"v":0,"d":"0.00"}]
[8,"Израда прилазних рампи-трепни, за допрему материјала или одвоз шута. Трепну извести од фосни и цеви за фасадну скелу или од дрвене грађе. Трепна је ширине 1,0 м. \nОбрачун по м’ дужине рампе.\n"," м’",12,"x",null,"=",{"$f":"D18*F18","v":{"v":0,"d":"0.00"}}]
[9,"Израда радних надстрешница за рад, обраду грађе и друго. Радне надстрешнице израдити од фосни и цеви за фасадну скелу или дрвене грађе. Преко надстрешнице од фосни поставити слој тер папира и причврстити летвама и ексерима.   Обрачун по м² надстрешнице.","м²",30,"x",null,"=",{"$f":"D19*F19","v":{"v":0,"d":"0.00"}}]
[10,"Монтажа и демонтажа металне цевасте фасадне скеле, за радове у свему по важећим прописима и мерама ХТЗ-а. Скела мора бити статички стабилна, анкерована за објекат и прописно уземљена. На сваких 2,00 м висине поставити радне платформе. Са спољне стране платформи поставити фосне на \"кант\". Целокупну површину скеле покрити јутаним или ПВЦ засторима. Скелу прима и преко дневника даје дозволу за употребу статичар. Користи се за све време трајања радова. \nОбрачун по комплету монтиране скеле.\n","комплет",1,"X",null,"=",{"$f":"D20*F20","v":{"v":0,"d":"0.00"}}]
[11,"Монтажа и демонтажа мобилне скеле, за унутрашње радове, на зидовима и плафонима објекта. Скела мора бити статички стабилна. Скелу прима и преко дневника даје дозволу за употребу статичар. Користи се за све време трајања радова и плаћа само једанпут. \nОбрачун паушално.\n","паушално",1,"X",null,"=",{"v":0,"d":"0.00"}]
[12,"Укидање довода гаса јавног предузећа ''Србија Гас'' у објекат са пажљивом демонтажом и уклањањем инсталација и опреме према упутству јавног предузећа и упутству инвеститора.                     Обрачун паушално.","паушално",1,"x",null,"=",{"v":0,"d":"0.00"}]
[13,"Грубо чишћење - у току радова извршити више пута грубо чишћење градилишта од грађевинског шута са преносом шута на депонију удаљености 10км према упутству инвеститора. \nОбрачун по м² нето површине.\n","м²",539.22,"x",null,"=",{"$f":"D23*F23","v":{"v":0,"d":"0.00"}}]
[14,"Прикупљање шута и одвоз шута. Прикупити шут, вишак земље и други отпадни материјал, утоварити у камион и одвести на  депонију удаљености 10км према упутству инвеститора. \nОбрачун паушално.\n","паушално",1,"x",null,"=",{"$f":"D24*F24","v":{"v":0,"d":"0.00"}}]
[15,"Чишћење и прање градилишта, по завршетку свих радова. Извршити детаљно чишћење целог градилишта, прање свих стаклених површина, чишћење и фино прање свих унутрашњих простора и спољних површина и припрема за предају инвеститору. \nОбрачун паушално.\n","паушално",1,"x",null,"=",{"$f":"D25*F25","v":{"v":0,"d":"0.00"}}]
[16,"Демонтажа, утовар  и одвожење намештаја и инвертара. У цену је укључен транспорт и депоновање намештаја до 10км удаљености према инструкцијама инвеститора.\nОбрачун паушално.\n","паушално",1,"X",null,"=",{"$f":"D26*F26","v":{"v":0,"d":"0.00"}}]
[null,"УКУПНО ПРИПРЕМНО-ЗАВРШНИ РАДОВИ:",{"$nulls":5},{"$f":"SUM(H11:H26)","v":{"v":0,"d":"0.00"}}]
[]
["2. РАДОВИ НА РУШЕЊУ И ДЕМОНТАЖИ"]
[1,"Рушење бетонских пешачких стаза око објекта са скидањем свих слојева до земље.                   Обрачун по м² стаза.","м²",91.78,"x",null,"=",{"$f":"D30*F30","v":{"v":0,"d":"0.00"}}]
[2,"Демонтажа дрвених двокрилних улазних врата са стаклом заједно са штоком димензија 145х246цм, са претходном израдом цртежа и техничке документације постојеће столарије. Демонтирана врата пажљиво склопити, утоварити на камион, одвести и депоновати на место до 10км удаљености према инструкцијама инвеститора. \nОбрачун по комаду врата.\n","комада",1,"X",null,"=",{"v":0,"d":"0.00"}]
[3,"Демонтажа дрвених прозора димензија 97х170цм, са претходном израдом цртежа и техничке документације постојеће столарије. Демонтиране прозоре пажљиво склопити, утоварити на камион, одвести и депоновати на место до 10км удаљености по упутству инвеститора.                            Обрачун по комаду прозора. ","комада",4,"X",null,"=",{"v":0,"d":"0.00"}]
[4,"Демонтажа дрвених прозора димензија 121х220цм, са претходном израдом цртежа и техничке документације постојеће столарије. На прозору је са унутрашње стране заштитна метална мрежа због фискултурне сале. Демонтиране прозоре пажљиво склопити, утоварити на камион, одвести и депоновати на место до 10км удаљености по упутству инвеститора. \nОбрачун по комаду прозора.\n","комада",8,"X",null,"=",{"v":0,"d":"0.00"}]
[5,"Демонтажа дрвених прозора димензија 111х62цм, са претходном израдом цртежа и техничке документације постојеће столарије. Демонтиране прозоре пажљиво склопити, утоварити на камион, одвести и депоновати на место до 10км удаљености по упутству инвеститора. \nОбрачун по комаду прозора.\n","комада",1,"X",null,"=",{"v":0,"d":"0.00"}]
[6,"Демонтажа дрвених прозора димензија 66х123цм, са претходном израдом цртежа и техничке документације постојеће столарије. На прозору су са спољашње стране заштитне вертикалне металне решетке. Прозор демонтирати заједно са спољашњим металним решеткама. Демонтиране прозоре пажљиво склопити, утоварити на камион, одвести и депоновати на место до 10км удаљености  по упутству инвеститора. \nОбрачун по комаду прозора.\n","комада",1,"X",null,"=",{"v":0,"d":"0.00"}]
[7,"Демонтажа дрвених прозора димензија 66х135цм, са претходном израдом цртежа и техничке документације постојеће столарије. На прозору су са спољашње стране заштитне вертикалне металне решетке. Прозор демонтирати заједно са спољашњим металним решеткама. Демонтиране прозоре пажљиво склопити, утоварити на камион, одвести и депоновати на место до 10км удаљености  по упутству инвеститора. \nОбрачун по комаду прозора.\n","комада",4,"X",null,"=",{"v":0,"d":"0.00"}]
[8,"Демонтажа дрвених прозора димензија 106х165цм, са претходном израдом цртежа и техничке документације постојеће столарије. На прозору су са спољашње стране заштитне вертикалне металне решетке. Прозор демонтирати заједно са спољашњим металним решеткама. Демонтиране прозоре пажљиво склопити, утоварити на камион, одвести и депоновати на место до 10км  удаљености по упутству инвеститора. \nОбрачун по комаду прозора.\n","комада",1,"X",null,"=",{"v":0,"d":"0.00"}]
[9,"Демонтажа дрвених двокрилних улазних врата димензија 134х273цм заједно са штоком, са претходном израдом цртежа и техничке документације постојеће столарије. Демонтирана врата пажљиво склопити, утоварити на камион, одвести и депоновати на место до 10км  удаљености по упутству инвеститора. \nОбрачун по комаду врата.\n","комада",1,"X",null,"=",{"v":0,"d":"0.00"}]
[10,"Демонтажа дрвених прозора димензија 104х134цм, са претходном израдом цртежа и техничке документације постојеће столарије. На прозору су са спољашње стране заштитне вертикалне металне решетке. Прозор демонтирати заједно са спољашњим металним решеткама. Демонтиране прозоре пажљиво склопити, утоварити на камион, одвести и депоновати на место до 10км удаљености  по упутству инвеститора. \nОбрачун по комаду прозора.\n","комада",1,"X",null,"=",{"v":0,"d":"0.00"}]
[11,"Демонтажа дрвених прозора димензија 127х220цм, са претходном израдом цртежа и техничке документације постојеће столарије. На прозору је са унутрашње стране заштитна метална мрежа. Демонтиране прозоре пажљиво склопити, утоварити на камион, одвести и депоновати на место до 10км удаљености по упутству инвеститора. \nОбрачун по комаду прозора.\n","комада",4,"X",null,"=",{"v":0,"d":"0.00"}]
[12,"Демонтажа дрвених прозора димензија 97х163цм, са претходном израдом цртежа и техничке документације постојеће столарије. Демонтиране прозоре пажљиво склопити, утоварити на камион, одвести и депоновати на место до 10км удаљености  по упутству инвеститора.                             Обрачун по комаду прозора.","комада",12,"X",null,"=",{"v":0,"d":"0.00"}]
[13,"Демонтажа дрвених прозора димензија 105х163цм, са претходном израдом цртежа и техничке документације постојеће столарије.   Демонтиране прозоре пажљиво склопити, утоварити на камион, одвести и депоновати на место до 10км удаљености по упутству инвеститора. \nОбрачун по комаду прозора.\n","комада",1,"X",null,"=",{"v":0,"d":"0.00"}]
[14,"Демонтажа дрвених прозора димензија 88х134цм, са претходном израдом цртежа и техничке документације постојеће столарије. Демонтиране прозоре пажљиво склопити, утоварити на камион, одвести и депоновати на место до 10км удаљености  по упутству инвеститора. \nОбрачун по комаду прозора.\n","комада",4,"X",null,"=",{"v":0,"d":"0.00"}]
[15,"Демонтажа металних једнокрилних улазних врата подрума, димензија 86х180цм заједно са штоком, са претходном израдом цртежа и техничке документације постојеће столарије. \nДемонтирана врата пажљиво склопити, утоварити на камион одвести и депоновати на место до 10км удаљености  по упутству инвеститора. \nОбрачун по комаду врата.\n","комада",1,"X",null,"=",{"v":0,"d":"0.00"}]
[16,"Демонтажа унутрашње металне  заштитне мреже  прозора дим. 121/220цм са прозора на фискултурној сали у приземљу  и депоновање на место према упутству инвеститора до 10км удаљености. \nОбрачун по комаду демонтиране мреже.\n","комада",8,"X",null,"=",{"v":0,"d":"0.00"}]
[17,"Демонтажа унутрашње металне  заштитне мреже  прозора дим. 127/220цм са прозора на фискултурној сали у приземљу и депоновање на место према упутству инвеститора до 10км удаљености. \nОбрачун по комаду мреже.\n","комада",4,"X",null,"=",{"v":0,"d":"0.00"}]
[18,"Демонтажа унутрашњих металних  заштитних решетки  прозора дим. 97/163цм са прозора на фискултурној сали (на висини спрата) и депоновање на место према упутству инвеститора до 10км удаљености. \nОбрачун по комаду мреже.\n\n","комада",6,"X",null,"=",{"v":0,"d":"0.00"}]
[19,"Демонтажа унутрашњих дрвених врата заједно са штоком и праговима. Демонтирана врата пажљиво склопити, утоварити на камион и одвести на депонију до 10км удаљености према упутству инвеститора. \nОбрачун по комаду врата.\n","комада",12,"X",null,"=",{"v":0,"d":"0.00"}]
[20,"Демонтажа и пажљиво скидање фасадне троугаоне дрвене декорације са летвама (дим. 269x186цм и 328x156цм на југозападној и југоисточној фасади, дим. 274x186цм, 282x186цм и 328 x156цм на североисточној фасади), са претходном израдом цртежа и техничке документације постојеће декорације. Позиција обухвата  одвожење и депоновање на место према упутству инвеститора до 10км удаљености.\nОбрачун по комаду фасадне декорације.\n","комада",9,"X",null,"=",{"v":0,"d":"0.00"}]
[21,"Демонтажа парапетне дрвене облоге зидова у фискултурној сали до висине 1.80м, утовар и одвожење на депонију према упутству инвеститора до 10км удаљености. \nОбрачун по м² дрвене облоге.\n","м²",139.27,"X",null,"=",{"v":0,"d":"0.00"}]
[22,"Демонтажа дрвене облоге плафона (од фарбаних дрвених летви) у фискултурној сали и одвожење на место према упутству инвеститора до 10км удаљености. \nОбрачун по м² дрвене облоге.\n","м²",379.71,"X",null,"=",{"v":0,"d":"0.00"}]
[23,"Демонтажа дрвене облоге плафона (ламперије) у приземљу (у канцеларији, помоћној просторији, свлачионици, тоалетима са тушем  и предпростором) и на спрату (у свлачионицама, помоћној просторији, собама и тоалету) и одвожење на депонију према упутству инвеститора до 10км удаљености. \nОбрачун по м² ламперије.\n","м²",180.36,"X",null,"=",{"v":0,"d":"0.00"}]
[24,"Демонтажа ограда унутрашњих степеништа од дрвета и метала. Ограду пажљиво демонтирати, делове ограде очистити за поновну употребу, или утоварити на камион и одвести са шутом на депонију удаљену до 15 км.                   Обрачун по м’ ограде.\n","м’",6.55,"X",null,"=",{"v":0,"d":"0.00"}]
[25,"Скидање пода од керамичких плочица у приземљу и на спрату, скинути све слојеве до бетонске/дрвене конструкције. Позиција обухвата одвожење на депонију према упутству инвеститора до 10км удаљености. \nОбрачун по м² скинутих плочица.\n","м²",62.31,"X",null,"=",{"v":0,"d":"0.00"}]
[26,"Скидање пода од терацо плочица у свлачионици у приземљу. Обити плочице и скинути подлогу до бетонске/дрвене конструкције. Одвести шут на депонију према упутству инвеститора до 10км удаљености.\nОбрачун по м² скинутих плочица.\n","м²",20.36,"X",null,"=",{"$f":"D55*F55","v":{"v":0,"d":"0.00"}}]
[27,"Скидање паркета у фискултурној сали. Скидање пода од паркета заједно са лајснама. Паркет и лајсне пажљиво демонтирати, очистити, сложити по врсти, упаковати, и заједно са шутом утоварити у камион и одвести на место које одреди инвеститор до 10 км удаљености. \nОбрачун по м² пода.\n","м²",265.17,"X",null,"=",{"$f":"D56*F56","v":{"v":0,"d":"0.00"}}]
[28,"Скидање ламината у  канцеларији приземља и на спрату у свлачионицама и помоћним просторијама. Пажљива демонтажа ламината заједно са лајснама. Ламинат и лајсне пажљиво демонтирати, очистити, сложити по врсти, упаковати, утоварити у камион и са шутом одвести на место које одреди инвеститор до 10 км удаљености. \nОбрачун по м² пода.\n","м²",101.44,"X",null,"=",{"$f":"D57*F57","v":{"v":0,"d":"0.00"}}]
[29,"Демонтажа пода од камених плоча/опеке у земљаној подлози у подруму. Плоче демонтирати, очистити и сложити на место према упутству инвеститора. Шут изнети, утоварити у камион и одвести на место које одреди инвеститор до 10 км удаљености.\nОбрачун по м² пода .\n","м²",20.27,"X",null,"=",{"v":0,"d":"0.00"}]
[30,"Рушење цементне кошуљице у подруму (у претпростору и једној техничкој просторији). Цементну кошуљицу скинути до слоја земље. Шут изнети, утоварити у камион и одвести на депонију до 10км удаљености према упутству инвеститора.\nОбрачун по м² пода.\n","м²",27.24,"X",null,"=",{"$f":"D59*F59","v":{"v":0,"d":"0.00"}}]
[31,"Рушење цементне кошуљице у приземљу. Цементну кошуљицу скинути до бетонске конструкције. Шут изнети, утоварити у камион и одвести на депонију до 10км удаљености према упутству инвеститора.\nОбрачун по м² пода.\n","м²",352.09,"X",null,"=",{"v":0,"d":"0.00"}]
[32,"Рушење бетонске подне плоче у фискултурној сали са свим слојевима до земље, утовар и одвожење шута на место према упутству инвеститора до 10км удаљености.\nОбрачун по м² подне плоче.\n","м²",265.17,"X",null,"=",{"v":0,"d":"0.00"}]
[33,"Обијање малтера са свих унутрашњих зидова и плафона. Обити малтер и кламфама очистити спојнице до дубине 2 цм. Површине опека очистити челичним четкама и опрати зидове водом. Шут прикупити, изнети, утоварити на камион и одвести депонију до 10км удаљености према упутству инвеститора. \nОбрачун по м² обијене површине, отвори се одбијају.\n","м²",700.72,"X",null,"=",{"v":0,"d":"0.00"}]
[34,"Обијање зидних керамичких плочица на лепку, са свим слојевима до опеке. Позиција обухвата обијање, утовар и одвожење на место према упутству инвеститора до 10км удаљености. \nОбрачун по м² зидних плочица.\n","м²",66.43,"X",null,"=",{"v":0,"d":"0.00"}]
[35,"Обијање малтера са свих фасадних зидова, пажљиво и до опеке са чишћењем спојница уз скидање фасадне орнаменталне пластике уз израду полиестерских калупа ради замене новом по узорку постојеће. Обити малтер и кламфама очистити спојнице до дубине 2 цм. Површине опека очистити челичним четкама и опрати зидове водом. Шут прикупити, изнети, утоварити на камион и одвести депонију до 10км удаљености према упутству инвеститора.  \nОбрачун по м² обијене површине.\n","м²",584.12,"X",null,"=",{"v":0,"d":"0.00"}]
[36,"Обијање малтера са фасадне сокле до опеке са чишћењем спојница. Обити малтер и кламфама очистити спојнице до дубине 2 цм. Површине опека очистити челичним четкама и опрати зидове водом. Шут прикупити, изнети, утоварити на камион и одвести депонију до 10км удаљености према упутству инвеститора.\nОбрачун по м² обијене површине.\n","м²",132.08,"X",null,"=",{"v":0,"d":"0.00"}]
[37,"Рушење дрвених међуспратних конструкција између приземља и спрата на бочним секторима од сале (сектор улаза и пратећих просторија). Дрвене елементе пажљиво демонтирати, скинути, очистити, скинуту грађу  обрадити и искористити за дрвене рукохвате и обраду степеништа - трибина Позиција обухвата рушење, утовар и одвожење на место према упутству инвеститора до 10км удаљености.\nОбрачун по м² дрвене међуспратне конструкције.\n","м²",108.68,"X",null,"=",{"v":0,"d":"0.00"}]
[38,"Уклањање минералне вуне  са најлоном преко таванске конструкције. Позиција обухвата демонтажу, утовар и одвожење на депонију према упутству инвеститора до 10км удаљености.\nОбрачун по м² уклоњене вуне.\n","м²",108.68,"X",null,"=",{"$f":"D67*F67","v":{"v":0,"d":"0.00"}}]
[39,"Рушење дрвенe таванске конструкције. Дрвене елементе пажљиво демонтирати, скинути, очистити, скинуту грађу  обрадити и искористити за дрвене рукохвате и обраду степеништа - трибина.  Позиција обухвата демонтажу, утовар и одвожење на место према упутству инвеститора до 10км удаљености.\nОбрачун по м² хоризонталне површине.\n","м²",386.17,"X",null,"=",{"$f":"D68*F68","v":{"v":0,"d":"0.00"}}]
[40,"Демонтажа међуспратне конструкције “Пруског свода” са челичним носачима изнад подрума и одвожење на депонију према упутству инвеститора до 10км удаљености.                              Обрачун по м² демонтиране површине.","м²",54.64,"X",null,"=",{"$f":"D69*F69","v":{"v":0,"d":"0.00"}}]
[41,"Демонтажа и уклањање дрвеног балкона на спрату, дим. у основи 8.5м x 1.21м, са конзолном дрвеном конструкцијом, дрвеном оградом и бродским подом. Позиција обухвата демонтажу, утовар и одвожење на депонију према упутству инвеститора до 10км удаљености.\nОбрачун пaушално.\n","паушално",1,"X",null,"=",{"v":0,"d":"0.00"}]
[42,"Рушење унутрашњих зидова од опеке дебљине 10 цм на спрату. Рушење зидова извести пажљиво, заједно са серклажима, надвратницима и свим облогама на зиду. Опеку очистити и сложити на градилишну депонију. Шут прикупити, изнети, утоварити на камион и одвести на депонију до 10км удаљености. У цену улази и помоћна скела. \nОбрачун по м³ зида, отвори се одбијају.\n","м³",1.79,"X",null,"=",{"$f":"D71*F71","v":{"v":0,"d":"0.00"}}]
[43,"Рушење унутрашњих зидова од опеке дебљине 12 цм у приземљу. Рушење зидова извести пажљиво, заједно са серклажима, надвратницима и свим облогама на зиду. Опеку очистити и сложити на градилишну депонију. Шут прикупити, изнети, утоварити на камион и одвести на депонију до 10км удаљености. У цену улази и помоћна скела.\nОбрачун по м³ зида, отвори се одбијају.\n","м³",1.12,"X",null,"=",{"v":0,"d":"0.00"}]
[44,"Рушење унутрашњих зидова од опеке дебљине 21 цм у приземљу. Рушење зидова извести пажљиво, заједно са серклажима, надвратницима и свим облогама на зиду. Опеку очистити и сложити на градилишну депонију. Шут прикупити, изнети, утоварити на камион и одвести на депонију до 10км удаљености. У цену улази и помоћна скела.\nОбрачун по м³ зида, отвори се одбијају.\n","м³",2.3,"X",null,"=",{"v":0,"d":"0.00"}]
[45,"Рушење унутрашњих зидова од опеке дебљине 35 цм у приземљу. Рушење зидова извести пажљиво, заједно са серклажима, надвратницима и свим облогама на зиду. Опеку очистити и сложити на градилишну депонију. Шут прикупити, изнети, утоварити на камион и одвести на депонију до 10км удаљености. У цену улази и помоћна скела.\nОбрачун по м³ зида, отвори се одбијају.\n","м³",23.73,"X",null,"=",{"v":0,"d":"0.00"}]
[46,"Рушење унутрашњих зидова од опеке дебљине 35 цм на спрату. Рушење зидова извести пажљиво, заједно са серклажима, надвратницима и свим облогама на зиду. Опеку очистити и сложити на градилишну депонију. Шут прикупити, изнети, утоварити на камион и одвести на депонију до 10км удаљености. У цену улази и помоћна скела. \nОбрачун по м³ зида, отвори се одбијају.\n","м³",20.31,"X",null,"=",{"v":0,"d":"0.00"}]
[47,"Рушење унутрашњих зидова од опеке дебљине 45цм, у подруму. Рушење зидова извести пажљиво, заједно са серклажима, надвратницима и свим облогама на зиду. Опеку очистити и сложити на градилишну депонију. Шут прикупити, изнети, утоварити на камион и одвести на депонију до 10км удаљености. \nУ цену улази и помоћна скела. \nОбрачун по м³ зида, отвори се одбијају.\n","м³",12.45,"X",null,"=",{"v":0,"d":"0.00"}]
[48,"Демонтажа преградног зида од стакла са челичним рамом, дим. 2.25м x 2.60м, дебине 4мм. Зид се налази између  унутрашњег  степеништа и оставе у приземљу. Позиција обухвата демонтажу, утовар и одвожење на депонију до 10км удаљености према упутству инвеститора.\nОбрачун комплетно.\n","комплет",1,"X",null,"=",{"v":0,"d":"0.00"}]
[49,"Рушење димњака од опеке у продужном малтеру  –  изнад крова. Димњак пажљиво порушити. Шут прикупити, изнети, утоварити на камион и одвести на депонију до 10км удаљености према упутству инвеститора. \nОбрачун по м³ зида димњака.\n","м³",5.18,"X",null,"=",{"v":0,"d":"0.00"}]
[50,"Рушење дела фасадног зида од опеке и формирање нише за уградњу ''слепих'' врата, на основу некадашњег изгледа према архивским подацима о објекту, уз одвожење шута на депонију према упутству инвеститора до 10км удаљености.\nОбрачун по м³ порушеног зида од опеке.\n","м³",0.93,"X",null,"=",{"v":0,"d":"0.00"}]
[51,"Демонтажа и уклањање дрвених унутрашњих степеништа на металној конструкцији. Позиција обухвата демонтажу, утовар и  одвожење на депонију према упутству инвеститора до 10км удаљености. \nОбрачун по комплету.\n","комплет",2,"X",null,"=",{"v":0,"d":"0.00"}]
[52,"Скидање кровног покривача од фалцованог црепа Тоза Марковић Кикинда, модел 272  и слемењака. Позиција обухвата скидање црепа, утовар и  одвожење на место према упутству инвеститора до 10км удаљености. \nОбрачун по м² косе површине.\n","м²",648.4,"X",null,"=",{"v":0,"d":"0.00"}]
[53,"Скидање кровних летви и дашчане подлоге крова. Позиција обухвата скидање летви и дашчане подлоге, утовар и  одвожење на место према упутству инвеститора до 10км удаљености. \nОбрачун по м² косе површине.\n","м²",648.4,"X",null,"=",{"v":0,"d":"0.00"}]
[54,"Скидање дрвене кровне конструкције – рогова 12/16цм. Рогове пажљиво демонтирати, скинути, очистити,  скинуту грађу  обрадити и искористити за дрвене рукохвате и обраду степеништа - трибина. Шут прикупити, изнети, утоварити у камион и одвести на депонију коју одреди инвеститор удаљену до 10 км. \nОбрачун по м² хоризонталне површине.\n","м²",531.11,"X",null,"=",{"v":0,"d":"0.00"}]
[55,"Скидање носећих елемената дрвене кровне конструкције. Грађу очистити, обрадити и искористити за дрвене рукохвате и обраду степеништа/трибина. Шут прикупити, изнети, утоварити у камион и одвести на депонију коју одреди инвеститор удаљену до 10 км. \nОбрачун по комплету. \n","комплет",11,"X",null,"=",{"v":0,"d":"0.00"}]
[56,"Скидање постојеће дрвене облоге стрехе. Скинут материјал и шут прикупити, изнети, утоварити у камион и одвести на депонију коју одреди инвеститор удаљену до 10 км. \nОбрачун по м² облоге. \n","м²",82.3,"X",null,"=",{"v":0,"d":"0.00"}]
[57,"Штемовање зидова од опеке ради уградње армиранобетонских таваница дебљине 20.0 цм и 30.0 цм. Дубина штемовања је 20.0 цм до 25.0 цм, све према ситуацији на лицу места. Оштемовани материјал се прикупља и одвози на депонију. Тачну дубину и количину штемовања  одредити на лицу места, према ситуацији на терену, пројекту конструкције, по инструкцијама грађевинског инжењера задуженог за статику, пројектанта и надзорног органа. \nОбрачун је по комаду штемовања.\n","комада",90,"X",null,"=",{"v":0,"d":"0.00"}]
[58,"Проширивање и пробијање отвора на позицији фискултурна сала – нови изложбени простор у приземљу и пробијање отвора за пролаз  на спрату. Позиција обухвата рушење, утовар и одвожење шута на депонију до 10км удаљености према упутству инвеститора.\nОбрачун по м³ рушене опеке.\n","м³",3.39,"X",null,"=",{"v":0,"d":"0.00"}]
[59,"Демонтажа олука, олучних вертикала и хоризонтала, опшивки прозора, димњака и других елемената од лима.\nЛимарију демонтирати, упаковати, утоварити у камион и одвести на депонију коју одреди инвеститор удаљену до 15 км. \nОбрачун по комплету.\n","комплет",1,"X",null,"=",{"v":0,"d":"0.00"}]
[60,"Демонтажа и рушење комплетне припадајуће водоводно – канализационе инсталације са санитарном опремом и пратећим елементима. Позиција обухвата демонтажу, утовар и одвожење  на депонију до 10км удаљености према упутству инвеститора.\nОбрачун по комплету. \n","комплет",1,"X",null,"=",{"v":0,"d":"0.00"}]
[61,"Демонтажа постојећих електро инсталација са електро опремом, расветом, електро галантеријом и пратећим елементима. Позиција обухвата демонтажу, утовар и одвожење  на депонију до 10км удаљености према упутству инвеститора.\nОбрачун по комплету. \n","комплет",1,"X",null,"=",{"v":0,"d":"0.00"}]
[62,"Демонтажа постојећег система за видео-надзор са пратећом опремом и депоновање на место према упутству инвеститора. \nОбрачун по комплету. \n","комплет",1,"X",null,"=",{"v":0,"d":"0.00"}]
[63,"Демонтажа комплетног система грејања и вентилације са радијаторима, танком за мазут, клима комором, три гасна котла и пратећом опремом. Позиција обухвата демонтажу, утовар и депоновање према упутствима инвеститора на место до 10км удаљености.\nОбрачун по комплету. \n","комплет",1,"X",null,"=",{"v":0,"d":"0.00"}]
[64,"Демонтажа три држача заставе, две табле са називом улице и једном таблом са називом објекта са фасаде.\nОбрачун по комплету. \n","комплет",1,"X",null,"=",{"v":0,"d":"0.00"}]
[null,"УКУПНО РАДОВИ НА РУШЕЊУ И ДЕМОНТАЖИ:",{"$nulls":5},{"$f":"SUM(H30:H93)","v":{"v":0,"d":"0.00"}}]
[]
["3. ЗЕМЉАНИ РАДОВИ"]
[1,"Ручни ископ земље III категорије за дренажу објекта. Ископ извести према упутствима пројектанта. Бочне стране правилно одсећи, а дно нивелисати. Ископану земљу превести колицима, насути и нивелисати терен или утоварити на камион и одвести на депонију до 10км удаљености.                            Обрачун по м³ ископане земље.","м³",52.47,"x",null,"=",{"$f":"D97*F97","v":{"v":0,"d":"0.00"}}]
[2,"Набавка и насипање крупнијег туцаника у дренажни ров. Преко постављених дренажних цеви насути туцаник предвиђене гранулације. Туцаник насути и пажљиво набити у слојевима, дрвеним набијачима. Све према упутствима пројектанта.                Обрачун по м³ набијеног туцаника.","м³",17.49,"x",null,"=",{"v":0,"d":"0.00"}]
[3,"Набавка и насипање слоја шљунка у дренажни ров, преко туцаника. Преко постављених дренажних цеви и туцаника насути природан шљунак. Шљунак сипати у слојевима и пажљиво набити дрвеним набијачима. Све према упутствима пројектанта.\nОбрачун по м³ набијеног шљунка.\n","м³",11.66,"x",null,"=",{"v":0,"d":"0.00"}]
[4,"Ручни ископ земље III категорије за АБ плато под чилером дебљине 20 цм, дим. основе 300x400цм на северозападном делу дворишта. Ископ извести према упутствима пројектанта. Бочне стране правилно одсећи, а дно нивелисати. Ископану земљу превести колицима, насути и нивелисати терен или утоварити на камион и одвести на градску депонију. \nОбрачун по м² ископане земље.\n","м²",12,"x",null,"=",{"v":0,"d":"0.00"}]
[5,"Ручни ископ земље III категорије за подну АБ плочу на тлу дебљине 20 цм са степенишним темељима на делу објекта подрум, сала у приземљу и новопројектованог дела за запослене у приземљу. Дубина ископа 80цм. Ископ извести према упутствима пројектанта. Дно нивелисати. Ископану земљу превести колицима, насути и нивелисати терен или утоварити на камион и одвести на градску депонију. \nОбрачун по м² ископане земље.\n","м²",371.61,"X",null,"=",{"v":0,"d":"0.00"}]
[6,"Ручни ископ земље III категорије за тротоаре око објекта дебљине 10 цм. Ископ извести према пројекту и датим котама. Бочне стране правилно одсећи, а дно нивелисати. Ископану земљу превести колицима, насути и нивелисати терен или утоварити на камион и одвести на градску депонију. \nОбрачун по м² ископане земље.\n","м²",91.78,"x",null,"=",{"v":0,"d":"0.00"}]
[7,"Набавка, транспорт и разастирање шљунка дебљине 10цм,  испод темељних стопа. Шљунак насипати у слојевима и набити, до потребне збијености, све према упутствима пројектанта и пројекту.                                           Обрачун по м³ набијеног шљунка. ","м³",0.97,"x",null,"=",{"v":0,"d":"0.00"}]
[8,"Набавка и разастирање шљунка у слоју дебљине 10 цм, испод тротоара. Тампонски слој шљунка насути у слојевима, набити и фино испланирати са толеранцијом по висини +1 цм. \nОбрачун по м³ набијеног шљунка.\n","м³",9.18,"x",null,"=",{"$f":"D104*F104","v":{"v":0,"d":"0.00"}}]
[9,"Набавка, транспорт и разастирање шљунка дебљине 20цм испод подних АБ плоча. Шљунак насипати у слојевима и набити, до потребне збијености, све према упутствима пројектанта и пројекту. \nОбрачун по м³ набијеног шљунка.\n","м³",71.57,"x",null,"=",{"v":0,"d":"0.00"}]
[10,"Набавка, транспорт и разастирање шљунка дебљине 20цм  испод АБ платоа под чилером димензија 300цм x 400цм, уз северозападну страну објекта. Шљунак насипати у слојевима и набити, до потребне збијености, све према упутствима пројектанта и пројекту. \nОбрачун по м³ набијеног шљунка.\n","м³",2.4,"x",null,"=",{"v":0,"d":"0.00"}]
[null,"УКУПНО ЗЕМЉАНИ РАДОВИ:",{"$nulls":5},{"$f":"SUM(H97:H106)","v":{"v":0,"d":"0.00"}}]
[]
["4. БЕТОНСКИ РАДОВИ"]
[1,"Бетонирање АБ платоа дебљине 20цм, димензија 300х400цм на позицији северо-западног дела дворишта. Бетон је марке МБ 30. Израдити оплату и плоче армирати по пројекту, детаљима и статичком прорачуну. Бетон уградити и неговати по прописима и према пројекту статике, описима и предмеру. \n У цену улази оплата. \nОбрачун по м³ изливене плоче.\n\n","м³",2.4,"x",null,"=",{"$f":"D110*F110","v":{"v":0,"d":"0.00"}}]
[2,"Израда тротоара око објекта од бетона, дебљине 10 цм, марке МБ 20. Горњу површину тротоара обрадити по упутству пројектанта и бетон неговати.                                 Обрачун по м³ тротоара.\n\n","м³",9.2,"x",null,"=",{"$f":"D111*F111","v":{"v":0,"d":"0.00"}}]
[3,"Израда АБ подне плоче на тлу подрума и приземља (фискултурне сале и сектора за запослене) дебљине 20цм и темеља самаца 100/150/50цм,  марке МБ 30. Израдити оплату и плоче армирати по пројекту, детаљима и статичком прорачуну. Бетон уградити и неговати по прописима и према пројекту статике, описима и предмеру. У цену улази оплата\nОбрачун по м³ изливене плоче.\n","м³",76.8,"x",null,"=",{"$f":"D112*F112","v":{"v":0,"d":"0.00"}}]
[4,"Бетонирање АБ међуспратне конструкције - плоче приземља дебљине 20.0 цм и косе плоче степеница  из подрума дебљине 16.0 цм, бетон Ц25/30, све у глаткој оплати са потребним подупирачима, у свему према плановима оплате и арматуре.\nИзрадити оплату са подупирачима и плоче армирати по пројекту, детаљима и статичком прорачуну. Бетон уградити и неговати по прописима и према пројекту статике, описима и предмеру. \nУ цену улазе и оплата, подупирачи  и помоћна скела. \nОбрачун по м² изливене плоче.\n","м²",53.87,"X",null,"=",{"$f":"D113*F113","v":{"v":0,"d":"0.00"}}]
[5,"Израда бетонских степеника од набијеног бетона МБ 20. Израдити оплату степеника по детаљима и пројекту. Степенике бетонирати преко косе плоче. Бетон уградити и неговати по прописима. У цену улази и оплата.                                   Обрачун по м³ изведених степеника.","м³",9.31,"X",null,"=",{"$f":"D114*F114","v":{"v":0,"d":"0.00"}}]
[6,"Бетонирање АБ међуспратне конструкције - плоче спрата дебљина 20.0 цм и 30.0 цм и косе плоче трибина дебљине 20цм,  бетон Ц25/30, све у глаткој оплати са потребним подупирачима, у свему према плановима оплате и арматуре. Израдити оплату са подупирачима и плоче армирати по пројекту, детаљима и статичком прорачуну. Бетон уградити и неговати по прописима и према пројекту статике, описима и предмеру.  У цену улазе и оплата, подупирачи и помоћна скела. \nОбрачун по м² изливене плоче.\n","м²",304.4,"x",null,"=",{"$f":"D115*F115","v":{"v":0,"d":"0.00"}}]
[7,"Бетонирање АБ вертикалних серклажа у зидовима од опеке у подруму, 15/15. 20/15, бетоном марке МБ 25. Израдити оплату и серклаже армирати по пројекту, детаљима и статичком прорачуну. Бетон уградити и неговати по прописима и према пројекту статике, описима и предмеру. \nУ цену улази оплата. \nОбрачун по м³ серклажа.\n","м³",3.8,"x",null,"=",{"$f":"D116*F116","v":{"v":0,"d":"0.00"}}]
[8,"Бетонирање АБ косих серклажа на калканима, димензија (ширина зида)/20цм, бетон C25/30, са двостраном оплатом, у свему према постојећем стању и плановима оплате и арматуре. Израдити оплату и серклаже армирати по пројекту, детаљима и статичком прорачуну. Бетон уградити и неговати по прописима и према пројекту статике, описима и предмеру. \nУ цену улазе и оплата, арматура и помоћна скела.                                 Обрачун по м³ серклажа.\n","м³",7,"x",null,"=",{"v":0,"d":"0.00"}]
[9,"Бетонирање АБ греде – серклажа са анкер плочом за монтирање челичних носача. Греду израдити бетоном C25/30, у двостраној оплати. Греде су димензија (ширина зида)/40 цм. Израдити оплату и серклаже армирати по пројекту, детаљима и статичком прорачуну. Бетон уградити и неговати по прописима и према пројекту статике, описима и предмеру. Ценом је обухваћена иградња анкера за челичну конструкцију, oплата и помоћна скела.\nОбрачун по м³ серклажа.\n","м³",25.41,"X",null,"=",{"v":0,"d":"0.00"}]
[10,"Израда АБ надвратних греда, марке МБ 20. Израдити оплату и надвратнике армирати по детаљима и статичком прорачуну. Бетон уградити и неговати по прописима и према пројекту статике, описима и предмеру. У цену улазе и оплата, подупирачи и помоћна скела. \nОбрачун по м³ надвратника.\n","м³",0.15,"x",null,"=",{"v":0,"d":"0.00"}]
[11,"Израда АБ надвратних греда лучних отвора на фискултурној сали – изложбеном простору у приземљу и на спрату, марке МБ 20. Израдити оплату и надвратнике армирати по детаљима и статичком прорачуну. Бетон уградити и неговати по прописима и према пројекту статике, описима и предмеру. \nУ цену улазе и оплата, подупирачи и помоћна скела. \nОбрачун по м³ надвратника.\n","м³",2.7,"x",null,"=",{"v":0,"d":"0.00"}]
[12,"Израда слоја мршавог бетона дебљине 10цм као носача хидроизолације подних плоча, преко слоја шљунка, према пројекту статике, описима и предмеру.\nОбрачун по м³ мршавог бетона. \n","м³",36.42,"x",null,"=",{"v":0,"d":"0.00"}]
[13,"Санација постојећих спољних степеница, на позицијама главног и споредних улаза, са свим потребним оплатама, бетонирањем, равнањем и подлогом за завршну обраду, према пројекту статике, описима и предмеру.                                    Обрачун по м² степеница.   \n","м²",15.27,"x",null,"=",{"v":0,"d":"0.00"}]
[null,"УКУПНО БЕТОНСКИ РАДОВИ:",{"$nulls":5},{"$f":"SUM(H110:H122)","v":{"v":0,"d":"0.00"}}]
[]
["5. АРМИРАЧКИ РАДОВИ"]
[1,"Набавка, машинско исправљање, сечење, савијање и монтажа арматуре B500 и MAG500/560, aрматурних шипки и мреже Б500Б са свим припрадајућим материјалом (дистанцери, хватачи, армирачка жица...), aрматура шипова, у свему према детаљима арматуре. Количина је процењена, права количина после израде пројекта за извођење.                                   Обрачун по кг уграђене арматуре.                                                                                                            ","кг",12300,"x",null,"=",{"$f":"D126*F126","v":{"v":0,"d":"0.00"}}]
[null,"УКУПНО АРМИРАЧКИ РАДОВИ:",{"$nulls":5},{"$f":"SUM(H126)","v":{"v":0,"d":"0.00"}}]
[]
["6. ЗИДАРСКИ РАДОВИ"]
[1,"Израда цементне кошуљице дебљине 8 цм, као подлоге за подове на свим етажама. Подлогу за кошуљицу, пре наношења кошуљице, очистити и опрати. Малтер за кошуљицу справити са просејаним шљунком \"јединицом\", размере 1:3 и неговати је док не очврсне.                                                          Обрачун по м² кошуљице.\n","м²",666.05,"x",null,"=",{"$f":"D130*F130","v":{"v":0,"d":"0.00"}}]
[2,"Израда цементне кошуљице дебљине 6 цм. Кошуљицу извести преко уграђене блажујке на позицији соба легата на I спрату. Блажујку пре наношења кошуљице, очистити. Малтер за кошуљицу справити са просејаним шљунком \"јединицом\", размере 1:3 и неговати је док не очврсне.Обрачун по м² кошуљице.\n","м²",87.34,"x",null,"=",{"$f":"D131*F131","v":{"v":0,"d":"0.00"}}]
[3,"Зидање преградних зидова пуном опеком у подруму, д=15 цм, у продужном малтеру размере 1:2:6. Опеку пре уградње квасити водом. Зидове радити са правилним слогом. Спојнице очистити до дубине 2 цм. У цену улази и помоћна скела. \nОбрачун по м³ зида, отвори се одбијају.\n","м³",7.34,"x",null,"=",{"$f":"D132*F132","v":{"v":0,"d":"0.00"}}]
[4,"Зидање преградних зидова пуном опеком у подруму, д=20 цм, у продужном малтеру размере 1:2:6. Опеку пре уградње квасити водом. Зидове радити са правилним слогом. Спојнице очистити до дубине 2 цм. У цену улази и помоћна скела. \nОбрачун по м³ зида, отвори се одбијају.\n","м³",1.49,"x",null,"=",{"$f":"D133*F133","v":{"v":0,"d":"0.00"}}]
[5,"Зазиђивање пуном опеком некадашњег отвора за спољашња метална врата у подруму, д=15 цм, у продужном малтеру размере 1:2:6. Опеку пре уградње квасити водом. Зидове радити са правилним слогом. Спојнице очистити до дубине 2 цм. У цену улази и помоћна скела.       Обрачун по м³ зида, отвори се одбијају.","м³",0.52,"X",null,"=",{"$f":"D134*F134","v":{"v":0,"d":"0.00"}}]
[6,"Малтерисање зидова од опеке у подруму. Пре малтерисања зидне површине добро очистити и испрскати цементним млеком. Нанети два слоја малтера и изравнати га. Омалтерисане површине морају бити равне, без прелома и таласа, а ивице оштре и праве. Малтер квасити да не дође до брзог ''сушења'' и прегоревања.\nОбрачун по м² малтерисаног зида од опеке.\n","м²",180.37,"x",null,"=",{"v":0,"d":"0.00"}]
[7,"Малтерисање и обликовање нише на фасади за уградњу ''слепих'' врата   објекта за реплику некадашњих врата, према архивској грађи за објекат. \nОбрачун по м² малтерисане нише.\n","м²",5.08,"x",null,"=",{"$f":"D136*F136","v":{"v":0,"d":"0.00"}}]
[8,"Зидање димњака пуном опеком изнад крова.\nЗидати пуном фасадном опеком прве класе у продужном малтеру размере 1:1:6. За зидање користити целе опеке и половине равно одсечених ивица. Хоризонталне и вертикалне спојнице морају бити исте дебљине, увучене до 2 цм. Приликом зидања користити четвртасту или кружну гвоздену шипку пресека који одговара димензијама фуга. Слог мора бити правилан. Приликом зидања водити рачуна да не дође до цурења малтера. Унутрашњу страну димњачких канала обрадити приликом зидања. Фуге са спољне стране обрадити цементним малтером размере 1:2, по упутству пројектанта. У цену улазе и фуговање и помоћна скела. Димњачке вертикале ће се користити за вентилацију подрума. \nОбрачун по м³.\n\n","м³",5.18,"x",null,"=",{"$f":"D137*F137","v":{"v":0,"d":"0.00"}}]
[]
[null,"УКУПНО ЗИДАРСКИ РАДОВИ:",{"$nulls":5},{"$f":"SUM(H130:H137)","v":{"v":0,"d":"0.00"}}]
[]
["7.ИЗОЛАТЕРСКИ РАДОВИ"]
[1,"Израда хоризонталне хидроизолације на позицијама подних плоча у подруму и у приземљу. Изолацију радити преко потпуно суве и чисте подлоге са повијањем уз зид. Варење битуменских трака извести загревањем траке пламеником са отвореним пламеном, размекшавањем битуменске масе површине која се лепи и слепљивањем сопственом масом за подлогу. Траку залепити целом површином, са преклопима 10цм, посебну пажњу посветити варењу спојева.\nОбрачну по м².\n\n","м²",357.85,"x",null,"=",{"$f":"D142*F142","v":{"v":0,"d":"0.00"}}]
[2,"Израда вертикалне хидроизолације у подрумским просторијама, тоалету и чајној кухињи за запослене у приземљу. Изолацију радити преко потпуно суве и чисте подлоге. \nУ тоалету приземља целом висином, у кухињи подићи уз зидове до висине 1,6м, а све подрумске зидове хидроизоловати целом висином зида – зидове тоалета и подстанице за грејање. Хладни премаз битулит \"А\" нанети четком или прскањем, на температури вишој од 10 степени. Варење битуменских трака извести загревањем траке пламеником са отвореним пламеном, размекшавањем битуменске масе површине која се лепи и слепљивањем сопственом масом за подлогу. Траку залепити целом површином, са преклопима 10цм, посебну пажњу посветити варењу спојева.\nОбрачун по м².","м²",221.15,"x",null,"=",{"$f":"D143*F143","v":{"v":0,"d":"0.00"}}]
[]
[3,"Набавка и постављање прикивањем кровне подлоге кровног папира са 500гр/м2 битумена. Битуменску хартију поставити преко дашчане подлоге прикивањем уз горњу ивицу траке нерђајућим ексерима са широком главом. Прикована ивица се преклапа 15цм. Наставаке трака поставити наизменично, померање за јачање 50цм.                                 Обрачун по м² кровне површине.","м²",648.4,"X",null,"=",{"$f":"D145*F145","v":{"v":0,"d":"0.00"}}]
[4,"Постављање термоизолације екструдираног полистирена, дебљине 2цм. Плоче поставити у систему пливајућег пода, а све према пројекту. Позиција обухвата набавку и постављање.     Обрачун по м² постављених плоча.","м²",357.78,"x",null,"=",{"$f":"D146*F146","v":{"v":0,"d":"0.00"}}]
[5,"Постављање термоизолације екструдираног полистирена, дебљине 2цм. Плоче поставити у систему пливајућег пода на позицији међуспратне конструкције, а све према пројекту. Позиција обухвата набавку и постављање екструдираног полистирена. \nОбрачун по м² постављених плоча.\n","м²",244,"x",null,"=",{"$f":"D147*F147","v":{"v":0,"d":"0.00"}}]
[6,"Постављање термоизолације  камене вуне, дебљине 30цм. Плоче поставити између челичних носача кровне конструкције и изнад таваница од гипс-картонских плоча. Паропропусну фолију поставити са доње стране, а све према пројекту. Позиција обухвата набавку и постављање камене вуне.\nОбрачун по м² постављених плоча.\n","м²",395.53,"x",null,"=",{"$f":"D148*F148","v":{"v":0,"d":"0.00"}}]
[null,"УКУПНО ИЗОЛАТЕРСКИ РАДОВИ:",{"$nulls":5},{"$f":"SUM(H142:H148)","v":{"v":0,"d":"0.00"}}]
[]
["8.МОНТАЖНИ РАДОВИ СУВЕ ГРАДЊЕ  - ГИПСАРСКИ РАДОВИ"]
[1,"Израда преградног зида дебљине 15 цм у приземљу, једнострука метална потконструкција обложена обострано двоструким гипс картонским плочама ГКБ 12,5 мм, систем. Преградни неносив зид израдити од поцинкованих профила ЦW 100, поставити камену вуну дебљине 100 мм и обложити двоструким гипс картонским плочама, по пројекту и упутству произвођача. Саставе обрадити глет масом и бандаж тракама по упутству пројектанта. У цену улази и радна скела.    Обрачун по м² постављене површине.","м²",29.8,"x",null,"=",{"$f":"D152*F152","v":{"v":0,"d":"0.00"}}]
[2,"Израда преградног зида дебљине 20,5 цм, на спрату, двострука метална потконструкција обложена обострано гипс картонским плочама ГКБ 12,5 мм, систем. Преградни зид израдити од двоструких поцинкованих профила ЦW 100+100, поставити камену вуну дебљине 100 мм и обложити двоструким гипс картонским плочама, по пројекту и упутству произвођача. Саставе обрадити глет масом и бандаж тракама по упутству пројектанта. У цену улази и радна скела. \nОбрачун по м² постављене површине.\n","м²",15.64,"x",null,"=",{"$f":"D153*F153","v":{"v":0,"d":"0.00"}}]
[3,"Израда преградног зида дебљине 15 цм, у приземљу, једнострука метална потконструкција обложена обострано двоструким влагоотпорним гипс картонским плочама ГКП 12,5 мм + ГКБ 12,5 мм. Преградни неносив зид израдити од поцинкованих профила ЦW 100, поставити камену вуну дебљине 100 мм и обложити двоструким влагоотпорним гипс картонским плочама, по пројекту и упутству произвођача. Саставе обрадити глет масом и бандаж тракама по упутству пројектанта. У цену улази и радна скела. \nОбрачун по м² постављене површине.\n","м²",6.04,"X",null,"=",{"$f":"D154*F154","v":{"v":0,"d":"0.00"}}]
[4,"Израда преградног зида дебљине 15цм, двоструким гипс картонским плочама ГКБ 12,5 мм – са једне стране зида влагоотпорним, једнострука метална потконструкција обложена обострано, систем Knauf W113. Преградни неносив зид израдити од поцинкованих профила CW 100, поставити минералну вуну дебљине 10 цм и обложити двоструким гипс картонским плочама, по пројекту и упутству произвођача. Саставе обрадити глет масом и бандаж тракама по упутству пројектанта. У цену улази и радна скела. \nОбрачун по м² постављене површине.\n","м²",18.84,"X",null,"=",{"$f":"D155*F155","v":{"v":0,"d":"0.00"}}]
[5,"Облагање зидова двоструким гипс-картонским плочама ГКБ 12,5мм, са израдом металне потконструкције причвршћене за зид. Укупна дебљина облоге је 48 мм. Металну потконструкцију израдити од поцинкованих профила ЦД 60x27 мм са ојачањима, а по пројекту и упутству произвођача. Зид обложити минералном вуном дебљине 75 мм, а затим поставити и причврстити гипс картонске плоче. Саставе обрадити глет масом и бандаж траком, по упутству пројектанта.\nПозиција се односи на зидове у приземљу и на спрату,  формирање лукова над пролазима у салу, у приземљу и на спрату, затварање прозорских отвора са унутрашње стране и ниша у зидовима.  У цену улази и радна скела.\nОбрачун по м².\n","м²",613.89,"X",null,"=",{"$f":"D156*F156","v":{"v":0,"d":"0.00"}}]
[]
[6,"Израда спуштеног плафона са двоструким гипс-картонским плочама са челичном потконструкцијом и облагање влагоотпорним гипс картонским плочама ГКБ 12,5мм + ГКБ 12,5мм. Потконструкцију израдити од носивих и монтажних поцинкованих профила ЦД 60x27 мм причвршћених за носиви плафон и обложити гипс картонским плочама, по пројекту и упутству произвођача. Саставе обрадити глет масом и бандаж тракама по упутству пројектанта. У цену улази и радна скела. Позиција се односи на облагање плафона у подруму.\nОбрачун по м² постављене површине.\n","м²",49.49,"X",null,"=",{"$f":"D158*F158","v":{"v":0,"d":"0.00"}}]
[7,"Израда спуштеног плафона са двоструким гипс-картонским плочама са челичном потконструкцијом и облагање гипс картонским плочама ГКБ 12,5мм. Потконструкцију израдити од носивих и монтажних поцинкованих профила ЦД 60x27 мм причвршћених за носиви плафон и обложити гипс картонским плочама, по пројекту и упутству произвођача. Саставе обрадити глет масом и бандаж тракама по упутству пројектанта. У цену улази и радна скела. Позиција се односи на облагање свих плафона у објекту и косе плоче степеница-трибина у сали.\nОбрачун по м² постављене површине.\n","м²",620.25,"x",null,"=",{"v":0,"d":"0.00"}]
[8,"Облагање кровне конструкције таванских простора двоструким ватроотпорним Fireboard А1 гипс картонским плочама ГМ-Ф  2х25,0мм, са израдом металне потконструкције причвршћене. Металну потконструкцију израдити од поцинкованих профила ЦД 60x27 мм, а по пројекту и упутству произвођача. Облагање извести у систему К214, а према стандарду SRP S EN 15281-1, ватроотпорности 120 минута.  Саставе обрадити глет масом и бандаж траком, по упутству пројектанта.\nОбрачун по м².","м²",218.67,"x",null,"=",{"v":0,"d":"0.00"}]
[9,"Формирање два ревизиона отвора у таваници са двоструким Fireboard А1 гипс картонским плочама ГМ-Ф  25,0мм. \nАлу ревизиони отвор са скривеним системом за затварање, елоксирано, са уграђеном Fireboard А1 гипс картонским плочама  50,0мм (2x 25мм). Ревизијска вратанца се уграђују у гипскартонске спуштене плафоне а служе као ревизиони отвор за лакши приступ скривеним инсталацијама. Димензије:  60x60цм.\nОбрачун по комаду ревизионог отвора.\n","комада",2,"x",null,"=",{"v":0,"d":"0.00"}]
[10,"Облагање шпалетни прозора  са унутрашње старне ГКБ плочама и глетовање.\nОбрачун по м².\n\n","м²",67.85,"x",null,"=",{"v":0,"d":"0.00"}]
[11,"Израда и монтажа висећег ГК зида дебљине 20.5цм за видео пано, у приземљу. Двострука метална потконструкција обложена обострано гипс картонским плочама ГКБ 12,5 мм, систем. Зид израдити од двоструких поцинкованих профила CW 100+100, поставити камену вуну дебљине 100 мм и обложити двоструким гипс картонским плочама, по пројекту и упутству произвођача. Саставе обрадити глет масом и бандаж тракама по упутству пројектанта. У цену улази и радна скела. \nОбрачун по м² постављене површине.\n","м²",5.75,"x",null,"=",{"v":0,"d":"0.00"}]
[null,"УКУПНО МОНТАЖНИ РАДОВИ СУВЕ ГРАДЊЕ:",{"$nulls":5},{"$f":"SUM(H152:H163)","v":{"v":0,"d":"0.00"}}]
[]
["9.ТЕСАРСКИ РАДОВИ"]
[1,"Летвисање крова летвама 24/48 мм, на размаку од 23 цм за једноструко покривање  црепом. Летвисање извести сувим, правим и квалитетним јеловим летвама, оптималне дужине. Позиција обухвата набавку и постављање летви.\nОбрачун по м² мерено по косини крова.\n\n","м²",648.4,"x",null,"=",{"$f":"D167*F167","v":{"v":0,"d":"0.00"}}]
[2,"Постављање дашчане подлоге преко кровне конструкције. Даске дебљине 24мм од суве, праве и квалитетне јелове даске, оптималне дужине поставити на додир и заковати.\nПозиција обухвата набавку и постављање даски.\nОбрачун по м² постављене површине мерено по косини крова.\n\n\n","м²",648.4,"x",null,"=",{"$f":"D168*F168","v":{"v":0,"d":"0.00"}}]
[3,"Постављање дашчане подлоге преко увале. Даске дебљине 24мм од суве, праве и квалитетне јелове даске, оптималне дужине поставити на додир и заковати. Позиција обухвата набавку и постављање дашчане подлоге.\nОбрачун по м’ постављене површине.\n\n\n\n","м’",41,"x",null,"=",{"$f":"D169*F169","v":{"v":0,"d":"0.00"}}]
[4,"Постављање контралетви (подужних летви)  50 x 80 мм које успостављају ваздушни простор између паропропусне фолије и покривача.                                       Обрачун по м² постављене површине мерено по косини крова.\n\n\n\n","м²",648.4,"X",null,"=",{"$f":"D170*F170","v":{"v":0,"d":"0.00"}}]
[5,"Постављање рогова од суве чамове грађе пресека 12/16цм у саставу конструкције сложеног крова са челичним носачима и челичним рожњачама. Позиција обухвата набавку и постављање рогова .\nОбрачун по м' рогова.\n\n\n\n","м’",552.52,"x",null,"=",{"$f":"D171*F171","v":{"v":0,"d":"0.00"}}]
[null,"УКУПНО ТЕСАРСКИ РАДОВИ:",{"$nulls":5},{"$f":"SUM(H167:H171)","v":{"v":0,"d":"0.00"}}]
[]
["10.БРАВАРСКИ РАДОВИ"]
[1,"Уградња челичне конструкције од IPE 240  и UNP140 носача, статичког система лук на три зглоба.\nНабавка материјала, израда конструкцијe, транспорт на градилиште и монтажа, у свему према пројекту и радионичкој документацији. Користи се челик С235. Конструкција је антикорозивно заштићена и обрађена противпожарним премазом 30 минута. Позиција обухвата израду, транспорт и уградњу. \nОбрачун по кг челика.\n\n\n","кг",11304,"x",null,"=",{"$f":"D175*F175","v":{"v":0,"d":"0.00"}}]
[2,"Уградња ограде од челичних флахова са конструкцијом за дрвене рукохвате. Висина ограде је 1м од коте готовог пода,  дебљине флахова 6мм. Ограда се поставља на ободима галерије и степеницама - трибинама у изложебеној сали са пластификацијом у белој мат боји. Позиција обухвата израду, транспорт и уградњу.\nОбрачун по кг челика.\n\n\n\n","кг",1494,"x",null,"="]
[2,"Набавка, израда и уградња челичне подконструкције од кутијастих профила. Челични роштиљ израдити тако да је на њему могућа уградња табли блажујки. Подконструкцију уградити на позицији изнад соба легата на I спрату као, а све према упуттву пројектаната и грађевинског инжењера задуженог за статику објекта.\nОбрачун по кг челика.\n\n\n\n","кг",1640,"x",null,"=",{"$f":"D177*F177","v":{"v":0,"d":"0.00"}}]
[null,"УКУПНО БРАВАРСКИ РАДОВИ:",{"$nulls":5},{"$f":"SUM(H175:H177)","v":{"v":0,"d":"0.00"}}]
[]
["11.КРОВОПОКРИВАЧКИ РАДОВИ"]
[1,"Постављање фалцованог, вентилирајућег црепа са снегобранима и свим пратећим фазонским елементима. Цреп мора бити раван, неоштећен и квалитетан. У цену улазе и постављање слемена од слемењака у продужном малтеру. Све фазонске елементе, вентилирајуће црепове и црепове са уграђеним снегобранима извести према упутствима произвођача.\nОбрачун по м² постављене површине према косој пројекцији крова.\n\n\n","м²",648.4,"x",null,"=",{"$f":"D181*F181","v":{"v":0,"d":"0.00"}}]
[null,"УКУПНО КРОВОПОКРИВАЧКИ РАДОВИ:",{"$nulls":5},{"$f":"SUM(H181)","v":{"v":0,"d":"0.00"}}]
[]
["12.ФАСАДЕРСКИ РАДОВИ"]
[1,"Израда фасаде са монтажом орнаменталне пластике, а све према према претходно узетим узорцима постојеће фасадне пластике. Након чишћења фуга и малтерисања фасаде од опеке,  претходном изгледу објекта у складу са доступним материјалом о изворном изгледу објекта и установљеном на лицу места изворном пигменту фасадних боја, бојење и рељефизација, након малтерисања термоизолационим малтером и прелаз силиконским премазом од утицаја влаге и атмосферилија, а све према упутствима пројектаната и Завода за заштиту споменика културе.\nОбрачун по м².\n\n\n\n","м²",584.12,"x",null,"=",{"$f":"D185*F185","v":{"v":0,"d":"0.00"}}]
[null,"УКУПНО ФАСАДЕРСКИ РАДОВИ:",{"$nulls":5},{"$f":"SUM(H185)","v":{"v":0,"d":"0.00"}}]
[]
["13.МОЛЕРСКО-ФАРБАРСКИ РАДОВИ"]
[1,"Постављање полиетиленске фолије  и картона за заштиту подова. Дебљу полиетиленску фолију поставити преко картона на свим подним површинама. Позиција обухвата набавку и постављање фолије, картона, траке и свих других неопходних средстава заштите подова. \nОбрачун по м².\n\n\n\n\n\n","м²",620.25,"x",null,"=",{"$f":"D189*F189","v":{"v":0,"d":"0.00"}}]
[2,"Глетовање и фарбање зидова у подруму. Све малтерисане зидове очистити и извршити неутрализовање. Прегледати и китовати мања оштећења и пукотине. Импрегнирати и превући дисперзивни кит три пута, а затим бојити дисперзивном бојом први и други пут. Позиција обухвата и чишћење и прање свих површина (подова, зидова, прозора и врата...) по завршетку радова.\nОбрачун по м² површине.\n\n\n\n\n\n","м²",180.37,"x",null,"=",{"$f":"D190*F190","v":{"v":0,"d":"0.00"}}]
[3,"Глетовање и фарбање зидова у приземљу и на спрату. Све зидове очистити и извршити неутрализовање. Прегледати и китовати мања оштећења и пукотине. Импрегнирати и превући дисперзивни кит три пута, а затим бојити дисперзивном бојом први и други пут. Позиција обухвата и чишћење и прање свих површина (подова, зидова, прозора и врата...) по завршетку радова.\nОбрачун по м² површине.\n\n\n\n\n\n\n","м²",695.41,"x",null,"=",{"$f":"D191*F191","v":{"v":0,"d":"0.00"}}]
[4,"Глетовање и фарбање шпалетни. Све шпалетне очистити и извршити неутрализовање. Прегледати и китовати мања оштећења и пукотине. Импрегнирати и превући дисперзивни кит три пута, а затим бојити дисперзивном бојом први и други пут. Позиција обухвата и чишћење и прање свих површина (подова, зидова, прозора и врата...) по завршетку радова.\nОбрачун по м' површине.\n\n\n\n\n\n\n\n","м²",226.15,"X",null,"=",{"$f":"D192*F192","v":{"v":0,"d":"0.00"}}]
[5,"Глетовање и фарбање плафона. Све плафоне очистити и извршити неутрализовање. Прегледати и китовати мања оштећења и пукотине. Импрегнирати и превући дисперзивни кит три пута, а затим бојити дисперзивном бојом први и други пут. Позиција обухвата и чишћење и прање свих површина (подова, зидова, прозора и врата...) по завршетку радова.\nОбрачун по м² глетоване површине.\n\n\n\n\n\n\n\n","м²",663.38,"x",null,"=",{"$f":"D193*F193","v":{"v":0,"d":"0.00"}}]
[null,"УКУПНО МОЛЕРСКО-ФАРБАРСКИ РАДОВИ:",{"$nulls":5},{"$f":"SUM(H189:H193)","v":{"v":0,"d":"0.00"}}]
[]
["14.ЛИМАРСКИ РАДОВИ"]
[1,"Монтажа бакарних вертикалних олучних цеви у свему према упутствима пројектанта, пресека 12x12 цм, дебљине лима 0,60 мм.  Делови олучних цеви морају да улазе један у други минимум 50 мм и да се залетују калајем од најмање 40%. Бакарне обујмице са држачима поставити на размаку од 200 цм. Преко обујмица поставити украсну траку. Цеви морају бити удаљене од зида минимум 20 мм. \nОбрачун по м’ олучне цеви.\n\n\n\n\n","м’",29.24,"x",null,"=",{"$f":"D197*F197","v":{"v":0,"d":"0.00"}}]
[2,"Монтажа бакарних висећих хоризонталних олучних цеви у свему према упутствима пројектанта, пресека 12x12 цм, дебљине лима 0,60 мм.  Олуке спајати нитнама, једноредно са максималним размаком 3 цм и да се залетују калајем од најмање 40%.\nДржаче висећих олука урадити од бакарног флаха 25x5 мм и нитовати са предње стране олука нитнама Ø 4 мм, на размаку до 80 цм.  Цеви морају бити удаљене од зида минимум 20 мм. \nОбрачун по м’ олучне цеви.\n\n\n\n\n\n","м’",43.52,"x",null,"=",{"$f":"D198*F198","v":{"v":0,"d":"0.00"}}]
[3,"Опшивање бакарним лимом  у свему према упутствима пројектанта, кровних ивица, ветерлајсни, димњака, увала-иксни, постављање пуц лајсни, са фарбањем бојом за метал.\nОбрачун по комплету.\n\n\n\n\n\n\n","комплет",1,"x",null,"=",{"$f":"D199*F199","v":{"v":0,"d":"0.00"}}]
[4,"Израда и монтажа штуцне у венцу, везе олука и одводних вертикалних цеви од бакарног лима, у свему према упутствима пројектанта дебљине 0,60 мм. Штуцна је спојена за олук водонепропусном везом и улази у цев 10 цм. \nОбрачун по комаду штуцне.\n\n\n\n\n\n\n\n","комада",4,"x",null,"=",{"$f":"D200*F200","v":{"v":0,"d":"0.00"}}]
[null,"УКУПНО ЛИМАРСКИ РАДОВИ:",{"$nulls":5},{"$f":"SUM(H197:H200)","v":{"v":0,"d":"0.00"}}]
[]
["15.ПОДОПОЛАГАЧКИ РАДОВИ"]
[null,"ПАРКЕТАРСКИ РАДОВИ"]
[1,"Уградња вишеслојног паркета дебљине 13-14мм у главном излагачком простору. Подлога на коју се поставља паркет мора да буде чиста, равна, сува и структурно чврста.  Сачекати да се заврши уградња прозора и врата, и да се добро осуше „влажни“ радови (цементирање, гипсани радови и кречење), пре него што се унесе нови паркет. Пре уградње, оставити запакован паркет да „одлежи“ у тој просторији најмање 48 сати. Модел и слог према упутству пројектанта. Позиција обухвата набавку, транспорт и постављање вишеслојног паркета.\nОбрачун по м² постављеног вишеслојног паркета.\n\n\n\n\n\n\n\n\n","м²",151.8,"x",null,"=",{"$f":"D205*F205","v":{"v":0,"d":"0.00"}}]
[2,"Облагање трибина дрвеним облогама. Дрвену облогу израдити од дрвене грађе постојеће кровне конструкције и рогова. Подлога на коју се поставља дрвена облога мора да буде чиста, равна, сува и структурно чврста.  Сачекати да се заврши уградња прозора и врата, и да се добро осуше „влажни“ радови (цементирање, гипсани радови и кречење), пре него што се унесе нови паркет. Пре уградње, оставити запакован паркет да „одлежи“ у тој просторији најмање 48 сати. Слог према упутству пројектанта. Позиција обухвата обраду грађе, транспорт и облагање дрвеном облогом.\nОбрачун по м² дрвене облоге.\n\n\n\n\n\n\n\n\n","м²",76.53,"x",null,"=",{"$f":"D206*F206","v":{"v":0,"d":"0.00"}}]
[3,"Постављање сокле од пуног дрвета, фарбане у белу мат полиуретанску боју. Соклу постављати на спојевима подова и зидова.\nОбрачун по м' постављене сокле.\n\n\n\n\n\n\n\n\n\n","м' ",38,"x",null,"=",{"$f":"D207*F207","v":{"v":0,"d":"0.00"}}]
[]
[null,"ИНДУСТРИЈСКИ ПОДОВИ"]
[1,"Израда Изолит Антистатик епокси пода, саморазливајућег типа (микроцементни или полиуретански, мат бели), у улазном простору, излагачком и делу за канцеларије и комуникације запослених, дебљине 2,5-3 мм, \"Драмин\" Земун.\n Монолитни индустријски Антистатик епокси под ради се на бази трокомпонентних материјала: смоле, катализатора (учвршћивача) и пунила. Подлогу чврсту и равну, са одступањем до 2 мм мерено правом летвом дужине 3 м припремити да буде чиста, без скрамица и премаза, без прашине, по потреби опрати водом под великим притиском и осушити. Изолит Прајмер смолу помешати са Изолит Прајмер учвршћивачем и мешати миксером са 300-400 обртаја у минуту. Измешану масу одстајалу 3-4 минута, промешати и нанети на подлогу четком или ваљком. Смесу за под припремити на следећи начин: сипати смолу, додати учвршћивач (катализатор) и мешати миксером са 300-400 обртаја у минуту. У измешану смесу додати пунило и наставити са мешањем.\n Односи материјала према упутству произвођача. На припремљену подлогу, одстајалу 3-4 часа, измешану масу разлити по површини и назубљеним хоблама развући на дебљину слоја 2,5-3 мм. Преко развучене масе прелазити јежастим полиетиленским ваљком ради егализирања површине и истеривања евентуалних ваздушних мехурића. Просторије приликом израде пода морају да буду чисте и затворене. Боја и тон пода по избору пројектанта.\n Обрачун по м² пода.\n\n\n\n\n\n\n\n\n\n","м²",345.79,"x",null,"=",{"$f":"D210*F210","v":{"v":0,"d":"0.00"}}]
[]
[]
[null,"УКУПНО ПОДОПОЛАГАЧКИ РАДОВИ:",{"$nulls":5},{"$f":"SUM(H205:H210)","v":{"v":0,"d":"0.00"}}]
[]
["16.КЕРАМИЧАРСКИ РАДОВИ"]
[1,"Постављање подних керамичких противклизних плочица димензија 120x60 цм дебљине 10мм, на лепку произвођач La Fabbrica. Плочице I класе, отпорности на клизање R10, поставити на лепку на позицији тоалета за посетиоце у подруму и тоалета за запослене у приземљу, слог по избору пројектанта. Подлога на коју се постављају плочице мора да буде чиста, равна, сува и структурно чврста. Постављене плочице фуговати и очистити пиљевином. Позиција обухвата набавку,  уградњу и растур материајла, фугмасе, крстића, нивелатора и свих других елемената неопходних за правилну уградњу. \nОбрачун по м² пода.\n\n\n\n\n\n\n\n\n\n","м²",71.2,"x",null,"=",{"$f":"D216*F216","v":{"v":0,"d":"0.00"}}]
[2,"Постављање зидних керамичких плочица димензија 120x60 цм дебљине 10мм, на лепку произвођач La Fabbrica. Плочице I класе поставити на лепку на позицији тоалета за посетиоце у подруму, тоалета за запослене у приземљу и у чајној кухињи за запослене. Слог по избору пројектанта. Подлога на коју се постављају плочице мора да буде чиста, равна, сува и структурно чврста. Постављене плочице фуговати и очистити пиљевином. Позиција обухвата набавку и уградњу плочица,  фугмасе, крстића, нивелатора и свих других елемената неопходних за правилну уградњу, као и растур материјала. \nОбрачун по м² обложеног зида.\n\n\n\n\n\n\n\n\n\n","м²",209.71,"x",null,"=",{"$f":"D217*F217","v":{"v":0,"d":"0.00"}}]
[3,"Постављање подних противклизних плочица димензија 120x60 цм дебљине 10мм, на лепку произвођач La Fabbrica. Плочице I класе, отпорне на мраз и хабање, отпорности на клизање R12, поставити на лепку на позицији улазних степеништа и платоа, слог по избору пројектанта. Подлога на коју се постављају плочице мора да буде чиста, равна, сува и структурно чврста. Постављене плочице фуговати и очистити пиљевином. Позиција обухвата набавку и уградњу плочица, фугмасе, крстића, нивелатора и свих других елемената неопходних за правилну уградњу. \nОбрачун по м² постављених плочица.\n\n\n\n\n\n\n\n\n\n\n","м²",24.55,"x",null,"=",{"$f":"D218*F218","v":{"v":0,"d":"0.00"}}]
[null,"УКУПНО КЕРАМИЧАРСКИ РАДОВИ:",{"$nulls":5},{"$f":"SUM(H216:H218)","v":{"v":0,"d":"0.00"}}]
[]
["17.ГРАЂЕВИНСКА СТОЛАРИЈА"]
[null,"ФАСАДНА СТОЛАРИЈА"]
[1,"Уградња улазних врата од пуног дрвета и стaкла димензија 145/246цм. Врата израдити према шеми столарије, по узору на постојећа, према претходно израђеним техничким цртежима, упутству пројектанта и Завода за заштиту споменика културе. Позиција обухвата израду, транспорт и уградњу врата заједно са штоком, первајзима, бравама. Све мере проверити на лицу места и по узорку.\nОбрачун по комаду врата.\n\n\n\n\n\n\n\n\n\n\n\n","комада",1,"x",null,"=",{"$f":"D223*F223","v":{"v":0,"d":"0.00"}}]
[2,"Уградња прозора од пуног дрвета и изопан стакла димензија 97/170цм. Прозор израдити од пуног дрвета и изопан термо стакла 4+16+4, са пескираном фолијом за стакло, према шеми столарије, по узору на постојећа, према претходно израђеним техничким цртежима, упутству пројектанта и Завода за заштиту споменика културе. Позиција обухвата израду, транспорт и уградњу прозора. Обрачун по комаду. Све мере проверити на лицу места и по узорку.\nОбрачун по комаду прозора.\n\n\n\n\n\n\n\n\n\n\n\n\n","комада",5,"x",null,"=",{"v":0,"d":"0.00"}]
[3,"Уградња прозора од пуног дрвета и изопан стакла димензија 121/220цм. Прозор израдити од пуног дрвета и изопан термо стакла 4+16+4, са пескираном фолијом за стакло, према шеми столарије, по узору на постојећа, према претходно израђеним техничким цртежима, упутству пројектанта и Завода за заштиту споменика културе. Позиција обухвата израду, транспорт и уградњу прозора. Обрачун по комаду. \nСве мере проверити на лицу места и по узорку.\nОбрачун по комаду прозора.\n\n\n\n\n\n\n\n\n\n\n\n\n\n","комада",8,"X",null,"=",{"v":0,"d":"0.00"}]
[4,"Уградња прозора од пуног дрвета и изопан стакла димензија 111/62цм. Прозор израдити од пуног дрвета и изопан термо стакла 4+16+4 према шеми столарије, по узору на постојећа, према претходно израђеним техничким цртежима, упутству пројектанта и Завода за заштиту споменика културе. Позиција обухвата израду, транспорт и уградњу прозора. Обрачун по комаду. Све мере проверити на лицу места и по узорку.\nОбрачун по комаду прозора.\n\n\n\n\n\n\n\n\n\n\n\n\n\n\n\n","комада",1,"X",null,"=",{"v":0,"d":"0.00"}]
[5,"Уградња прозора од пуног дрвета и изопан стакла димензија 66/123цм. Прозор израдити од пуног дрвета и изопан термо стакла 4+16+4 према шеми столарије, по узору на постојећа, према претходно израђеним техничким цртежима, упутству пројектанта и Завода за заштиту споменика културе. Позиција обухвата израду, транспорт и уградњу прозора. Обрачун по комаду.  Све мере проверити на лицу места и по узорку.\nОбрачун по комаду прозора.\n\n\n\n\n\n\n\n\n\n\n\n\n\n\n\n\n","комада",1,"X",null,"=",{"v":0,"d":"0.00"}]
[6,"Уградња прозора од пуног дрвета и изопан стакла димензија 66/135цм. Прозор израдити од пуног дрвета и изопан термо стакла 4+16+4 према шеми столарије, по узору на постојећа, према претходно израђеним техничким цртежима, упутству пројектанта и Завода за заштиту споменика културе. Позиција обухвата израду, транспорт и уградњу прозора. Обрачун по комаду. Све мере проверити на лицу места и по узорку.\nОбрачун по комаду прозора.\n\n\n\n\n\n\n\n\n\n\n\n\n\n\n\n\n\n","комада",4,"x",null,"=",{"v":0,"d":"0.00"}]
[7,"Уградња прозора од пуног дрвета и изопан стакла димензија 106/165цм. Прозор израдити од пуног дрвета и изопан термо стакла 4+16+4 према шеми столарије, по узору на постојећа, према претходно израђеним техничким цртежима, упутству пројектанта и Завода за заштиту споменика културе. Позиција обухвата израду, транспорт и уградњу прозора. Обрачун по комаду. Све мере проверити на лицу места и по узорку.\nОбрачун по комаду прозора.\n\n\n\n\n\n\n\n\n\n\n\n\n\n\n\n\n\n\n","комада",1,"x",null,"=",{"v":0,"d":"0.00"}]
[8,"Уградња улазних врата од пуног дрвета димензија 134/273цм. Врата израдити према шеми столарије, по узору на постојећа, према претходно израђеним техничким цртежима,  упутству пројектанта и Завода за заштиту споменика културе. Позиција обухвата израду, транспорт и уградњу врата заједно са штоком, первајзима, бравама.\nОбрачун по комаду врата.\n\n\n\n\n\n\n\n\n\n\n\n\n\n\n\n\n\n\n\n","комада",1,"X",null,"=",{"v":0,"d":"0.00"}]
[9,"Уградња прозора од пуног дрвета и изопан стакла димензија 104/134цм. Прозор израдити од пуног дрвета и изопан термо стакла 4+16+4, са пескираном фолијом за стакло, према шеми столарије, по узору на постојећа, према претходно израђеним техничким цртежима, упутству пројектанта и Завода за заштиту споменика културе. Позиција обухвата израду, транспорт и уградњу прозора. Све мере проверити на лицу места и по узорку.\nОбрачун по комаду прозора.\n\n\n\n\n\n\n\n\n\n\n\n\n\n\n\n\n\n\n\n\n","комада",1,"x",null,"=",{"v":0,"d":"0.00"}]
[10,"Уградња прозора од пуног дрвета и изопан стакла димензија 127/220цм. Прозор израдити од пуног дрвета и изопан термо стакла 4+16+4, са пескираном фолијом за стакло, према шеми столарије, по узору на постојећа, према претходно израђеним техничким цртежима, упутству пројектанта и Завода за заштиту споменика културе. Позиција обухвата израду, транспорт и уградњу прозора. Све мере проверити на лицу места и по узорку.\nОбрачун по комаду прозора.\n\n\n\n\n\n\n\n\n\n\n\n\n\n\n\n\n\n\n\n\n\n","комада",4,"x",null,"=",{"v":0,"d":"0.00"}]
[11,"Уградња улазних врата од пуног дрвета и стакла димензија 145/320цм. Врата израдити према шеми столарије, по узору на постојећа, према претходно израђеним техничким цртежима, упутству пројектанта и Завода за заштиту споменика културе. Позиција обухвата израду, транспорт и уградњу врата заједно са штоком, первајзима, бравама. Све мере проверити на лицу места и по узорку.\nОбрачун по комаду врата.\n\n\n\n\n\n\n\n\n\n\n\n\n\n\n\n\n\n\n\n\n\n\n","комада",1,"X",null,"=",{"v":0,"d":"0.00"}]
[12,"Уградња прозора од пуног дрвета и изопан стакла димензија 97/163цм. Прозор израдити од пуног дрвета и изопан термо стакла 4+16+4, са пескираном фолијом за стакло, према шеми столарије, по узору на постојећа, према претходно израђеним техничким цртежима, упутству пројектанта и Завода за заштиту споменика културе. Позиција обухвата израду, транспорт и уградњу прозора. \nСве мере проверити на лицу места и по узорку.\nОбрачун по комаду прозора.\n\n\n\n\n\n\n\n\n\n\n\n\n\n\n\n\n\n\n\n\n\n\n\n","комада",12,"x",null,"=",{"v":0,"d":"0.00"}]
[13,"Уградња прозора од пуног дрвета и изопан стакла димензија 105/163цм. Прозор израдити од пуног дрвета и изопан термо стакла 4+16+4 према шеми столарије, по узору на постојећа, према претходно израђеним техничким цртежима, упутству пројектанта и Завода за заштиту споменика културе. Позиција обухвата израду, транспорт и уградњу прозора. Све мере проверити на лицу места и по узорку.\nОбрачун по комаду прозора.\n\n\n\n\n\n\n\n\n\n\n\n\n\n\n\n\n\n\n\n\n\n\n\n\n","комада",1,"x",null,"=",{"v":0,"d":"0.00"}]
[14,"Уградња прозора од пуног дрвета и изопан стакла димензија 88/134цм. Прозор израдити од пуног дрвета и изопан термо стакла 4+16+4, са пескираном фолијом за стакло, према шеми столарије, по узору на постојећа, према претходно израђеним техничким цртежима, упутству пројектанта и Завода за заштиту споменика културе. Позиција обухвата израду, транспорт и уградњу прозора. \nСве мере проверити на лицу места и по узорку.\nОбрачун по комаду прозора.\n\n\n\n\n\n\n\n\n\n\n\n\n\n\n\n\n\n\n\n\n\n\n\n\n","комада",4,"X",null,"=",{"v":0,"d":"0.00"}]
[15,"Уградња улазних врата од метала димензија 86/180 цм. Врата израдити према шеми столарије, по узору на постојећа, према претходно израђеним техничким цртежима, упутству пројектанта и Завода за заштиту споменика културе. Позиција обухвата израду, транспорт и уградњу врата заједно са штоком, первајзима, бравама.\nСве мере проверити на лицу места и по узорку.\nОбрачун по комаду врата.\n\n\n\n\n\n\n\n\n\n\n\n\n\n\n\n\n\n\n\n\n\n\n\n\n","комада",1,"X",null,"=",{"v":0,"d":"0.00"}]
[]
[null,"УНУТРАШЊА СТОЛАРИЈА"]
[1,"Израда и уградња једнокрилних унутрашњих тапет врата од фарбаног медијапана димензија 90х235 цм, са вентилационом решетком од пластифицираног алуминијума у боји врата. Aлуминијумски шток  ових врата специјално је профилисан да се интегрише на UA профил зида помоћу “L” профила, рам крила врата од пуног дрвета димензија 42 x 60мм, испуна je од аустротхерм-а са MDF конструкцијом 2x6мм укупне дебљине 42мм, магнетна брава са кваком “Hoppe”, MDF плоча дебљине 6мм обострано, са завршном обрадом по избору пројектанта (полиуретан у антрацит мат боји), везу крила и штока чине 3 висококвалитетне италијанске “Otlav” штелујуће скривене шарке интегрисани алуминијумски носач завршне паркет лајсне која се израђује од фурнираног или фарбаног MDF-а дебљине 8мм. Позиција обухвата набавку, транспорт и монтажу врата са одбојником, а све према шеми столарије и  упутству пројектанта. Налазе се у подруму. Све мере проверити на лицу места.\nОбрачун по комаду врата.\n\n\n\n\n\n\n\n\n\n\n\n\n\n\n\n\n\n\n\n\n\n\n\n\n\n","комада",3,"x",null,"=",{"$f":"D240*F240","v":{"v":0,"d":"0.00"}}]
[]
[2,"Израда и уградња једнокрилних унутрашњих противпожарних тапет врата од фарбаног медијапана димензија 110х235 цм, са вентилационом решетком од пластифицираног алуминијума у боји врата. Врата  фарбана полиуретаном у антрацит мат боји. Конструкција врата је од кутијастих челичних профила, двострано обложена челичним лимом Шток типа „З“ са три или четири стране (у зависности да ли су врата реверзибилна или фиксна). Крило врата је са испуном од тврдо пресоване камене вуне високе густине са специјалном изолацијом. Финална обрада: пластификација противпожарна у антрацит мат боји. Оков према начину отварања, елоксиран, са 2 шарке штелујуће за аутоматско затварање 3 кључа. Противпожарна челична брава и цилиндар “ЦИСА”. Противпожарна квака марке “Хоппе”, заобљена, пресвучена ПВЦ-ом у црној или алукс боји. Дебљина крила врата је 60 мм.Термоекспандирајућа трака у штоку врата. Врата су реверзибилна, односно могу се уградити као лева или десна. Врата поседују атест о противпожарности Института ИМС у Београду, СРПС У.Ј1.160, на 90 мин. противпожарности. Таблица на крилу врата, која садрзи фабричке податке о сертификату врата и о техничким подацима врата. Врата могу бити опремљена и електронском бравом, која је идеална припрема за контролу приступа која може бити интерфонска, картична или на било који други начин који захтева инвеститор. Брава односно контрола приступа може бити једнострана односно обострана у зависности од потребе. Опционо на врата се могу уградити анти-паник ручице, електронске браве или магнети који испуњавају стандарде што обезбеђује поузданост производа. На врата се такође може уградити и падајући праг који се у тренутку када се врата затворе спусти и задихтује зазор између крила врата и пода. Позиција обухвата набавку транспорт и монтажу врата са одбојником, а све према шеми столарије и  упутству пројектанта.Налазе се у подруму. Све мере проверити на лицу места.\nОбрачун по комаду врата. \n\n\n\n\n\n\n\n\n\n\n\n\n\n\n\n\n\n\n\n\n\n\n\n\n\n\n","комада",1,"x",null,"=",{"$f":"D242*F242","v":{"v":0,"d":"0.00"}}]
[]
[]
[3,"Израда и уградња једнокрилних унутрашњих врата од фарбаног медијапана димензија 80х230 цм. Врата израдити од медијапана фарбаних полиуретаном у белој мат боји. Шток израдити као равну троделну кутију од медијапана, дебљине 40мм у ширини зида, са равним первајз лајснама од медијапана дебљине 19мм и ширине 70мм. Вратно крило је равно резано дебљине 40мм, прилагођено за скривене шарке. У крило уградити укопавајућу браву са два кључа и три скривене шарке. Позиција обухвата набавку транспорт и монтажу врата са одбојником, а све према шеми столарије и  упутству пројектанта. Налазе се у приземљу. Све мере проверити на лицу места.\nОбрачун по комаду врата. \n\n\n\n\n\n\n\n\n\n\n\n\n\n\n\n\n\n\n\n\n\n\n\n\n\n\n\n","комада",1,"X",null,"=",{"$f":"D245*F245","v":{"v":0,"d":"0.00"}}]
[4,"Израда и уградња двокрилних унутрашњих врата од фарбаног медијапана димензија 160х230 цм, садрже вентилациону решетку од пластифицираног алуминијума у боји врата. Врата израдити од медијапана фарбаних полиуретаном у белој мат боји. Шток израдити као равну троделну кутију од медијапана, дебљине 40мм у ширини зида, са равним первајз лајснама од медијапана дебљине 19мм и ширине 70мм. Вратно крило је равно резано дебљине 40мм, прилагођено за скривене шарке. У крило уградити укопавајућу браву са два кључа и три скривене шарке. Позиција обухвата набавку транспорт и монтажу врата са одбојником, а све према шеми столарије и  упутству пројектанта. Налазе се у приземљу. Све мере проверити на лицу места.\nОбрачун по комаду врата. \n\n\n\n\n\n\n\n\n\n\n\n\n\n\n\n\n\n\n\n\n\n\n\n\n\n\n\n\n","комада",1,"X",null,"=",{"$f":"D246*F246","v":{"v":0,"d":"0.00"}}]
[]
[5,"Израда и уградња двокрилних унутрашњих тапет (скривених) врата од фарбаног медијапана димензија 170х235 цм. Aлуминијумски шток  ових врата специјално је профилисан да се интегрише на UA профил зида помоћу “L” профила, рам крила врата од пуног дрвета димензија 42 x 60мм, испуна je од аустротхерм-а са MDF конструкцијом 2x6мм укупне дебљине 42мм, магнетна брава са кваком “Hoppe”, MDF плоча дебљине 6мм обострано, са завршном обрадом по избору пројектанта (полиуретан у антрацит мат боји), везу крила и штока чине 3 висококвалитетне италијанске “Otlav” штелујуће скривене шарке интегрисани алуминијумски носач завршне паркет лајсне која се израђује од фурнираног или фарбаног MDF-а дебљине 8мм. Позиција обухвата набавку транспорт и монтажу врата са одбојником, а све према шеми столарије и  упутству пројектанта. Налазе се у приземљу. Све мере проверити на лицу места.\nОбрачун по комаду врата. \n \n\n\n\n\n\n\n\n\n\n\n\n\n\n\n\n\n\n\n\n\n\n\n\n\n\n\n\n\n","комада",1,"X",null,"=",{"$f":"D248*F248","v":{"v":0,"d":"0.00"}}]
[]
[6,"Израда и уградња преграде од каљеног стакла у приземљу (канцеларија) дебљине 8мм, у алуминијумском раму, са једним вратима (дим.241/311цм). Преграда садржи једна једнокрилна врата (дим.80/230цм, десна) и фиксне делове стакла са стране и изнад. У крило врата уградити хромирану браву са два кључа и хромиране шарке. Позиција обухвата набавку, транспорт и монтажу преграде са одбојницима, а све према шеми столарије и упутству пројектанта. Све мере проверити на лицу места.\nОбрачун по комаду преграде.\n\n \n\n\n\n\n\n\n\n\n\n\n\n\n\n\n\n\n\n\n\n\n\n\n\n\n\n\n\n\n","комада",1,"X",null,"=",{"$f":"D250*F250","v":{"v":0,"d":"0.00"}}]
[7,"Израда и уградња преграде од каљеног стакла за ветробран у приземљу, дебљине 8мм, у алуминијумском раму, са троје врата (дим.484/311цм). Преграда садржи једна централна двокрилна клизна врата (дим.120/230цм) која се отварају на сензор фотоћелија, двоја једнокрилна врата (дим. 70/230цм, лева и десна) и фиксне делове стакла са старне и изнад. У крило врата уградити хромирану браву са два кључа и хромиране шарке. Позиција обухвата набавку, транспорт и монтажу преграде са одбојницима, а све према шеми столарије и упутству пројектанта. Све мере проверити на лицу места.\nОбрачун по комаду преграде.\n\n\n \n\n\n\n\n\n\n\n\n\n\n\n\n\n\n\n\n\n\n\n\n\n\n\n\n\n\n\n\n","комада",1,"x",null,"=",{"$f":"D251*F251","v":{"v":0,"d":"0.00"}}]
[8,"Израда и уградња  фиксне преграде од каљеног стакла дебљине 10мм (дим.127/311цм), у алуминијумском раму. Преграда се налази у приземљу. Позиција обухвата набавку, транспорт и монтажу преграде, а све према шеми столарије и упутству пројектанта. Све мере проверити на лицу места.\nОбрачун по комаду преграде.\n\n\n\n \n\n\n\n\n\n\n\n\n\n\n\n\n\n\n\n\n\n\n\n\n\n\n\n\n\n\n\n\n","комада",1,"X",null,"=",{"$f":"D252*F252","v":{"v":0,"d":"0.00"}}]
[null,"УКУПНО ГРАЂЕВИНСКА СТОЛАРИЈА:",{"$nulls":5},{"$f":"SUM(H223:H252)","v":{"v":0,"d":"0.00"}}]
[]
["18.СТОЛАРСКИ РАДОВИ"]
[1,"Израда, транспорт и монтажа фасадне троугаоне дрвене декорације са летвама (дим. 269x186цм и 328x156цм на југозападној и југоисточној фасади, дим. 274x186цм, 282x186цм и 328 x156цм на североисточној фасади). Елементе израдити према претходно израђеним цртежима и техничкој докуметацији и постојећој фасадној декорацији. Позиција обухвата израду, транспорт и монтажу, а све према упутству пројектанта и Завода за заштиту споменика културе.\nОбрачун по комаду.\n\n\n\n\n \n\n\n\n\n\n\n\n\n\n\n\n\n\n\n\n\n\n\n\n\n\n\n\n\n\n\n\n\n","комада",12,"x",null,"=",{"$f":"D256*F256","v":{"v":0,"d":"0.00"}}]
[2,"Израда, транспорт и монтажа дрвених рукохвата на позицији ограде степеништа / трибина приземље – спрат и галерије. Рукохват израдити од дрвене грађе постојеће кровне конструкције и фиксирати на челичном флаху, а све према упутству пројектанта. Позиција обухвата израду, транспорт, монтажу, обраду и монтажу постојеће дрвене грађе.\nОбрачун по м'.\n\n\n\n\n\n \n\n\n\n\n\n\n\n\n\n\n\n\n\n\n\n\n\n\n\n\n\n\n\n\n\n\n\n\n","м'",42.06,"x",null,"=",{"$f":"D257*F257","v":{"v":0,"d":"0.00"}}]
[null,"УКУПНО СТОЛАРСКИ РАДОВИ:",{"$nulls":5},{"$f":"SUM(H256:H257)","v":{"v":0,"d":"0.00"}}]
[]
["19.ОСТАЛИ ГРАЂЕВИНСКО-ЗАНАТСКИ РАДОВИ"]
[1,"Набавка, транспорт и монтажа коша са таблом и мрежицом. Табла од плексигласа димензија 1800x1050мм са подконструкцијом, кошем и мрежицом, а све у складу са ФИБА стандардима поставити у сали – изложбеном простору приземља. \nОбрачун по комаду.\n\n\n\n\n\n\n \n\n\n\n\n\n\n\n\n\n\n\n\n\n\n\n\n\n\n\n\n\n\n\n\n\n\n\n\n","комада",2,"x",null,"=",{"$f":"D261*F261","v":{"v":0,"d":"0.00"}}]
[2,"Обележавање пода у сали приземља као реплика ознака кошаркашког терена, са граничним линијама, централним линијама и предњим. Централна зона је круг радијуса 1.80м, а полукружнице су радијуса 6.75м, линија слободних бацања повлачи се у дужини од 3.60м паралелно са сваком крајњом линијом тако да је њен крајњи руб удаљен 5.80м од унутрашње ивице крајње линије, а њена средина на замишљеној линији која спаја средине оба крајње линије.\nОбрачун паушално.\n\n\n\n\n\n\n \n\n\n\n\n\n\n\n\n\n\n\n\n\n\n\n\n\n\n\n\n\n\n\n\n\n\n\n\n","паушално",1,"x",null,"=",{"$f":"D262*F262","v":{"v":0,"d":"0.00"}}]
[3,"Громобранска опрема за громобранске инсталације на објекту. \nОбрачун по комплету.\n\n\n\n\n\n\n \n\n\n\n\n\n\n\n\n\n\n\n\n\n\n\n\n\n\n\n\n\n\n\n\n\n\n\n\n","комплет",1,"X",null,"=",{"$f":"D263*F263","v":{"v":0,"d":"0.00"}}]
[4,"Узимање отисака, израда шаблона и калупа постојеће фасадне орнаменталне пластике са монтажом нових елемената према претходно израђеним цртежима и техничкој докуметацији постојеће фасадне декорације.\nОбрачун по комплету.\n\n\n\n\n\n\n \n\n\n\n\n\n\n\n\n\n\n\n\n\n\n\n\n\n\n\n\n\n\n\n\n\n\n\n\n","комплет",1,"X",null,"=",{"$f":"D264*F264","v":{"v":0,"d":"0.00"}}]
[5,"Чишћење камена на сокленом делу фасадних зидова и заштита, са чишћењем фуга. \nЧишћење вршити активним растварачем нечистоће, сa заштитом против поновног прљања, као и са заштитом од ветра и времена.\nЧишћење вршити пажљиво, да се камен не оштети.\nОбрачун по м². \n\n\n\n\n\n\n\n \n\n\n\n\n\n\n\n\n\n\n\n\n\n\n\n\n\n\n\n\n\n\n\n\n\n\n\n\n","м²",54.72,"X",null,"=",{"$f":"D265*F265","v":{"v":0,"d":"0.00"}}]
[6,"Чишћење и обнова постојеће мермерне спомен плоче на уличној фасади објекта.                          Обрачун по комплету.\n\n\n\n\n\n\n\n \n\n\n\n\n\n\n\n\n\n\n\n\n\n\n\n\n\n\n\n\n\n\n\n\n\n\n\n\n","комплет",1,"x",null,"=",{"$f":"D266*F266","v":{"v":0,"d":"0.00"}}]
[7,"Набавка и постављање декоративне фасадне расвете. \nОбрачун по комплету.\n\n\n\n\n\n\n\n \n\n\n\n\n\n\n\n\n\n\n\n\n\n\n\n\n\n\n\n\n\n\n\n\n\n\n\n\n","комплет",1,"x",null,"=",{"v":0,"d":"0.00"}]
[8,"Израда, транспорт и монтажа држача заставе за фасаду од нерђајућег челика у димензијама према постојећим, фарбан у тону по упутству пројектанта. \nОбрачун по комаду.\n\n\n\n\n\n\n\n \n\n\n\n\n\n\n\n\n\n\n\n\n\n\n\n\n\n\n\n\n\n\n\n\n\n\n\n\n","комада",3,"x",null,"=",{"v":0,"d":"0.00"}]
[9,"Израда, транспорт и монтажа табли са називом улице и објекта.\nОбрачун по комаду.\n\n\n\n\n\n\n\n\n \n\n\n\n\n\n\n\n\n\n\n\n\n\n\n\n\n\n\n\n\n\n\n\n\n\n\n\n\n","комада",3,"x",null,"=",{"v":0,"d":"0.00"}]
[10,"Израда и уградња преграде од компакт плоча, дим. (303/260цм) у тоалету. Преграда садржи троја врата дим. 80/230цм и налази се у подруму. Компакт плоче са црним језгром, произвођача Egger, дебљине 10мм на металној конструкцији поставити у дезену и димензијама на основу шеме столарије и према упутству пројектанта. Позиција обухвата набавку, транспорт и монтажу преграде. Све мере проверити на лицу места.\nОбрачун по комаду преграде.\n\n\n\n\n\n\n\n\n \n\n\n\n\n\n\n\n\n\n\n\n\n\n\n\n\n\n\n\n\n\n\n\n\n\n\n\n\n","комада",1,"x",null,"=",{"v":0,"d":"0.00"}]
[11,"Израда и уградња преграде од компакт плоча, дим. (149/260цм) у тоалету. Компакт плоче са црним језгром, произвођача Egger, дебљине 10мм на металној конструкцији поставити у дезену и димензијама на основу шеме столарије и према упутству пројектанта.\nПозиција обухвата набавку, транспорт и монтажу преграде. Све мере проверити на лицу места.\nОбрачун по комаду преграде.\n\n\n\n\n\n\n\n\n\n \n\n\n\n\n\n\n\n\n\n\n\n\n\n\n\n\n\n\n\n\n\n\n\n\n\n\n\n\n","комада",3,"x",null,"=",{"v":0,"d":"0.00"}]
[12,"Израда и уградња преграде од компакт плоча, дим. (90/260цм) у тоалету. Компакт плоче са црним језгром, произвођача Egger, дебљине 10мм на металној конструкцији поставити у дезену и димензијама на основу шеме столарије и према упутству пројектанта. Позиција обухвата набавку, транспорт и монтажу преграде. Све мере проверити на лицу места.\nОбрачун по комаду преграде.\n\n\n\n\n\n\n\n\n\n\n \n\n\n\n\n\n\n\n\n\n\n\n\n\n\n\n\n\n\n\n\n\n\n\n\n\n\n\n\n","комада",1,"x",null,"=",{"v":0,"d":"0.00"}]
[13,"Израда и уградња преграде од компакт плоча, дим. (176/260цм) у тоалету. Преграда се налази у приземљу и садржи двоја врата дим. 70/230цм. Компакт плоче са црним језгром, произвођача Egger, дебљине 10мм на металној конструкцији поставити у дезену и димензијама на основу шеме столарије и према упутству пројектанта. Позиција обухвата набавку, транспорт и монтажу преграде. Све мере проверити на лицу места.\nОбрачун по комаду преграде.\n\n\n\n\n\n\n\n\n\n\n\n \n\n\n\n\n\n\n\n\n\n\n\n\n\n\n\n\n\n\n\n\n\n\n\n\n\n\n\n\n","комада",1,"X",null,"=",{"$f":"D273*F273","v":{"v":0,"d":"0.00"}}]
[14,"Израда и уградња преграде од компакт плоча, дим. (169/260цм) у тоалету. Преграда се налази у приземљу. Компакт плоче са црним језгром, произвођача Egger, дебљине 10мм на металној конструкцији поставити у дезену и димензијама на основу шеме столарије и према упутству пројектанта. Позиција обухвата набавку, транспорт и монтажу преграде. Све мере проверити на лицу места.\nОбрачун по комаду преграде.\n\n\n\n\n\n\n\n\n\n\n\n\n \n\n\n\n\n\n\n\n\n\n\n\n\n\n\n\n\n\n\n\n\n\n\n\n\n\n\n\n\n","комада",1,"x",null,"=",{"$f":"D274*F274","v":{"v":0,"d":"0.00"}}]
[15,"Затварање фасадних отвора подрума перфорираним пластифицираним поцинкованим лимом димензија 57/30. Позиција обухвата израду, набавку и уградњу, све према упутству пројектанта и Завода за заштиту споменика културе. \nСве мере проверити на лицу места.\nОбрачун по комаду.\n\n\n\n\n\n\n\n\n\n\n\n\n\n \n\n\n\n\n\n\n\n\n\n\n\n\n\n\n\n\n\n\n\n\n\n\n\n\n\n\n\n\n","комада",1,"x",null,"=",{"$f":"D275*F275","v":{"v":0,"d":"0.00"}}]
[16,"Затварање фасадних отвора подрума перфорираним пластифицираним поцинкованим лимом димензија 66/30. Позиција обухвата израду, набавку и уградњу, све према упутству пројектанта и Завода за заштиту споменика културе. \nСве мере проверити на лицу места.\nОбрачун по комаду.\n\n\n\n\n\n\n\n\n\n\n\n\n\n\n \n\n\n\n\n\n\n\n\n\n\n\n\n\n\n\n\n\n\n\n\n\n\n\n\n\n\n\n\n","комада",1,"x",null,"=",{"$f":"D276*F276","v":{"v":0,"d":"0.00"}}]
[17,"Набавка, допремање и постављање блажујки дебљине 30мм. Блажујку од брезовог дрвета са фенолним филмом обострано пресвученим, поставити преко челичне конструкције на позицијама изнад соба легата на I спрату.\nОбрачун по м².\n\n\n\n\n\n\n\n\n\n\n\n\n\n\n \n\n\n\n\n\n\n\n\n\n\n\n\n\n\n\n\n\n\n\n\n\n\n\n\n\n\n\n\n","м²",87.34,"x",null,"=",{"$f":"D277*F277","v":{"v":0,"d":"0.00"}}]
[null,"УКУПНО ОСТАЛИ ГРАЂЕВИНСКО-ЗАНАТСКИ РАДОВИ:",{"$nulls":5},{"$f":"SUM(H261:H277)","v":{"v":0,"d":"0.00"}}]
[]
["20. РАДОВИ НА ОПРЕМАЊУ"]
[1,"Набавка и постављање видео паноа - LED  екрана високе резолуције димензија 160x120цм на висећи гипс-картонски зид у изложбеном простору приземља.  Одабир према упутствима пројектанта.\nОбрачун по комплету.\n\n\n\n\n\n\n\n\n\n\n\n\n\n\n \n\n\n\n\n\n\n\n\n\n\n\n\n\n\n\n\n\n\n\n\n\n\n\n\n\n\n\n\n","комплет",1,"x",null,"=",{"$f":"D281*F281","v":{"v":0,"d":"0.00"}}]
[2,"Израда и монтажа пријемног и  пулта билетернице са четири радне столице, све према пројекту и упутствима пројектанта.\nОбрачун по комплету.\n\n\n\n\n\n\n\n\n\n\n\n\n\n\n\n \n\n\n\n\n\n\n\n\n\n\n\n\n\n\n\n\n\n\n\n\n\n\n\n\n\n\n\n\n","комплет",1,"x",null,"=",{"$f":"D282*F282","v":{"v":0,"d":"0.00"}}]
[3,"Набавка и монтажа дизалице за особе са посебним потребама код степеница - трибина у излагачком простору објекта и пред  главним улазом у објекат.     Обрачун по комплету.\n\n\n\n\n\n\n\n\n\n\n\n\n\n\n\n \n\n\n\n\n\n\n\n\n\n\n\n\n\n\n\n\n\n\n\n\n\n\n\n\n\n\n\n\n","комплет",1,"x",null,"=",{"v":0,"d":"0.00"}]
[4,"Набавка отирача за обућу пред улазима у објекат.                    Обрачун по комаду отирача.\n\n\n\n\n\n\n\n\n\n\n\n\n\n\n\n \n\n\n\n\n\n\n\n\n\n\n\n\n\n\n\n\n\n\n\n\n\n\n\n\n\n\n\n\n","комада",3,"x",null,"=",{"v":0,"d":"0.00"}]
[5,"Набавка металних мердевина – пењалица за прилаз ревизионим отворима.                                  Обрачун по комаду мердевина.\n\n\n\n\n\n\n\n\n\n\n\n\n\n\n\n \n\n\n\n\n\n\n\n\n\n\n\n\n\n\n\n\n\n\n\n\n\n\n\n\n\n\n\n\n","комада",2,"x",null,"=",{"v":0,"d":"0.00"}]
[6,"Ручни противпожарни апарат за гашење под сталним притиском азота, тип ''S-9''.                               Обрачун по комаду апарата.","комада",10,"x",null,"=",{"v":0,"d":"0.00"}]
[7,"Ручни противпожарни апарат за гашење са угљен-диоксидом, тип ''CO2-5''.                                      Обрачун по комаду апарата.","комада",2,"x",null,"=",{"v":0,"d":"0.00"}]
[8,"Евентуално постављање система дојаве пожара са израдом техничке документације.","паушално",1,"x",null,"="]
[null,"УКУПНО РАДОВИ НА ОПРЕМАЊУ:",{"$nulls":5},{"$f":"SUM(H281:H288)","v":{"v":0,"d":"0.00"}}]
[]
["21. ВОДОВОД И КАНАЛИЗАЦИЈА"]
[null,"СПОЉНЕ ХИДРОТЕХНИЧКЕ ИНСТАЛАЦИЈЕ - ПАРТЕР"]
[null,"ВОДОВОД И КАНАЛИЗАЦИЈА"]
[1,"Израда прикључка на градску водоводну мрежу.                             Обрачун по комаду.","комада",1,"x",null,"=",{"$f":"D294*F294","v":{"v":0,"d":"0.00"}}]
[2,"Машински ископ земљишта III и IV категорије за израду рова ширине 0.90м. \nОбрачун по м³.","м³",28,"x",null,"=",{"v":0,"d":"0.00"}]
[3,"Набавка транспорт и уграђивање песка који служи као тампон слој испод и око цеви.\nОбрачун по м³.","м³",5,"x",null,"=",{"v":0,"d":"0.00"}]
[4,"Затрпавање рова шљунком са набијањем у слојевима од 30цм на месту где цев пролази преко пута.\nОбрачун по м³.","м³",23,"x",null,"=",{"v":0,"d":"0.00"}]
[5,"Транспорт вишка материјала од ископа до места за депонију на удаљености до 4км.                          Обрачун по м³.","м³",6,"x",null,"=",{"v":0,"d":"0.00"}]
[6,"Бетонирање анкер блокова бетоном МБ20.\nОбрачун по м³.","м³",28,"x",null,"=",{"v":0,"d":"0.00"}]
[7,"Набавка транспорт и монтажа ТПЕ цеви за радни притисак од 10 бари.                                     Обрачун по м'."]
[null,"ø25мм","м'",55,"x",null,"=",{"$f":"D301*F301","v":{"v":0,"d":"0.00"}}]
[null,"ø65мм","м'",30,"x",null,"=",{"$f":"D302*F302","v":{"v":0,"d":"0.00"}}]
[null,"ø80мм","м'",25,"x",null,"=",{"$f":"D303*F303","v":{"v":0,"d":"0.00"}}]
[8,"Набавка транспорт и монтажа ливеногвоздених\nфазонских комада. \nОбрачун је по комаду.","комада",22,"x",null,"=",{"$f":"D304*F304","v":{"v":0,"d":"0.00"}}]
[9,"Набавка транспорт и монтажа :\n"]
[null,"О.З.ф.25мм","комада",2,"x",null,"=",{"$f":"D306*F306","v":{"v":0,"d":"0.00"}}]
[null,"О.З.ф.25мм","комада",1,"x",null,"=",{"$f":"D307*F307","v":{"v":0,"d":"0.00"}}]
[null,"Обрачун је по комаду."]
[10,"Набавка и уградња водомера домаће производње.\n"]
[null,"ND 25мм","комада",1,"x",null,"=",{"$f":"D310*F310","v":{"v":0,"d":"0.00"}}]
[null,"ND 80мм","комада",1,"x",null,"=",{"$f":"D311*F311","v":{"v":0,"d":"0.00"}}]
[null,"Обрачун је по комаду."]
[11,"Набавка транспорт и монтажа подземног хидранта без опреме са осигурањем хидрантске главе ND80мм.                                             Обрачун је по комаду.                                           ","комада",1,"x",null,"=",{"$f":"D313*F313","v":{"v":0,"d":"0.00"}}]
[12,"Испитивање цевовода под притиском према датим смерницама за испитивање цевовода.                                          Обрачун је по м'.","м'",110,"x",null,"=",{"$f":"D314*F314","v":{"v":0,"d":"0.00"}}]
[13,"Дезинфекција цевовода према прописима завода за заштиту здравља и санитарне инспекције.   Обрачун је по м'.","м'",110,"x",null,"=",{"$f":"D315*F315","v":{"v":0,"d":"0.00"}}]
[14,"Непредвиђени радови.                     Обрачун је паушално.","паушално",10,"x",null,"=",{"$f":"D316*F316","v":{"v":0,"d":"0.00"}}]
[]
[null,"ШАХТОВИ"]
[1,"Машински и ручни ископ земљишта III и IV категорије за израду водомерног шахта. Обрачун је по м³.","м³",2,"x",null,"=",{"$f":"D319*F319","v":{"v":0,"d":"0.00"}}]
[2,"Набавка транспорт и уграђивање шљунка који служи као тампон слој дебљине д=10цм.                       Обрачун је по м³.","м³",0.4,"x",null,"=",{"v":0,"d":"0.00"}]
[3,"Транспорт вишка материјала од ископа до места за депонију на удаљености до 4км.                         Обрачун је по м³.","м³",1,"x",null,"=",{"v":0,"d":"0.00"}]
[4,"Бетонирање доње плоче зидова и горње плоче шахта бетоном МБ20. \nОбрачун је по м³ заједно са оплатом.","м³",4,"x",null,"=",{"v":0,"d":"0.00"}]
[5,"Набавка транспорт исправљање савијање и уграђивање бетонског гвожђа.\nОбрачун је по кг.","кг",65,"x",null,"=",{"v":0,"d":"0.00"}]
[6,"Набавка уграђивање и заштита пењалица од корозије.\nОбрачун је по комаду.","комада",3,"x",null,"=",{"v":0,"d":"0.00"}]
[7,"Набавка и постављање ливено-гвозденог поклопца заједно са рамом за лако оптерећење.\nОбрачун је по комаду.","комада",1,"x",null,"=",{"v":0,"d":"0.00"}]
[8,"Израда прикључка на градску канализациону\nмрежу.\nОбрачун је по комаду.","комада",1,"x",null,"=",{"v":0,"d":"0.00"}]
[9,"Машински ископ земљишта III и IV категорије за израду рова ширине 0.90м. \nОбрачун је по м³.","м³",4.3,"x",null,"=",{"v":0,"d":"0.00"}]
[10,"Набавка транспорт и уграђивање песка који служи као тампон слој испод и око цеви. \nОбрачун је по м³.","м³",0.8,"x",null,"=",{"v":0,"d":"0.00"}]
[11,"Затрпавање рова шљунком са набијањем у\nслојевима од 30цм на месту где цев пролази преко пута.\nОбрачун је по м³.","м³",1.2,"x",null,"=",{"v":0,"d":"0.00"}]
[12,"Транспорт вишка материјала од ископа до места за депонију на удаљености до 4км.                         Обрачун је по м³.","м³",2.3,"x",null,"=",{"v":0,"d":"0.00"}]
[13,"Разупирање рова до пројектоване дубине и ширине према пројекту са сувом и здравом грађом. Разупирање вршити по целој дубини рова а на местима где је потребно. За сигурност при раду и обим подграђивања искључиво је одговоран извођач радова.\nОбрачун је по м² разупрте површине.","м²",12,"x",null,"=",{"v":0,"d":"0.00"}]
[14,"Набавка транспорт и монтажа ПВЦ канализационих цеви ø 160мм.\nОбрачун је по м'.","м'",6,"x",null,"=",{"v":0,"d":"0.00"}]
[15,"Испитивање цевовода на\nводонепропустљивост према упутству надзорног органа.\nОбрачун је по м'.","м'",5,"x",null,"=",{"v":0,"d":"0.00"}]
[16,"Обележавање пројектоване трасе фекалне\nканализације на терену. \nОбрачун је по м'.","м'",5,"x",null,"=",{"v":0,"d":"0.00"}]
[]
[null,"ДРЕНАЖНИ СИСТЕМ"]
[1,"Набавка и монтажа ПВЦ дренажних цеви од тврдог поливинилхлорида, пречника 125 мм, у рову заједно са фасонским комадима и материјалом за спајање. Поставити само исправне цеви и фасонске комаде, који имају атесте. Ревизиони комади морају бити правилно дихтовани са поклопцима.                                Обрачун по м’ цеви.\n\n\n\n\n\n \n\n\n\n\n\n\n\n\n\n\n\n\n\n\n\n\n\n\n\n\n\n\n\n\n\n\n\n\n","м'",40.05,"x",null,"=",{"$f":"D337*F337","v":{"v":0,"d":"0.00"}}]
[2,"Набавка и постављање геотекстила за дренажни систем.\nОбрачун комплетно.\n\n\n\n\n\n \n\n\n\n\n\n\n\n\n\n\n\n\n\n\n\n\n\n\n\n\n\n\n\n\n\n\n\n\n","комплетно",1,"x",null,"=",{"$f":"D338*F338","v":{"v":0,"d":"0.00"}}]
[]
[null,"ХИДРОТЕХНИЧКЕ ИНСТАЛАЦИЈЕ - ОБЈЕКАТ"]
[1,"Набавка и уградња ПВЦ водоводних цеви и фазонских комада за радни притисак 10 бара.                                                 Обрачун по м'.                                                                        "]
[null,"цеви пречника 20мм","м'",38,"x",null,"=",{"$f":"D342*F342","v":{"v":0,"d":"0.00"}}]
[null,"цеви пречника 25мм","м'",5,"x",null,"=",{"$f":"D343*F343","v":{"v":0,"d":"0.00"}}]
[2,"Заштита водоводне цеви при пролазу кроз зидове и таванице, челичном цеви за два пречника већим од спољног пречника цеви, са заптивањем оба краја ужетом у битумену или трајно пластичним китом.\nОбрачун је по комаду.","комада",3,"x",null,"=",{"$f":"D344*F344","v":{"v":0,"d":"0.00"}}]
[3,"Топлотна изолација водоводних цеви са полиетиленском пеном.\nОбрачун је по м'.","м'",43,"x",null,"=",{"$f":"D345*F345","v":{"v":0,"d":"0.00"}}]
[4,"Набавка и уграђивање пропустних вентила са\nточком или капом.\nОбрачун је по комаду."]
[null,"Пречника 20мм","комада",4,"x",null,"=",{"$f":"D347*F347","v":{"v":0,"d":"0.00"}}]
[null,"Пречника 25мм","комада",2,"x",null,"=",{"v":0,"d":"0.00"}]
[5,"Набавка и уграђивање испустних вентила пречника 25мм.\nОбрачун је по комаду.","комада",2,"x",null,"=",{"v":0,"d":"0.00"}]
[6,"Испитивање, испирање и дезинфекција водоводне мреже, после завршене монтаже цеви.\nОбрачун је по м' цеви.","м'",43,"x",null,"=",{"$f":"D350*F350","v":{"v":0,"d":"0.00"}}]
[7,"Набавка и постављање обујмица.\nОбрачун је по комаду.","комада",28,"x",null,"=",{"v":0,"d":"0.00"}]
[8,"Набавка и постављање унутрашњих зидних\nпожарних хидраната у металном ормару са стакленим вратима и комплетном опремом.\nОбрачун је по комаду.","комада",1,"x",null,"=",{"v":0,"d":"0.00"}]
[]
[null,"ФЕКАЛНА КАНАЛИЗАЦИЈА - ОБЈЕКАТ"]
[1,"Набавка и уграђивање К.К. - ПВЦ цеви и спојних елемената за кућну канализацију.\nОбрачун је по м'."]
[null,"Цеви пречника 50мм","м'",13,"x",null,"=",{"$f":"D356*F356","v":{"v":0,"d":"0.00"}}]
[null,"Цеви пречника 75мм","м'",7,"x",null,"=",{"$f":"D357*F357","v":{"v":0,"d":"0.00"}}]
[null,"Цеви пречника 110мм","м'",31,"x",null,"=",{"$f":"D358*F358","v":{"v":0,"d":"0.00"}}]
[null,"Цеви пречника 160мм","м'",4,"x",null,"=",{"$f":"D359*F359","v":{"v":0,"d":"0.00"}}]
[2,"Набавка и уграђивање вентилационих глава\nод поцинкованог лима д=0.55мм, дужине 1.50м.\nОбрачун је по комаду\nпречника 150мм.","комада",1,"X",null,"=",{"$f":"D360*F360","v":{"v":0,"d":"0.00"}}]
[3,"Набавка и уграђивање ливено-гвоздених подних сливника са ростфрајном решетком.\nОбрачун је по комаду."]
[null,"Пречника 70мм","комада",2,"X",null,"=",{"$f":"D362*F362","v":{"v":0,"d":"0.00"}}]
[null,"Пречника 100мм","комада",1,"X",null,"=",{"$f":"D363*F363","v":{"v":0,"d":"0.00"}}]
[4,"Набавка и постављање обујмица.\nОбрачун је по комаду.","комада",24,"X",null,"=",{"$f":"D364*F364","v":{"v":0,"d":"0.00"}}]
[5,"Набавка и постављање вратанаца од ростфраја.\nОбрачун је по комаду.","комада",2,"X",null,"=",{"$f":"D365*F365","v":{"v":0,"d":"0.00"}}]
[]
[null,"САНИТАРНИ УРЕЂАЈИ - ОБЈЕКАТ"]
[1,"Набавка и уграђивање ВЦ шоље ,,А\" класе, са уградним водокотлићем, пластчном\nдаском и поклопцем, ПВЦ везом и\nхромираним угаоним вентилом.  ВЦ шоља је са одводом у зиду. Обрачун је по комаду комплетно уграђено.\n","комада",6,"X",null,"=",{"$f":"D368*F368","v":{"v":0,"d":"0.00"}}]
[2,"Набавка и уграђивање керамичког умиваоника са сифоном. Висина постављања\n70 цм од готовог пода.           Обрачун је по комаду комплетно уграђеног умиваоника димензије 50/40цм.\n","комада",4,"X",null,"=",{"$f":"D369*F369","v":{"v":0,"d":"0.00"}}]
[3,"Набавка и уграђивање трокадера са одговарајућом батеријом за топлу и хладну воду.","комада",1,"X",null,"=",{"v":0,"d":"0.00"}]
[4,"Набавка и уграђивање писора од керамике са пратећом опремом. Обрачун је по комаду.\n","комада",3,"X",null,"=",{"$f":"D371*F371","v":{"v":0,"d":"0.00"}}]
[5,"Набавка и уграђивање батерије на умиваонику или судоперу за топлу и хладну воду.\nОбрачун је по комаду комплетно\nуграђене батерије.","комада",5,"X",null,"=",{"v":0,"d":"0.00"}]
[6,"Набавка и уграђивање проточног\nелектричног бојлера, потрошња енергије само када се троши топла вода, снаге 6кw са уграђивањем одговарајућих држача, доња монтажа, спојних цеви.                                                   Обрачун је по комаду комплетно монтирано и прикључено на електро и водоводну мрежу.","комада",2,"X",null,"=",{"$f":"D373*F373","v":{"v":0,"d":"0.00"}}]
[7,"Набавка и уграђивање проточног\nелектричног бојлера, потрошња енергије само када се троши топла вода, снаге 6кw\nса уграђивањем одговарајућих држача, висока монтажа изнад трокадера, спојних цеви.               Обрачун је по комаду комплетно\nмонтирано и прикључено на електро и водоводну мрежу.","комада",1,"X",null,"=",{"$f":"D374*F374","v":{"v":0,"d":"0.00"}}]
[8,"Набавка уграђивање етажер полице са огледалом, превртног дозатора за сапун, држача роло папира за брисање руку. \nОбрачун је по комаду уграђеног\nкомплета.","комада",4,"X",null,"=",{"v":0,"d":"0.00"}]
[9,"Набавка и постављање кутије за роло тоалет папаир.\nОбрачун је по комаду.","комада",6,"X",null,"=",{"$f":"D376*F376","v":{"v":0,"d":"0.00"}}]
[null,"УКУПНО ВОДОВОД И КАНАЛИЗАЦИЈА:",{"$nulls":5},{"$f":"SUM(H294:H376)","v":{"v":0,"d":"0.00"}}]
[]
["22. ЕЛЕКТРОЕНЕРГЕТСКЕ ИНСТАЛАЦИЈЕ - ЈАКА СТРУЈА"]
["СПОЉАШЊЕ ЕЛЕКТРОЕНЕРГЕТСКО НАПАЈАЊЕ И ИНСТАЛАЦИЈЕ"]
[1,"Ископ рова и затрпавање димензија 80x40цм за полагање кабла од ССМРО на граници парцеле и јавне површине до КПК на фасади објекта. Позиција ССМРО и КПК приказана је  на ситуационом цртежу. У позицији је дата укупна дужина рова.   ","м",40,"X",null,"=",{"$f":"D381*F381","v":{"v":0,"d":"0.00"}}]
[2,"Испорука и уградња цеви ХДПЕ коруговане Ф110мм, за израду кабловске канализације у ров из претходне позиције. У позицији је дата укупна дужина цеви.    ","м",45,"X",null,"=",{"$f":"D382*F382","v":{"v":0,"d":"0.00"}}]
[3,"Испорука и полагање ПВЦ позор траке у рову изнад цеви са кабловима.  ","м",40,"X",null,"=",{"$f":"D383*F383","v":{"v":0,"d":"0.00"}}]
[4,"Испорука и полагање ПВЦ ГАЛ штитника у рову изнад цеви са каблова.  ","м",40,"X",null,"=",{"$f":"D384*F384","v":{"v":0,"d":"0.00"}}]
[5,"Испорука и уградња траке Фе/Зн 25x4мм за израду уземњивача ССМРО, обрачунато са укрсним комадима и свим повезивањима. Трака се полаже у исти ров из позиције 1.1. Трака се на једној страни повезује на ГСИП на фасади, а на другој страни у ССМРО на ПЕ шину за уземљење ормана и струјних мерних трансформатора.    ","м",50,"X",null,"=",{"$f":"D385*F385","v":{"v":0,"d":"0.00"}}]
[6,"Испорука, уградња и повезивање напојног кабла од ССМРО до КПК. Кабал се полаже у већ припремљену кабловску канализацију из позиције 1.1. и коруговану ХДПЕ цев из позиције 1.2. Предвиђен је следећи кабал:"]
[null,"PP00-A 4x150мм2","м",50,"X",null,"=",{"$f":"D387*F387","v":{"v":0,"d":"0.00"}}]
[7,"Испорука и уградња термоскупљајућег бужира за спољну монтажу са обрадом крајева каблова, испоруком и уградњом стопица Ал/Цу150мм2/10, комплет са повезивањем.    ","ком.",8,"X",null,"=",{"v":0,"d":"0.00"}]
[8,"Испитивање отпора изолованости, галванске непрекидности, отпорности уземљења, заштите од опасног напона додира са издавањем стручног налаза.   ","комплет",1,"X",null,"=",{"$f":"D389*F389","v":{"v":0,"d":"0.00"}}]
["РАЗВОДНИ ОРМАНИ И РАЗВОДНЕ ТАБЛЕ"]
[1,"Испорука и уградња КПК ормана израђеног од поликарбоната димензија 400x800x250 мм (доњи део) са једаним трополним изоловани растављач (дришером) 250А, три ХБ осигурача номиналне струје 125А, Цу бакарном шином 25*4мм укупне дужине 0,3мм, 2 ком потпорних изолатора 1кВ висине 50мм/М10 за монтажу бакарне шине за повезивање N (нултог)  проводника.   ","м",1]
[null,"Комплет испоручено, намонтирано, повезано, испитано и пуштено у рад. ","ком.",1,"X",null,"=",{"$f":"D392*F392","v":{"v":0,"d":"0.00"}}]
[2,"Испорука и уградња главног разводног ормана ГРО, израђеног од два пута декапираног лима, заштићеног од корозије пластификацијом у РАЛ боји по избору инвеститора, са универзалном бравицом и кључем са уводима са горње стране и изводима са горње стране у механичкој заштити IP54. Орман је предвиђен као једноделни за уградњу у зид са следећом опремом:   "]
[null,"ГРО: (ширина 800 x дубина 250 x висина 1200мм) ","ком.",1]
[null,"Компактни нисконапонски прекидач номиналне струје 250А,690В,3П, 25kA,  са подесивом прекострујном заштитом 0,4...1xIn, краткоспојном заштитом 6...10xIn и пренапонским окидачем 230 VAC за  даљинско искључење.  ","ком.",1]
[null,"Cu шине 30*4мм","м",4]
[null,"Одводници пренапона SPCT2-280/4","ком.",1]
[null,"Изолована трополно раставнива летва 160 А, 3P","ком.",6]
[null,"Ножасти високоучински осигурач NV 80А, Гг","ком.",3]
[null,"Ножасти високоучински осигурач NV 63А, Гг","ком.",3]
[null,"Ножасти високоучински осигурач NV 40А, Гг","ком.",6]
[null,"Ножасти високоучински осигурач NV 35А, Гг","ком.",3]
[null,"Аутоматски прекидач 10 А, 1P,\"C\", 10 Ка","ком.",22]
[null,"Аутоматски прекидач 16 А, 1P, \"C\", 10 кА ","ком.",23]
[null,"Аутоматски прекидач 32 А, 1P, \"C\", 10 кА","ком.",1]
[null,"Аутоматски прекидач 40 А, 3P, \"C\", 10 кА","ком.",1]
[null,"ZUDS 2P, 40/0,03 А ","ком.",1]
[null,"ZUDS 2P, 16/0,03 А","ком.",1]
[null,"Инсталациони контактор 16А,1P,1NО 230 В, 50 Hz  ","ком.",6]
[null,"Гребенасти прекидач за монтажу на врата ормана 1-0-2, 10А, 1P ","ком.",1]
[null,"Астрономски часовник, ноћни релеј OPANAK SOFT  ","ком.",1]
[null,"Сигнална лед сијалица, зелена 230 В, 50 Hz, на врата ","ком.",3]
[null,"Хавариски тастер-печурка 10 А, на вратима ормана","ком.",1]
[null,"Ситан неспецифициран рад и материјал (клеме, сабирнице,пок канали, уводнице, изолатори, ознаке и др.)","ком.",1]
[null,"Комплет испоручено, намонтирано, повезано, испитано и пуштено у рад.","компл.",1,"X",null,"=",{"$f":"D415*F415","v":{"v":0,"d":"0.00"}}]
[3,"Испорука и уградња разводног ормана RO-PR (ПРИЗЕМЉА), израђеног од два пута декапираног лима, заштићен од корозије пластификацијом у РАЛ боји по избору инвеститора, са универзалном бравицом и кључем са уводима и изводима са горње стране у механичкој заштити IP 54. Орман је предвиђен као уградни са следећом опремом:"]
[null,"RОPR,: (ширина 100x дубина 250x висина1000мм)",null,1]
[null,"Компактни нисконапонски прекидач номиналне струје 100А,690В,3P, 25kA,  са подесивом прекострујном заштитом 0,4...1xIn, краткоспојном заштитом 6...10xIn.","ком.",1]
[null,"Изоловано трополно раставно постоље (дришер) 160 А, 3P","ком.",1]
[null,"Аутоматски прекидач 10 А, 1P,\"C\", 10 Ка","ком.",35]
[null,"Аутоматски прекидач 16 А, 1P, \"C\", 10 Ка.","ком.",21]
[null,"Инсталациони контактор 16А,1P, 1NO 230 В, 50 Hz.","ком.",6]
[null,"Инсталациони контактор 16А,3P, 3NO 230 V, 50 Hz.","ком.",4]
[null,"Сигнална лед сијалица, зелена 230 V, 50 Hz, на врата.","ком.",3]
[null,"Ситан неспецифициран рад и материјал (клеме, сабирнице,пок канали, уводнице, изолатори, ознаке и др.)","ком.",1]
[null,"Комплет испоручено, намонтирано, повезано, испитано и пуштено у рад.","компл.",1,"X",null,"=",{"$f":"D426*F426","v":{"v":0,"d":"0.00"}}]
[4,"Испорука и уградња разводног ормана RO-S (СПРАТА), израђеног од два пута декапираног лима, заштићен од корозије пластификацијом у РАЛ боји по избору инвеститора, са универзалном бравицом и кључем са уводима и изводима са горње стране у механичкој заштити IP 54. Орман је предвиђен као уградни са следећом опремом:"]
[null,"RО-S,: (ширина 1000x дубина 250x висина1000мм)",null,1]
[null,"Компактни нисконапонски прекидач номиналне струје 125А,690V,3P, 25kA,  са подесивом прекострујном заштитом 0,4...1xIn, краткоспојном заштитом 6...10xIn.","ком.",1]
[null,"Разводни блок 4P, 160A, улаз 1x50mm², излаз 3x35+8x16mm² ","ком.",1]
[null,"Аутоматски прекидач 10 А, 1P,\"C\", 10 Ка.","ком.",35]
[null,"Аутоматски прекидач 16 А, 1P, \"C\", 10 кА.","ком.",18]
[null,"Аутоматски прекидач 32 А, 3P, \"C\", 10 кА.","ком.",2]
[null,"Инсталациони контактор 16А,1P, 1NО 230 В, 50 Hz","ком.",9]
[null,"Инсталациони контактор 16А,3P, 3NО 230 V, 50 Hz","ком.",7]
[null,"Сигнална лед сијалица, зелена 230 V, 50 Hz, на врата","ком.",3]
[null,"Ситан неспецифициран рад и материјал (клеме, сабирнице,пок канали, уводнице, изолатори, ознаке и др.)","ком.",1]
[null,"Комплет испоручено, намонтирано, повезано, испитано и пуштено у рад.","компл.",1,"X",null,"=",{"$f":"D438*F438","v":{"v":0,"d":"0.00"}}]
[5,"Испорука и уградња разводног ормана RО-POD. (ПОДРУМА), израђеног од два пута декапираног лима, заштићен од корозије пластификацијом у РАЛ боји по избору инвеститора, са универзалном бравицом и кључем са уводима и изводима са горње стране у механичкој заштити IP 54. Орман је предвиђен као уградни са следећом опремом:"]
[null,"RО-PОD,: (ширина 600x дубина 250x висина800мм)",null,1]
[null,"Компактни нисконапонски прекидач номиналне струје 63А,690V,3P, 25kA,  са подесивом прекострујном заштитом 0,4...1xIn, краткоспојном заштитом 6...10xIn.","ком.",1]
[null,"Аутоматски прекидач 10 А, 1P,\"C\", 10 Ка.","ком.",14]
[null,"Аутоматски прекидач 16 А, 1P, \"C\", 10 кА.","ком.",8]
[null,"Аутоматски прекидач 32 А, 1P, \"C\", 10 кА","ком.",1]
[null,"Инсталациони контактор 16А,1P, 1NО 230 В, 50 Hz.","ком.",4]
[null,"ZUDS 2P, 40/0,03 А","ком.",1]
[null,"ZUDS 2P, 16/0,03 А","ком.",2]
[null,"Сигнална лед сијалица, зелена 230 В, 50 Hz, на врата","ком.",3]
[null,"Ситан неспецифициран рад и материјал (клеме, сабирнице,пок канали, уводнице, изолатори, ознаке и др.)","ком.",1]
[null,"Комплет испоручено, намонтирано, повезано, испитано и пуштено у рад.","компл.",1,"X",null,"=",{"$f":"D450*F450","v":{"v":0,"d":"0.00"}}]
[6,"Испорука и уградња разводног ормана RО-R. (РАСВЕТЕ), израђеног од два пута декапираног лима, заштићен од корозије пластификацијом у РАЛ боји по избору инвеститора, са универзалном бравицом и кључем са уводима и изводима са горње стране у механичкој заштити IP 54. Орман је предвиђен као уградни са следећом опремом:"]
[null,"RО-Р,: (ширина 250x дубина 150x висина 300мм)",null,1]
[null,"Гребенасти прекидач за монтажу на врата ормана 1-0, 10А, 1П","компл.",7]
[null,"Ситан неспецифициран рад и материјал (клеме, сабирнице,пок канали, уводнице, изолатори, ознаке и др.)","компл.",1]
[null,"Комплет испоручено, намонтирано, повезано, испитано и пуштено у рад.","компл.",1,"X",null,"=",{"$f":"D455*F455","v":{"v":0,"d":"0.00"}}]
[null,"НАПОЈНИ И ИНСТАЛАЦИОНИ КАБЛОВИ, НОСАЧИ И ПРИБОР"]
[1,"Испорука и полагање-уградња  каблова 1кВ, са бакарним жилама. Каблове положити делимично у PNK регалима, а делимично у гипсаном зиду и у бетонском зиду испод малтера. Каблови су следећег типа и пресека:"]
[null,"N2XH 1x70 мм2","м",80,"X",null,"=",{"$f":"D458*F458","v":{"v":0,"d":"0.00"}}]
[null,"N2XH-Ј 1x35 мм2","м",20,"X",null,"=",{"$f":"D459*F459","v":{"v":0,"d":"0.00"}}]
[null,"N2XH-Ј 1x25 мм2","м",60,"X",null,"=",{"$f":"D460*F460","v":{"v":0,"d":"0.00"}}]
[null,"N2XH-Ј 1x16 мм2","м",20,"X",null,"=",{"$f":"D461*F461","v":{"v":0,"d":"0.00"}}]
[null,"N2XH-Ј 5x16 мм2","м",55,"X",null,"=",{"$f":"D462*F462","v":{"v":0,"d":"0.00"}}]
[null,"N2XH-Ј 5x10 мм2","м",20,"X",null,"=",{"$f":"D463*F463","v":{"v":0,"d":"0.00"}}]
[null,"N2XH-Ј 5x6 мм2","м",80,"X",null,"=",{"$f":"D464*F464","v":{"v":0,"d":"0.00"}}]
[null,"PPOO-Y 5x10 мм2","м",70,"X",null,"=",{"$f":"D465*F465","v":{"v":0,"d":"0.00"}}]
[null,"N2XH-Ј 3x6 мм2","м",40,"X",null,"=",{"$f":"D466*F466","v":{"v":0,"d":"0.00"}}]
[null,"N2XH-Ј 5x1,5 мм2","м",600,"X",null,"=",{"$f":"D467*F467","v":{"v":0,"d":"0.00"}}]
[null,"N2XH-Ј 3x2,5 мм2","м",2050,"X",null,"=",{"$f":"D468*F468","v":{"v":0,"d":"0.00"}}]
[null,"N2XH 3x1,5 мм2","м",1900,"X",null,"=",{"$f":"D469*F469","v":{"v":0,"d":"0.00"}}]
[2,"Испорука и уградња ПНК регала, комплет са носећим елементима за качење на плафон и зид са типским кривинама и поклопцима. Обрачунато по дужном метру уграђеног регала."]
[null,"ПНК 200, висине 50мм","м",50,"X",null,"=",{"$f":"D471*F471","v":{"v":0,"d":"0.00"}}]
[null,"Зидна конзола за PNK 200","м",40,"X",null,"=",{"$f":"D472*F472","v":{"v":0,"d":"0.00"}}]
[null,"\"UD\" плафонски носач","м",40,"X",null,"=",{"$f":"D473*F473","v":{"v":0,"d":"0.00"}}]
[null,"\"U\" плафонски стуб l=300мм","м",40,"X",null,"=",{"$f":"D474*F474","v":{"v":0,"d":"0.00"}}]
[null,"Шафовска роба за спајање PNK регала (торбан вијак М6,М8 назубљене матице М6,М8, анкер типлови за бетон ф8мм)","паушално",1,"X",null,"=",{"$f":"D475*F475","v":{"v":0,"d":"0.00"}}]
[3,"Испорука и уградња HF гибљивих црева за вођење појединачних каблова изнад спуштеног плафона, у гипсаним зидовима и по потреби у зиду испод малтера."]
[null,"Ф16мм","м",2500,"X",null,"=",{"$f":"D477*F477","v":{"v":0,"d":"0.00"}}]
[null,"Ф23мм","м",600,"X",null,"=",{"v":0,"d":"0.00"}]
[4,"Испорука и уградња пластифицираног сапа црева за вођење појединачних каблова ван објекта (за напајање спољних јединица клима)."]
[null,"Ф32мм","м",70,"X",null,"=",{"$f":"D480*F480","v":{"v":0,"d":"0.00"}}]
[5,"Против пожарни материјал за затварање отвора за пролаз каблова из једног простора у други и за премазивање каблова у дужини од једног метра са леве и десне стране пролаза (за укупну површину свих отвора) и за дужине регала више од 100м непрекидно, премазивање у дужини од 1м на сваких 5м. Као база за такав атест служи стандард СРПС.Н.Ц0.075 на основу кога треба обавити одговарајућа испитивања, а за материјал који се користи за заптивање отвора у зидовима служи стандард СРПС.У.Ј1.090.","паушално",1,"X",null,"=",{"$f":"D481*F481","v":{"v":0,"d":"0.00"}}]
[6,"Ситан неспецифициран рад и материјал (гипс, обујмице,пвц везице, типлови, холшафови...).","паушално",1,"X",null,"=",{"$f":"D482*F482","v":{"v":0,"d":"0.00"}}]
[null,"ИНСТАЛАЦИОНА ОПРЕМА"]
[1,"Инсталациони материјал модуларни за уградњу у зид BTICINO Classia  или сличан, комплет са инсталационим кутијама, испоручен уграђен и повезан:"]
[null,"Склопка обична 10 А,2М ","ком.",10,"X",null,"=",{"$f":"D485*F485","v":{"v":0,"d":"0.00"}}]
[null,"Склопка наизменична 10 А,2М","ком.",2,"X",null,"=",{"$f":"D486*F486","v":{"v":0,"d":"0.00"}}]
[null,"Прикључница монофазна 16 А, 230 V, модуларна 2М, бела ИП20","ком.",81,"X",null,"=",{"$f":"D487*F487","v":{"v":0,"d":"0.00"}}]
[null,"Прикључница монофазна са поклопцем и заштитом од случајног додира модуларна, 16 А, 230 V, бела ИП44","ком.",8,"X",null,"=",{"$f":"D488*F488","v":{"v":0,"d":"0.00"}}]
[null,"Модуларна кутија 7М+ носач механизма+ маска","ком.",3,"X",null,"=",{"$f":"D489*F489","v":{"v":0,"d":"0.00"}}]
[null,"Модуларна кутија 4М+ носач механизма+ маска","ком.",31,"X",null,"=",{"$f":"D490*F490","v":{"v":0,"d":"0.00"}}]
[null,"Модуларна кутија 2М+ носач механизма+ маска","ком.",78,"X",null,"=",{"$f":"D491*F491","v":{"v":0,"d":"0.00"}}]
[null,"Разводне кутије 100х100 мм, ф78 за уградњу у зид","ком.",35,"X",null,"=",{"$f":"D492*F492","v":{"v":0,"d":"0.00"}}]
[null,"Разводне кутије 80х80 мм ОГ","ком.",50,"X",null,"=",{"$f":"D493*F493","v":{"v":0,"d":"0.00"}}]
[2,"Инсталациони материјал модуларни за уградњу парапетни развод у пулту:"]
[null,"Парапетни развод 105x65, бео, без поклопца","м",8,"X",null,"=",{"$f":"D495*F495","v":{"v":0,"d":"0.00"}}]
[null,"Поклопац за парапет 105x65, бео","м",8,"X",null,"=",{"$f":"D496*F496","v":{"v":0,"d":"0.00"}}]
[null,"Спојница за парапет 105x65","м",3,"X",null,"=",{"$f":"D497*F497","v":{"v":0,"d":"0.00"}}]
[null,"Крајњи поклопац за парапет 105x65","м",2,"X",null,"=",{"$f":"D498*F498","v":{"v":0,"d":"0.00"}}]
[null,"Носач и оквир  6М,бео, за поклопац 65","м",4,"X",null,"=",{"$f":"D499*F499","v":{"v":0,"d":"0.00"}}]
[null,"Носач и оквир  4М,бео, за поклопац 65","м",2,"X",null,"=",{"$f":"D500*F500","v":{"v":0,"d":"0.00"}}]
[null,"Носач и оквир  2М,бео, за поклопац 65","м",6,"X",null,"=",{"$f":"D501*F501","v":{"v":0,"d":"0.00"}}]
[null,"Прикључница монофазна 16 А, 230 V, модуларна 2М, бела ИП20, за монтажу у парапет","м",12,"X",null,"=",{"$f":"D502*F502","v":{"v":0,"d":"0.00"}}]
[3,"Ситан не специфициран материјал за монтажу и повезивање (типлови, холшафови, утичне клеме, изолир траке....)","паушално",1,"X",null,"=",{"$f":"D503*F503","v":{"v":0,"d":"0.00"}}]
[null,"СВЕТИЉКЕ                                                                                                                    Светиљке комплет са извором светлости причвршћене  на таваницу (уградне или надградне), зид или конструкцију објекта на начин условљен конструкцијом светиљке. "]
[1,"ТИП S1 Уградна светиљка, израђена у ЛЕД технологији предвиђена за монтажу у спуштен плафон, за опште осветљење простора. Кућиште светиљке је од алуминијума, обојено у белу боју. Оптика светиљке широкоснопна, направљена од полистирена са линеарним низовима распоређених ЛЕД диода. Угао исијавања светлости 85°. Предвиђена за честа укључивања. Степен механичке заштите је IP54/20. Отпорност на удар је IK04, струјна класа II. Светиљка се испоручује у комплету са ЛЕД модулима температуре боје светлости 4000К, индексом репродукције боје Ра>80. Уједначеност боје, SDCM (0.38, 0.38) ≤3. Ефикасност мин 130лм/W, укупан иницијални флукс система је 3900лм. Укупна снага система је максимално 30W. Коефицијент снаге минимум 0,9. Време за који светлосни флукс падне на 80% иницијалног флукса (Л80) је 70.000 сати. Максимално 1% драјвера ће бити неисправно после 5.000 сати. Температурни опсег рада светиљки је од -20 до +40°Ц. Светиљка има масу од 2,49 кг. Димензије светиљке су 595 x 595 мм, висина максимално 49 мм. Светиљка је у складу са нормативима канцеларијског осветљења, UGR≤19. Светиљка треба да буде усклађена са европским стандардом о сигурном и правилном раду, да има ENEC ознаку. Светиљка треба да је усклађена са европским директивама који важе за производе, да има ЦЕ знак. Светиљка треба да је усклађена са РоХС директивама о ограничењу употребе одређених опасних супстанци у електричној и електронској опреми. Гаранција 5 година.Светиљка еквивалентна типу Оппле ЛЕДПанел Rc-S5 Sq595-30W-840-U19","ком.",3,"X",null,"=",{"$f":"D505*F505","v":{"v":0,"d":"0.00"}}]
[]
[]
[2,"ТИП S2 Уградна доwнлигхт светиљка израђена у ЛЕД технологији предвиђена за монтажу у спуштен плафон, за опште осветљење простора. Кућиште је од алуминијума беле боје. Оптика светиљке широкоснопна, направљена од поликарбоната са концентричним низовима распоређених ЛЕД диода. Угао исијавања светлости 70°. Предвиђена за честа укључивања. Степен механичке заштите је IP20/44, отпорност на удар је IK02, струјна класа II Светиљка се испоручује у комплету са ЛЕД модулима са бојом светлости 4000К, индексом репродукције боје Ра≥80. Ефикасност мин 108лм/W, УГР≤19, укупан иницијални флукс система је 1620лм. Укупна снага система је максимално 15W. Коефицијент снаге минимум 0,9. Температурни опсег рада светиљки је од -10 до +40°Ц. Светиљка има масу од 0,76 кг. Светиљка је кружног облика пречника 225мм, дубине максимално 73 мм. Светиљка треба да је усклађена са европским директивама који важе за производе, да има ЦЕ знак. Светиљка треба да буде усклађена са европским стандардом о сигурном и правилном раду, да има ENEC  ознаку. \nГаранција је 5 година.Светиљка еквивалентна типу Opple LED Downlight Rc-P-HG R200-15W-3000."]
[]
[]
[null,null,"ком.",15,"X",null,"=",{"$f":"D511*F511","v":{"v":0,"d":"0.00"}}]
[3,"ТИП S3 Надградна плафонска/зидна водонепропусна широкоснопна светиљка израђена у ЛЕД технологији, димензија ø204x150мм. Угао исијавања светиљке 75 степени. Кућиште светиљке је од ливеног алуминијума обојено у белу боју. Степен механичке заштите је IP44. Светиљка се испоручује у комплету са ЛЕД модулима са бојом светлости 4000К, електронским предспојним уређајима и индексом репродукције боје Ра већим од 80. Ефикасност минимум 86лм/W, укупан флукс система је 1975лм. Укупна максимална снага система је 24W. Светиљка има масу од око 1,6 кг. Светиљка еквивалентна типу Avolux Leila Surface / I02.PSM.15072.","ком.",20,"X",null,"=",{"$f":"D512*F512","v":{"v":0,"d":"0.00"}}]
[4,"ТИП S4 Висећа светиљка израђена у ЛЕД технологији предвиђена за монтажу на спуштен плафон, за опште осветљење простора. Кућиште светиљке је од алуминијума, оптика светиљке широкоснопна, направљена од поликарбоната са линеарним низовима распоређених ЛЕД диода. Степен механичке заштите је IP20. Светиљка се испоручује у комплету са ЛЕД модулима са бојом светлости 4000К, индексом репродукције боје Ра ≥ 80. Укупан иницијални флукс система је 2200лм. Укупна снага система је максимално 35W.  Температурни опсег рада светиљки је од 0 до +40°Ц. Светиљка има масу од 2,6 кг. Димензије светиљке су 1135x55мм, висина максимално 78 мм. Светиљка треба да је усклађена са европским директивама који важе за производе, да има CE знак.За конфигурацију од више светиљки повезаних на ред, постоји могућност линијског или кружног континуалног настављања."]
[]
[null,"Светиљка је еквивалентна типу Avolux Narrow / I02.LL.19180","ком.",3,"X",null,"=",{"$f":"D515*F515","v":{"v":0,"d":"0.00"}}]
[null,"Праволинијска линија од 5 континуално спојених светиљки","ком.",4,"X",null,"=",{"$f":"D516*F516","v":{"v":0,"d":"0.00"}}]
[null,"Полукружна линија од 11 континуално спојених светиљки","ком.",2,"X",null,"=",{"$f":"D517*F517","v":{"v":0,"d":"0.00"}}]
[5,"ТИП S4а Уградна светиљка израђена у ЛЕД технологији предвиђена за монтажу у спуштен плафон, за опште осветљење простора. Кућиште светиљке је од алуминијума, оптика светиљке широкоснопна,угао исијавања од 111 степени, направљена од поликарбоната са линеарним низовима распоређених ЛЕД диода. Степен механичке заштите је IP20. Светиљка се испоручује у комплету са ЛЕД модулима са бојом светлости 4000К, индексом репродукције боје Ра ≥ 80. Укупан иницијални флукс система је 2200лм. Укупна снага система је максимално 35W. Светиљка има масу од 2,8 кг. Димензије светиљке су 1144x65мм, висина максимално 78 мм. Светиљка треба да је усклађена са европским директивама који важе за производе, да има CE знак.\nЗа конфигурацију од више светиљки повезаних на ред, постоји могућност линијског или кружног континуалног настављања."]
[]
[null,"Светиљка је еквивалентна типу Avolux Narrow Recessed / I02.LL.19185"]
[null,"Праволинијска линија од 5 континуално спојених светиљки.","ком.",4,"X",null,"=",{"$f":"D521*F521","v":{"v":0,"d":"0.00"}}]
[null,"Полукружна линија од 11 континуално спојених светиљки.","ком.",2,"X",null,"=",{"$f":"D522*F522","v":{"v":0,"d":"0.00"}}]
[6,"ТИП S5 Шински ЛЕД рефлектор за опште осветљење простора. Кућиште светиљке је од алуминијума и пластике, обојено у белу боју. Оптика светиљке је од поликарбоната, широког снопа, угао исијавања светлости 35°. Степен механичке заштите је IP20. Отпорност на удар је IK02, струјна класа II. Светиљка се испоручује у комплету са ЛЕД модулима са бојом светлости 4000К, индексом репродукције боје Ра ≥ 90. Уједначеност боје, (0.43, 0.40) SDCM <3. Ефикасност мин 121лм/W, укупан иницијални флукс система је 1532лм. Укупна снага система је максимално 15W. Светиљка има масу од 0,6 кг.\nСветиљка треба да буде усклађена са европским стандардом о сигурном и правилном раду, да има ENEC ознаку. Светиљка треба да је усклађена са европским директивама који важе за производе, да има CE знак. "]
[]
[null,"Светиљка је еквивалентна типу Avolux Ray Mini / I01.MLT.17160."]
[null,"Трофазна шина беле боје дужине 3м је еквивалентна типу Philips RCS750 3C L3000 WH (XTS4400-3)","ком.",111,"X",null,"=",{"$f":"D526*F526","v":{"v":0,"d":"0.00"}}]
[null,"Трофазна шина беле боје дужине 2м је еквивалентна типу Philips RCS750 3C L2000 WH (XTS4200-3)","ком.",40,"X",null,"=",{"$f":"D527*F527","v":{"v":0,"d":"0.00"}}]
[null,"Спојни елемент \"I\" је еквивалентан типу Philips ZRS750 ICP WH (XTS21-3).","ком.",22,"X",null,"=",{"$f":"D528*F528","v":{"v":0,"d":"0.00"}}]
[null,"Напајање беле боје је еквивалентно типу Philips ZRS750 EPSL WH (XTS11-3+41-3).","ком.",44,"X",null,"=",{"$f":"D529*F529","v":{"v":0,"d":"0.00"}}]
[null,"Носачи за шину су еквивалентни типу Philips ZRS700 SCP WH SUSP CLAMP (SKB12-3).","ком.",20,"X",null,"=",{"$f":"D530*F530","v":{"v":0,"d":"0.00"}}]
[null,"Носачи за шину су еквивалентни типу Philips ZRS700 SPC ALU SUSP CLAMP (SKB16-1).","ком.",120,"X",null,"=",{"$f":"D531*F531","v":{"v":0,"d":"0.00"}}]
[null,"Сајла дужине 3м","ком.",72,"X",null,"=",{"$f":"D532*F532","v":{"v":0,"d":"0.00"}}]
[7,"ТИП S6 Висећа светиљка кружног облика, израђена у ЛЕД технологији предвиђена као висећа за монтажу на плафон, за опште осветљење простора. Кућиште светиљке је од алуминијума, обојено у белу боју. Оптика светиљке широкоснопна, угао исијавања светлости 116°, са концентричним низовима распоређених ЛЕД диода. Предвиђена за честа укључивања. Степен механичке заштите је IP40. Светиљка се испоручује у комплету са ЛЕД модулима температуре боје светлости 4000К, индексом репродукције боје Ра>80. Ефикасност мин 120лм/W, укупан максимални иницијални флукс система је 30555лм. Укупна снага система је 240W. Са светиљком се испоручује челични ланац од 5м. Светиљка има спољни пречник димензије Ø1500мм, а висине 70 мм.Светиљка еквивалентна типу Avolux Sivo - I02.LL.13140.150.","ком.",1,"X",null,"=",{"$f":"D533*F533","v":{"v":0,"d":"0.00"}}]
[]
[8,"ТИП SL1 Светиљка за спољну монтажу, предвиђена за осветљење спољне ивице прозора зграде, израђена у ЛЕД технологији. Кућиште светиљке је од ливеног алуминијума, прибор предвиђен за монтажу је од нерђајућег челика. Предвиђена за честа укључивања. Степен механичке заштите је IP54, IK08. Светиљка се испоручује у комплету са ЛЕД модулима температуре боје светлости 3000К, индексом репродукције боје Ра>80. Ефикасност мин 120лм/W, укупан максимални флукс система је 345лм. Укупна снага система је 3W. Светиљка има димензије 110x70мм и висине 40мм. Маса је 0,5кг, сиве боје.Светиљка еквивалентна типу Avolux Shadow / O07.WA.07910.","ком.",31,"X",null,"=",{"$f":"D535*F535","v":{"v":0,"d":"0.00"}}]
[9,"ТИП SL2 Светиљка предвиђена за спољну монтажу, израђена у ЛЕД технологији. Монтира се на фасаду зграде. Кућиште светиљке је од ливеног алуминијума отпорно на корозију, прибор предвиђен за монтажу је од нерђајућег челика. Оптика светиљке је 42 степени. Предвиђена за честа укључивања. Степен механичке заштите је IP66, IK08. Светиљка се испоручује у комплету са ЛЕД модулима температуре боје светлости 3000К, индексом репродукције боје Ра>80. Ефикасност мин 114лм/W, укупан максимални флукс система је 1098лм. Укупна снага система је 10W. Извор светиљке има пречник димензије Ø71мм, и могућност ротирања 150 степени \"горе-доле\" и 45 степени \"лево-десно\". Постоље светиљке је димензије Ø95мм и висине 163мм. Маса је 0,5кг.Светиљка еквивалентна типу Avolux Kami Micro.","ком.",7,"X",null,"=",{"$f":"D536*F536","v":{"v":0,"d":"0.00"}}]
[]
[10,"ТИП SL3 Светиљка предвиђена за спољну монтажу, израђена у ЛЕД технологији. Монтира се на фасаду зграде. Кућиште светиљке је од ливеног алуминијума отпорно на корозију, прибор предвиђен за монтажу је од нерђајућег челика. Оптика светиљке је ускоснопна, 15 степени. Предвиђена за честа укључивања. Степен механичке заштите је IP66, IK08. Светиљка се испоручује у комплету са ЛЕД модулима температуре боје светлости 3000К, индексом репродукције боје Ра>80. Ефикасност мин 115лм/W, укупан максимални флукс система је 552лм. Укупна снага система је 5W. Извор светиљке има пречник димензије Ø85мм, и могућност ротирања 90 степени \"горе-доле\". Маса је 0,5кг.Светиљка еквивалентна типу Аволуx Панда Мицро","ком.",8,"X",null,"=",{"$f":"D538*F538","v":{"v":0,"d":"0.00"}}]
[null,"ТИП P1 / P2 Надградна противпанична светиљка израђена у ЛЕД технологији предвиђена за монтажу на плафон или зид. Кућиште је од поликарбоната. Степен механичке заштите је IP42, отпорност на удар је IK07, струјна класа II. Светиљка има могућност избора рада у трајном или приправном споју, аутономија је 3х. Укупан иницијални флукс система је 200лм. Укупна снага система је максимално 2,8W. Видљивост 20м. Димензије светиљке су 270 x 119 мм, висина максимално 49 мм. Светиљка има масу од 0,7 кг. Уз светиљку се испоручују пиктограми. Светиљка треба да је усклађена са европским директивама који важе за производе, да има CE знак.Светиљка еквивалентна типу Eaton Cooper - Emergency luminaire SafeLite SL20, MNM, IP42, 200lm, 3H.","ком.",35,"X",null,"=",{"$f":"D539*F539","v":{"v":0,"d":"0.00"}}]
[null,"ИЗЈЕДНАЧЕЊЕ ПОТЕНЦИЈАЛА"]
[1,"Испорука и уградња главне сабирнице за изједначење потенцијала ГСИП.","ком.",1,"X",null,"=",{"$f":"D541*F541","v":{"v":0,"d":"0.00"}}]
[2,"Испорука и уградња помођних сабирница за локално изједначење потенцијала ПС-49 у мокрим чворовима.","ком.",2,"X",null,"=",{"$f":"D542*F542","v":{"v":0,"d":"0.00"}}]
[3,"Испорука и уградња кабла, од најближих разводних ормана до кутија PS-49 проводником типа P/F 1x6 mm2.","м",40,"X",null,"=",{"$f":"D543*F543","v":{"v":0,"d":"0.00"}}]
[4,"Испорука и уградња кабла за локално изједначење потенцијала у мокрим чворовима, од PS-49 па до металних маса проводником типа P-Y 1x4 mm2.","м",150,"X",null,"=",{"$f":"D544*F544","v":{"v":0,"d":"0.00"}}]
[5,"Испорука и уградња прстена за изједначење потенцијала од поц.траке FeZn 20*3мм на висини 0,3м од коте пода на носећим потпорама  у техничкој просторији  са повезивањем на постојећи извод са темељног уземљивача.","м",25,"X",null,"=",{"$f":"D545*F545","v":{"v":0,"d":"0.00"}}]
[6,"Испорукa и уградња проводника типа N2XH-J 1x16 mm2 са израдом завршетака од Zu стопица, за израду инсталације за изједначење потенцијал, односно повезивање   на уземљење RECK ормана цеви хидранта, вентилације и осталих металних маса кухиње, које нису у саставу електро инсталације, а на којима се може појавити опасан напон додира.","м",90,"X",null,"=",{"$f":"D546*F546","v":{"v":0,"d":"0.00"}}]
[7,"Испитивање инсталације са издавањем записника о исправности.","паушално",1,"X",null,"=",{"$f":"D547*F547","v":{"v":0,"d":"0.00"}}]
[null,"УЗЕМЉИВАЧ И ГРОМОБРАНСКА ИНСТАЛАЦИЈА"]
[1,"Испорука и уградња траке Fe/Zn 25x4 mm за израду кружног уземљивача. Уземљивач се изводи у круг око обима објекта на растојању 1м од објекта и дубини од 06-0.8м. Све спојеве траке  заштити  од корозије.","м",125,"X",null,"=",{"$f":"D549*F549","v":{"v":0,"d":"0.00"}}]
[2,"Испорука и уградња траке Fe/Zn 25x4 mm за израду земљовода громобранског уземљења просечне дужине 3 м. Земљовод са једне стране повезати на кружни уземљивач укрсним комадом, , а са друге стране на спустни вод раставном спојницом за мерно место. Земљовод извести  до висине 1,75 м од коте готовог терена.","ком",2,"X",null,"=",{"$f":"D550*F550","v":{"v":0,"d":"0.00"}}]
[3,"Испорука и уградња траке Fe/Zn 25x4 mm за израду земљовода заштитног уземљења (ГСИП) просечне дужине 3 м. Земљовод са једне стране повезати на кружни уземљивач укрсним комадом, а са друге стране на ГСИП на фасади. Извод за заштитно уземљење предвидети у слободној дужини до 1 м од коте готовог терена.","ком",1,"X",null,"=",{"$f":"D551*F551","v":{"v":0,"d":"0.00"}}]
[4,"Испорука и уградња укрсних комада трака-трака на местима настављања и гранања уземљивача.","ком",20,"X",null,"=",{"$f":"D552*F552","v":{"v":0,"d":"0.00"}}]
[5,"Испорука и уградња талуминијумске жице АЛ ф8мм за израду СПУСТНИХ ВОДОВА. Жица се поставља од раставне спојнице за мерно место на фасади до громобранске хватаљке на крову објекта видно на одговарајућим потпорама .","м",40,"X",null,"=",{"$f":"D553*F553","v":{"v":0,"d":"0.00"}}]
[6,"Испорука и уградња потпоре за кровне водове покривене црепом и зидове од опеке.","ком",60,"X",null,"=",{"$f":"D554*F554","v":{"v":0,"d":"0.00"}}]
[7,"Испорука и уградња хватаљке за хоризонтални олук.","ком",2,"X",null,"=",{"$f":"D555*F555","v":{"v":0,"d":"0.00"}}]
[8,"Испорука и уградња раставне спојнице за мерно место на фасади објекта.","ком",2,"X",null,"=",{"$f":"D556*F556","v":{"v":0,"d":"0.00"}}]
[9,"Испорука и уградња типске механичке заштите земљовода до висине 1,5м од коте готовог терена на фасади објекта.","ком",2,"X",null,"=",{"$f":"D557*F557","v":{"v":0,"d":"0.00"}}]
[10,"Испорука и уградња громобранске хватаљке са уређајем за рано стартовање са временом предњачења 30 мик.сек., на челичном поцинкованом стубу  пречника 60 мм, дужине 6 м, комплет са елементима за анкерисање, опоменском таблицом \"Опасност високи напон\", и заштитом од продора влаге.","ком",1,"X",null,"=",{"$f":"D558*F558","v":{"v":0,"d":"0.00"}}]
[null,"ПРОЈЕКТНА ДОКУМЕНТАЦИЈА"]
[1,"Израда пројектне документације изведеног стања, након завршетка радова са уношењем свих измена и одступања и предаја инвеститору на употребу.","компл.",1,"X",null,"=",{"$f":"D560*F560","v":{"v":0,"d":"0.00"}}]
[2,"Испитивање прелазне отпорности уземљивача са издавањем стручног налаза","паушално",1,"X",null,"=",{"$f":"D561*F561","v":{"v":0,"d":"0.00"}}]
[3,"Испитивање отпорности изолације електроенергетских каблова по уградњи, са издавањем стручног налаза.","паушално",1,"X",null,"=",{"$f":"D562*F562","v":{"v":0,"d":"0.00"}}]
[4,"Испитивање галванске непрекидности заштитних проводника и изједначења потенцијала металних маса са издавањем стручног налаза.","паушално",1,"X",null,"=",{"$f":"D563*F563","v":{"v":0,"d":"0.00"}}]
[5,"Испитивање заштите од опасног напона додира аутоматским искључењем у TN-C-S систему, по пуштању инсталације у пробни рад са израдом стручног налаза.","паушално",1,"X",null,"=",{"$f":"D564*F564","v":{"v":0,"d":"0.00"}}]
[6,"Испитивање функционалности хавариског искључења са издавањем записника о исправности.","паушално",1,"X",null,"=",{"$f":"D565*F565","v":{"v":0,"d":"0.00"}}]
[7,"Испитивање функционалности аутономије ПАНИК расвете са издавањем записника о исправности.","паушално",1,"X",null,"=",{"$f":"D566*F566","v":{"v":0,"d":"0.00"}}]
[8,"Испитивање и преглед громобранске инсталације са израдом стручног налаза.","паушално",1,"X",null,"=",{"$f":"D567*F567","v":{"v":0,"d":"0.00"}}]
["УКУПНО ЕЛЕКТРОЕНЕРГЕТСКЕ ИНСТАЛАЦИЈЕ-ЈАКА СТРУЈА",{"$nulls":6},{"$f":"SUM(H381:H567)","v":{"v":0,"d":"0.00"}}]
[]
["23. ЕЛЕКТРОЕНЕРГЕТСКЕ ИНСТАЛАЦИЈЕ - СЛАБА СТРУЈА"]
["СТРУКТУРНО-КАБЛОВСКИ СИСТЕМ"]
[1,"RACK (FD) -Испорука и уградња  RACK ормана 42U/19\" сл.типу Netiks E6841 стојећи - опција вентилатор панел са термостатом (у наставку), флексибилна конструкција, точкићи и ножице са нивелацијом, бочне и задња страна се могу скинути ради једноставног приступа опреми, стаклена врата са бравом, мобилне предње и задње шине 19\" са обележеним бројевима унита, врхунски естетски изглед, статичка носивост до 300kg, димензије 600x800x2000mm (ŠxDxV). У орман монтирати следећу пасивну опрему:","комплет",1,"X",null,"=",{"$f":"D572*F572","v":{"v":0,"d":"0.00"}}]
[null,"Вентилатор панел  9\"/1U  са 2 вентилатора и  SCT-1000 дигиталним контролером температуре са дисплејом (LCD) - за све типове рекова  (FU2T-1U). ","ком",1]
[null,"220V разводни панел 19\"/1.5U са 7 утичних места, прекидачем, пренапонском заштитом и каблом 2m са утикачем.","ком",1]
[null,"Носач каблова са прстеновима, обострани 1U / 19\".","ком",4]
[null,"Patch panel 19\"/1U са 24 слота за модуле - празан, Shielded са уземљењем и држачем каблова са задње стране.","ком",3]
[null,"Модул TOOLLESS LINE-RJ45 Modul, Cat.6a 10Gbit, STP (SFA), кабал се спаја без алата.","ком",35]
[null,"Полица фиксна носивости до 60кг- за све типове рек ормана дубине 800 мм спаја се на 4 шине са 8 шафова.","ком",6]
[null,"Управљиви switch 24 порта, сл.типу.D-LINK DGS-1100-24V2 switch DGS-1100-24V2.","ком",2]
[null,"F/FTP patch cord kabl kat. 6A duž. 2m - фабрички направљен и тестиран.","ком",40]
[2,"Испорука и полагање у  цевима рачунарског инсталационог кабла F/FTP CAT6a, комплет са израдом конектора и повезивањем на оба краја.","м",1600,"X",null,"=",{"$f":"D581*F581","v":{"v":0,"d":"0.00"}}]
[3,"Испорука и уградња ХФ гибљивих цеви ф 16-23mm положених у зиду испод малтера, у шупљим зидовима или приликом слободног вођења кабла изнад спуштеног плафона. ","м",1600,"X",null,"=",{"$f":"D582*F582","v":{"v":0,"d":"0.00"}}]
[4,"Испорука и  уградња модуларних телефонско рачунарских прикључница  за уградњу у  модуларну дозну или ДЛП парапет. Дозне, носачи и маске дате су предмеру електроенергетских инсталација. Позиција подразумева повезивање инсталационог материјала и функционало испитивање. Предвиђен је следећи инсталациони материјал:"]
[null,"1xRJ45 CAT6a 1M сл.типу BTICINO Classia (у зид)","ком",22,"X",null,"=",{"$f":"D584*F584","v":{"v":0,"d":"0.00"}}]
[null,"1xRJ45 CAT6a 1M сл.типу LEGRAND Mosaic (у ДЛП парапет)","ком",9,"X",null,"=",{"$f":"D585*F585","v":{"v":0,"d":"0.00"}}]
[5,"Испитивање каблова и састављање стручног извештаја од стране овлашћене организације.","паушално",1,"X",null,"=",{"$f":"D586*F586","v":{"v":0,"d":"0.00"}}]
[6,"Израда пројектне документације изведеног стања телекомуникационих и сигналних инсталација СКС-а у DWFx формату и у штампаној форми у три примерка.","паушално",1,"X",null,"=",{"$f":"D587*F587","v":{"v":0,"d":"0.00"}}]
["ВИДЕО НАДЗОР"]
[1,"Фиксна DOME  колор IP камера ноћ/дан за унутрашњу монтажу сл.типу DAHUA IPC-HDBW1230EP-0360-S3. FULL HD 1080p мрежна камера у антивандал IP67 доме кућишту, 2 мегапиксела, 1/2.9” 2Мph CMOS чип са прогресивним скенирањем H.264+ / H.264 компресија, максимална резолуција 1920x1080 у 25fps, фиксни мегапикселни објектив 3.6 мм, ICR филтер, D-WDR, аутоматска контрола беле боје, аутоматска контрола појачања, 3D редукција шума, максимални домет IC диода 30 метара, IP67, IK10, ONCIF, 12ВDC/PoE, потрошња <5.4W. Одговарајућа назидна дозна је PFA136 и PFB203W.","ком",15,"X",null,"=",{"$f":"D589*F589","v":{"v":0,"d":"0.00"}}]
[2,"Фиксна мегапикселна IP Bullet камера дан/ноћ, за спољашњу монтажу сл. типу Dahua IPC-HFW3249E-AS-LED-0280B, 2MP мрежна камера у bullet кућишту са Full-color технологијом.1/2.8” CMOS са прогресивним скенирањем. Color: 0.0015 Lux@F1.0. Максимална резолуција 1920x1080. Фиксна оптика 2.8mm. Компресија H.265+/H.264+. Ниво заштите IP67. 120dB WDR. Домет LED диода 30 метара. 1x alarm in, 1x alarm out, 1x audio in, 1x audio out. интегрисан микрофон. Слот за  microSDкартицу до 256GB. Видео аналитика и део аналитика: Tripwire, intrusion. 12v напајање,PoE. Одговарајућа дозна je PFA130-E. Носач за бандеру је PFA152-E.","ком",7,"X",null,"=",{"$f":"D590*F590","v":{"v":0,"d":"0.00"}}]
[3,"16-канални NVR са 16X PoE; Lite серија; До 8MP; 160Mbps; Метално кућиште, 2X SATA; Аларм I/O. 16-канални NVR са 16 PoE портова. Lite серија.Подржане резолуције снимања 8Mp/ 6Mp/ 5MP/ 4MP/ 3MP/ 1080P/ 1.3MP/ 720P. HDMI излаз (до 3840×2160). VGA. Multi screen приказ 1/4/8/9/16 камера. Подржане компресије Smart H.265/H.265/Smart H.264/H.264/MJPEG. Dual Stream. Bit rate – Access: 160 Mbps, Storage: 160 Mbps, Forward: 64 Mbps. Dekoding do 8 × 1080p@30 fps. RJ-45 port (10 /100M /1000M) + 16x 10/100Mbps PoE (IEEE802.3at) портова, до 25.5W на једном порту, 117Wукупно. 2 USB порта, USB2.0 – контрола мишем и backup. 2 SATA III порта – до 2 HDD (20TB maks.). Интероперабилност: ONVIF (profile T/S/G), CGI, SDK. Аудио улаз/излаз. 4 алармна улаза/ 2 алармна излаза.  Напајање 100-240VAc. Подржава прихват аналитике са камера: До 8 канала заштите пермитерa, 4 канала детекције лица и 12 канала SMD+ аналитике. Димензије 375mm × 327.4mm × 53.8mm (Š×D×V). Masa 2.63kg. CMS software (DSS). Web приступ. Software за iOS и Android платформе. P2P подршка. CE: EN62368-1. EN55032,EN55024, EN55035, EN61000-3-2, EN61000-3-3 EN50130-4.sl.tipu Dahua NVR4216-16P-4KS2/L","ком",1,"X",null,"=",{"$f":"D591*F591","v":{"v":0,"d":"0.00"}}]
[]
[4,"8-канални NVR sa 8X PoE; Lite серија; До 12Mp; До 80Mbps; Метално кућиште; 1X SATA. 8-канални NVR. Lite серија. Подржане резолуције 12MP /8MP /5MP /4MP /3MP /2MP /720p /D1. HDMI излаз (до 3840×2160). VGA. Multi screen приказ 1/4/8/9 камера. Подржане компресије Smart H.265/H.265/Smart H.264/H.264. Dual Stream. Bit rate – Access: 80 Mbps, Storage: 80 Mbps, Forward: 60 Mbps. Dekoding do 1x 12MP@30 fps, 1x 8MP@30 fps, 2x 5MP@30 fps, 3x 4MP@30 fps, 6x 1080p@30 fps. RJ-45 port (10 /100M) + 8 × PoE портова, 10/100 Mbps. PoE буджет 72W, до 25.5W по порту. 2 USB порта, USB2.0 – контрола мишем и backup. 1 SATA III port – до 1 HDD (16TB maks.). Интероперабилност: ONVIF(profile T/S/G), CGI, SDK. Аудио улаз/излаз. Напајање 48/53VDc, 2/1.8 A. Подржава прихват аналитике са камера: До 4  канала заштите периметра, до 4 канала SMD+ аналитике. Димензије 260mm × 232.7mm × 47.6mm (Š×D×V). Маса 0.89kg. CMS software (DSS). Web приступ. Software za iOS i Android платформе. P2P подршка. CE: EN62368-1. EN55032. EN55024. EN55035. EN61000-3-2. EN61000-3-3. EN50130-4. сл.типу Dahua NVR2108HS-8P-S3","ком",1,"X",null,"=",{"$f":"D593*F593","v":{"v":0,"d":"0.00"}}]
[]
[5,"Екстерни хард диск HDD 4TB; Seagate/Dahua SkyHawk surveillance серија; пројектован за употребу у DVR-овима и  NVR-овима; Za 24/7 апликације са до 32 HD камере; 1.000.000 сати MTBF; 3.5″, 4TB, 64MB cache, SATA 6Gb/s, R/V (Rotational Vibration) Sensor; Погодан за примену у multi-drive RAID конфигурација, сл.типу Dahua Skyhawk Hard disk ST4000VX000.","ком",2,"X",null,"=",{"$f":"D595*F595","v":{"v":0,"d":"0.00"}}]
[6,"Испорука и полагање у  цевима рачунарског инсталационог кабла F/FTP CAT6a, комплет са израдом конектора и повезивањем на оба краја.","ком",900,"X",null,"=",{"$f":"D596*F596","v":{"v":0,"d":"0.00"}}]
[7,"Испорука и уградња ХФ гибљивих цеви ф 23mm положених у зиду испод малтера, у шупљим зидовима или приликом слободног вођења кабла изнад спуштеног плафона. ","м",500,"X",null,"=",{"$f":"D597*F597","v":{"v":0,"d":"0.00"}}]
[8,"Modul RJ45 cat.6 plug конектор за завршетак кабла на страни камере. Набавка, испорука и монтажа.","ком",22,"X",null,"=",{"$f":"D598*F598","v":{"v":0,"d":"0.00"}}]
[9,"Испитивање инсталације, подешавање и пуштање у рад.","паушално",1,"X",null,"=",{"$f":"D599*F599","v":{"v":0,"d":"0.00"}}]
[10,"Израда пројектне документације изведеног стања телекомуникационих и сигналних инсталација видео надзора у DWFx формату и у штампаној форми у три примерка.","паушално",1,"X",null,"=",{"$f":"D600*F600","v":{"v":0,"d":"0.00"}}]
[]
[]
["ПРОТИВПРОВАЛА"]
[1,"Aлармна централа еквивалентна типу SP 6000 Paradox, подржава функцију StayD, 4-жилни бус за проширење (могућност повезивања до 15 шифратора), 8 зонских улаза на плочи или 16 са дуплицирањем зона; проширива до 32 зоне, 2 (+ 2 опциона) PGM излаза на плочи, избор позитивног или негативног окидања, 1 алармни релеј (као опција), подржава до 16 PGM-ова, 2 партиције (1 у случају када се користи шифратор K636), 32 корисничке шифре, подржава GPRS i GSM Module (PCS serije), IP Modul (IP100), и гласовни модул (VDMP3); страна 11, 1.5A импулсно напајање, могућност унапређења Fimrware-a на лицу места помоћу 307USB, лако програмирање путем менија за Instalatere, Master и шифра за одржавање, бројеви телефона: 3 за мониторинг центар, 5 за личне бројеве, и 1 за Pager извештаје, патентирано 2-оптокаплерско коло за бирање – најпоузданији комуникатор у индустрији, функција аутоматског преласка на летње/зимско време, Soft reset централе помоћу тастера (ресетовање на фабричке вредности и рестарт), директна веза са програмом BabyWare при брзини од 9.6Kbps, меморија за 256 догађаја, подржава REM3, двосмерна комуникација (захтева RTX3, V1.31 или новија), подржава RX1 бежичични пријемник, као и RTX3 бежични модул за проширење, физички се смешта у металну кутију димензија 20 × 25.5 × 7.6 cm (8 × 10 × 3 in.) i 28 × 28 × 7.6 cm (11 × 11 × 3 in.)"]
[]
[null,"Набавка, испорука, монтажа, повезивање на кабловску инсталацију и подешавање.","ком",1,"X",null,"=",{"$f":"D606*F606","v":{"v":0,"d":"0.00"}}]
[2,"Комуникацијски модул сл.типу ПЦС250 Парадоx модул за телефонску дојаву, гласовни комуникатор, могућност позивања до 16 телефонских бројева, активација/деактивација система путем телефона. "]
[null,"Набавка, испорука, монтажа, повезивање на кабловску инсталацију и подешавање.","ком",1,"X",null,"=",{"$f":"D608*F608","v":{"v":0,"d":"0.00"}}]
[3,"Микроталасни и инфрацрвени анти-маск детектор покрета сл.типу Парадоx 525ДМ, анти-маск функција: детектује помераје у блиском окружењу, на раздаљини мањој од 0.75 м (2.5 фт.) у оквиру домета самог детектора, 2 врсте импулсног подешавања: 1 за типично окружење; 1 за одбацивање лажних аларма, напредно и добро избалансирано подешавање осетљивости, инсталатерски Тест Режим: дозвољава тестирање микроталасног и инфрацрвеног детектора осебно, ЛЕД индикација за анти-маск и инсталатерски тест режим."]
[null,"Набавка, испорука, монтажа, повезивање на кабловску инсталацију и подешавање.","ком",13,"X",null,"=",{"$f":"D610*F610","v":{"v":0,"d":"0.00"}}]
[null,"Носач детектора, 3 у 1 носач, омогућена монтажа на плафон, зид или угаона монтажа, сл.типу 469-Парадоx."]
[4,"Набавка, испорука, монтажа, повезивање на кабловску инсталацију и подешавање.","ком",13,"X",null,"=",{"$f":"D612*F612","v":{"v":0,"d":"0.00"}}]
[5,"Жичани ЛЦД Шифратор са 32 Карактера сл.типу Paradox К32LCD,32 карактера, плави LCD екран са програмабилним називима, приказ зона у аларму у реалном времену (док се не деактивира аларм), лако и брзо програмирање система путем вођеног Менија (инсталатерски и кориснички), ЛЕД диода за статус StauD функције, унапређење фимрwаре-а на лицу места помоћу 307USB, подесиво позадинско осветљење, контраст и брзина кретања кроз мени, подржава 2 партиције, подржава функцију StauD, 1 зонски улаз на шифратору, 8 Програмских тастера, независно подесива времена за звучну сигнализацију отворених зона, 3 тастера за активацију хитних аларма, повезивање на 4-жилни бус за проширење."]
[null,"Набавка, испорука, монтажа, повезивање на кабловску инсталацију и подешавање.","ком",2,"X",null,"=",{"$f":"D614*F614","v":{"v":0,"d":"0.00"}}]
[6,"Спољашња сирена са блицером сл.типу HPA702Л, акустичан излаз: 103 дБ (А) @ 3 м., кутија – ливени алуминијум, додатна решетка против разбијања – опционо, степен заштите – IP 34, електронска заштита против пробијања – опционо, електронска заштиту против пене – опционо, сигнализација при прегревању – опционо, 16 програмабилних звукова, демо Функција за преслушавање звукова (при нижој јачини звука), ЛЕД светло са потрошњом од 7 мА, самодијагностика сирене и нивоа батерије, напајање: 13,8 В, радни напон: 9 ÷ 15 В, максимална потрошња при аларму: 750 мА, радна температура: -25 °Ц ÷ +75 °Ц, потпуно заштићена против отварања и саботаже – Н.Ц. (24ВДЦ – 1А), одговарајући акумулатор: 12В 2,2 Ах"]
[null,"Набавка, испорука, монтажа, повезивање на кабловску инсталацију и подешавање.","ком",1,"X",null,"=",{"$f":"D616*F616","v":{"v":0,"d":"0.00"}}]
[7,"Инсталациони каблови од материјала без халогених елемената. Набавка, испорука и полагање на носаче каблова, у каналице или у савитљиве цеви испод завршне обраде плафона / зида."]
[null,"LiHCH 6x0,25 mm2","м",300,"X",null,"=",{"$f":"D618*F618","v":{"v":0,"d":"0.00"}}]
[null,"J-H(St)H 2x2x0,8 mm","м",70,"X",null,"=",{"$f":"D619*F619","v":{"v":0,"d":"0.00"}}]
[null,"F/FTP Cat6a","м",130,"X",null,"=",{"$f":"D620*F620","v":{"v":0,"d":"0.00"}}]
[8,"Инсталациона цев унутрашњег пречника ф 16-23 мм, постављање у фази грађевинских радова испод завршне обраде зида / плафона."]
[null,"Набавка, испорука и полагање.","м",200,"X",null,"=",{"$f":"D622*F622","v":{"v":0,"d":"0.00"}}]
[9,"Остали непредвиђени трошкови и ситан потрошни материјал.","паушално",1,"X",null,"=",{"$f":"D623*F623","v":{"v":0,"d":"0.00"}}]
[10,"Завршна електрична мерења, издавање упутстава и атеста, обука корисника, конфигурисање система и пуштање у рад.","паушално",1,"X",null,"=",{"$f":"D624*F624","v":{"v":0,"d":"0.00"}}]
["УКУПНО ЕЛЕКТРОЕНЕРГЕТСКЕ ИНСТАЛАЦИЈЕ-СЛАБА СТРУЈА",{"$nulls":6},{"$f":"SUM(H572:H624)","v":{"v":0,"d":"0.00"}}]
[]
["24. МАШИНСКЕ ИНСТАЛАЦИЈЕ"]
[1,"Стиропор за подно грејање дебљине 35 мм.","м²",530,"X",null,"=",{"$f":"D628*F628","v":{"v":0,"d":"0.00"}}]
[2,"Ивична изолациона трака профилисана од екструдираног PE-пенастог материјала за потребно одвајање естриха од ивичних грађевинских делова код конструкција подних површина према DIN18560 и DIN EN 1264 као и за одвајање грађевинских делова при зидном грејању. Понашање при пожару према DIN 4102: Б2 нормално гореће самолепљива ради причвршћена на зид профилисана, ради флексибилног прилагођавања ћошковима у просторији интегрисана фолија са нанетом лепљивом траком са доње стране\nБоја:сива                                                  Дебљина: 10 мм\nВисина: 180 мм","м'",350,"X",null,"=",{"$f":"D629*F629","v":{"v":0,"d":"0.00"}}]
[3,"Набавка, испорука и монтажа цеви за регистре подног панелног грејања.\n16 x 2,0 котур 120 м\nМатеријал:  (Alu PE Ha Полиетилен умрежен под високим притиском са запорним слојем против дифузије кисеоника (DIN16892/DIN 4726/DIN 4729)\nСпољни пречник цеви 16 мм Дебљина зида цеви 2,0 мм\n","м'",4100,"X",null,"=",{"$f":"D630*F630","v":{"v":0,"d":"0.00"}}]
[]
[4,"Набавка, испорука и монтажа,разделника и сабирника подног грејања слично производу, следећих типова и димензија:\nРазделник и сабирник са 4 круга\nРазделник грејних кругова\nБр. грејних кругова: 4- 0-5 л/мин Састоји се од:\n- 2 разделне цеви 1\" (сабирник и разделник) са могућношћу обостраног прикључења\n- монтирано на звучно изолованим, поцинкованим конзолама према DIN 4109\n- на сабирној грани сваки грејни круг са вентилом за затварање и регулацију протока, прикључни навој М30x1,5 за серво мотор\n- 2 завршна комада 1\" са матицом, дихтунгом, одзрачним вентилом 3/8\" и славином за пуњење и пражњење 1/2\"\n- сета за причвршћење\n- налепница за означавање Материјал: месинг МС 63\n\n","комплет",3,"X",null,"=",{"$f":"D632*F632","v":{"v":0,"d":"0.00"}}]
[5,"Набавка, испорука и монтажа,разделника и сабирника подног грејања слично производу, следећих типова и димензија:\n\nРазделник и сабирник са 5 кругова\nРазделник грејних кругова\nБр. грејних кругова: 5- 0-5 л/мин Састоји се од:\n- 2 разделне цеви 1\" (сабирник и разделник) са могућношћу обостраног прикључења\n- монтирано на звучно изолованим, поцинкованим конзолама према DIN 4109\n- на сабирној грани сваки грејни круг са вентилом за затварање и регулацију протока, прикључни навој М30x1,5 за серво мотор\n- 2 завршна комада 1\" са матицом, дихтунгом, одзрачним вентилом 3/8\" и славином за пуњење и пражњење 1/2\"\n- сета за прицвршћење\n- налепница за означавање Материјал: месинг МС 63\n\n\n","комплет",1,"X",null,"=",{"$f":"D633*F633","v":{"v":0,"d":"0.00"}}]
[]
[6,"Разделник и сабирник са 6 кругова\nРазделник грејних кругова\nБр. грејних кругова: 6- 0-5 л/мин Састоји се од:\n- 2 разделне цеви 1\" (сабирник и разделник) са могућношћу обостраног прикључења\n- монтирано на звучно изолованим, поцинкованим конзолама према DIN 4109\n- на сабирној грани сваки грејни круг са вентилом за затварање и регулацију протока, прикључни навој М30x1,5 за серво мотор\n- 2 завршна комада 1\" са матицом, дихтунгом, одзрачним вентилом 3/8\" и славином за пуњење и пражњење 1/2\"\n- сета за причвршћење\n- налепница за означавање Материјал: месинг МС 63\n\n","комплет",1,"X",null,"=",{"$f":"D635*F635","v":{"v":0,"d":"0.00"}}]
[7,"Разделник и сабирник са 10 кругова Разделник грејних кругова\nБр. грејних кругова: 10- 0-5 л/мин Састоји се од:\n- 2 разделне цеви 1\" (сабирник и разделник) са могућношћу обостраног прикључења\n- монтирано на звучно изолованим, поцинкованим конзолама према DIN 4109\n- на сабирној грани сваки грејни круг са вентилом за затварање и регулацију протока, прикључни навој М30x1,5 за серво мотор\n- 2 завршна комада 1\" са матицом, дихтунгом, одзрачним вентилом 3/8\" и славином за пуњење и пражњење 1/2\"\n- сета за причвршћење\n- налепница за означавање Материјал: месинг МС 63\n","комплет",2,"X",null,"=",{"$f":"D636*F636","v":{"v":0,"d":"0.00"}}]
[8,"Испорука и монтажа компресионог фитинга за цеви 16x2 мм комплет 2 ком.\n\n","комада",86,"X",null,"=",{"$f":"D637*F637","v":{"v":0,"d":"0.00"}}]
[9,"Разделни ормар за угр. у зид\nРазделни ормарић за уградњу у зид - тип IW Димензије: 550x730x110  Бр. кругова: 4 Материјал: челични лим, са прашкасто нанесеном фарбом, за уградњу у зид (испод малтера)\n\n\n","комада",5,"X",null,"=",{"$f":"D638*F638","v":{"v":0,"d":"0.00"}}]
[10,"Разделни ормар за угр. у зид\nРазделни ормарић за уградњу у зид - тип IW Димензије: 850x730x110  Бр. кругова: 4 Материјал: челични лим, са прашкасто нанесеном фарбом, за уградњу у зид (испод малтера)\n\n\n\n","комада",2,"X",null,"=",{"$f":"D639*F639","v":{"v":0,"d":"0.00"}}]
[11,"Адитив за естрих П, додатак за цементне естрихе\nпрема DIN 18560, део 2 за побољшање топлотне проводљивости и повећање отпорности на притисак и истезање\nбез хлорида\n\n\n\n\n","л",65,"X",null,"=",{"$f":"D640*F640","v":{"v":0,"d":"0.00"}}]
[12,"Набавка, испорука и монтажа Uponor Smatrih  Wаve Thermostat D+RH Stule T-169 за локалну регулацију температуре у просторијама.\n\n\n\n\n","ком.",7,"X",null,"=",{"$f":"D641*F641","v":{"v":0,"d":"0.00"}}]
[13,"Набавка, испорука и монтажа Uponor Vario PLUS actuator NC који се монтирају на полазним круговима разделника подног грејања.\nUponor Smatrih Wave controller Pulse H-265\n\n\n\n\n\n","ком.",19,"X",null,"=",{"$f":"D642*F642","v":{"v":0,"d":"0.00"}}]
[14,"Завршни радови на изради инсталације за подног грејања, одвоз вишка материјала, чишћење градилишта,пробно пуштање у погон инсталације, обележавање инсталације\n-паушално\n\n\n\n\n\n\n","паушално",1,"X",null,"=",{"$f":"D643*F643","v":{"v":0,"d":"0.00"}}]
[15,"Набавка, испорука и монтажа бакарних цеви димензија и квалитета материјала по стандардима СРПС Ц.Д5.020,СРПС Ц.Д5.200, СРПС Ц.Д5.501, СРПС Ц.Д5.502. Димензије цеви су:\n\n\n\n\n\n\n\n\n"]
[null,"\nØ 28x1\n\n\n\n\n\n\n\n\n","м'",110,"X",null,"=",{"$f":"D645*F645","v":{"v":0,"d":"0.00"}}]
[null,"\nØ 35x1\n\n\n\n\n\n\n\n\n","м'",20,"X",null,"=",{"$f":"D646*F646","v":{"v":0,"d":"0.00"}}]
[null,"\nØ 42x1.5\n\n\n\n\n\n\n\n\n","м'",30,"X",null,"=",{"$f":"D647*F647","v":{"v":0,"d":"0.00"}}]
[16,"За спојни и заптивни материјал, фитинге и лукове, конзоле, држаче, чврсте тачке, дводелне цевне обујмице, вешаљке за цеви, розетне, зидне чауре, дисугас, оксиген, жицу за лемљење, кудељу, ланено уље, цемент, гипс, и остали материјал потребан за монтажу цеви узима се 50% од вредности цеви под предходном ставком овог дела предмера.\n\n\n\n\n\n\n\n\n",null,0.3,"X",null,"=",{"$f":"D648*F648","v":{"v":0,"d":"0.00"}}]
[17,"Набавка, испорука и монтажа изолације за цевоводе  топле воде цевном изолацијом  дебљине 9 мм, за следеће димензије цеви:\n\n\n\n\n\n\n\n\n"]
[null,"Ø 28x1","м'",110,"X",null,"=",{"$f":"D650*F650","v":{"v":0,"d":"0.00"}}]
[null,"Ø 35x1","м'",20,"X",null,"=",{"v":0,"d":"0.00"}]
[null,"Ø 42x1.5","м'",30,"X",null,"=",{"v":0,"d":"0.00"}]
[18,"Испорука и монтажа лоптастих вентила за рад са топлом водом, следећих димензија:\nР1”\n","ком.",14,"X",null,"=",{"$f":"D653*F653","v":{"v":0,"d":"0.00"}}]
[19,"Испорука и монтажа регулационих вентила тип HERZ Stromah са регулацијом\nR1”\n\n","ком.",7,"X",null,"=",{"$f":"D654*F654","v":{"v":0,"d":"0.00"}}]
[20,"Испирање инсталације више пута хладном водом све док из инсталације не потече потпуно чиста вода.\nО извршеном испирању инсталације сачинити записник који потписују руководилац радова и надзорни орган.\n-паушално\n\n","паушално",1,"X",null,"=",{"$f":"D655*F655","v":{"v":0,"d":"0.00"}}]
[21,"Хидрауличка проба на хладан хидраулички притисак P=Prad+2.0 бар у минималном трајању од 6 цасова и осматрање инсталације у трајању од 24 часа. О извршеној проби на хладан хидраулицки притисак сацинити записник који потписују руководилац радова и надзорни орган\n-паушално\n\n\n","паушално",1,"X",null,"=",{"$f":"D656*F656","v":{"v":0,"d":"0.00"}}]
[null,"НАПОМЕНА:"]
[null,"Понуђач је у обавези да у цену извођења овог типа инсталација уврсти и сав ситан неспецифициран материјал и опрему за несметано извоаење радова.Термоизолација пода као и формирање грејног естриха саставни су део предмера и предрацуна који се односи на архиектонско грађевински пројекат."]
[null,"МАШИНСКИ РАДОВИ У МАШИНСКОЈ ПРОСТОРИЈИ\n\n\n"]
[1,"Набавка, испорука и монтажа циркулационих пумпи, производ \"Грундфос\", следећих типова:\nМАГНА 1 32/80\n\n\n\n","ком.",1,"X",null,"=",{"$f":"D660*F660","v":{"v":0,"d":"0.00"}}]
[2,"Испорука и монтажа затворене експанзионе посуде са мембраном,  запремине В=25 лит, производ “ЕЛБИ”-Италија, тип ЕР-ЦЕ 25 или слицно.\n\n\n\n","компл.",1,"X",null,"=",{"$f":"D661*F661","v":{"v":0,"d":"0.00"}}]
[3,"Испорука и монтажа вентила сигурности са опругом и то:\nза експанзиони суд ДН15НП6\n\n\n\n","ком.",1,"X",null,"=",{"$f":"D662*F662","v":{"v":0,"d":"0.00"}}]
[4,"Набавка, испорука и монтажа бакарних цеви димензија и квалитета материјала по стандардима СРПС Ц.Д5.020,СРПС Ц.Д5.200, СРПС Ц.Д5.501, СРПС Ц.Д5.502. Димензије цеви су:\n\n\n\n\n"]
[null,"Ø 42x1","м'",10,"X",null,"=",{"$f":"D664*F664","v":{"v":0,"d":"0.00"}}]
[null,null,"м'",20,"X",null,"=",{"$f":"D665*F665","v":{"v":0,"d":"0.00"}}]
[5,"За спојни и заптивни материјал, фитинге и лукове, конзоле, држаче, чврсте тацке, дводелне цевне обујмице, вешаљке за цеви, розетне, зидне чауре, дисугас, оксиген, жицу за лемљење, кудељу, ланено уље, цемент, гипс, и остали материјал потребан за монтажу цеви узима се 50% од вредности цеви под предходном ставком овог дела предмера.\n\n\n\n\n",null,0.3,"X",null,"=",{"$f":"D666*F666","v":{"v":0,"d":"0.00"}}]
[6,"Набавка, испорука и монтажа изолације за цевоводе хладне и топле воде цевном изолацијом са парном браном, на бази полиетиленске пене, за следеће димензије цеви\n\n\n\n\n"]
[null,"Ø 35x1","м'",10,"X",null,"=",{"$f":"D668*F668","v":{"v":0,"d":"0.00"}}]
[null,"Ø 42x1","м'",20,"X",null,"=",{"$f":"D669*F669","v":{"v":0,"d":"0.00"}}]
[7,"Набавка, испорука и монтажа опшива од Al лима цевовода који се налази у машинским просторијама.\n\n\n\n","м²",5,"X",null,"=",{"$f":"D670*F670","v":{"v":0,"d":"0.00"}}]
[8,"Испорука и монтажа хватача нечистоће Р5/4”\n\n\n\n","ком",1,"X",null,"=",{"$f":"D671*F671","v":{"v":0,"d":"0.00"}}]
[9,"Испорука и монтажа лоптастих вентила за рад са топлом водом, следећих димензија:\nР5/4”\n\n\n\n","ком",4,"X",null,"=",{"$f":"D672*F672","v":{"v":0,"d":"0.00"}}]
[10,"Набавка, испорука и монтажа трокраке електромоторне  славине   са погоном, или сличан,\nДН 25 Квс 6.3\n\n\n\n\n","компл",1,"X",null,"=",{"$f":"D673*F673","v":{"v":0,"d":"0.00"}}]
[11,"Израда, испорука и монтажа носача и држача опреме израдених од профилисаног гвожда.\nКао елементе за ношење, ослањање, покретне и непокретне ослонце примењивати готове елементе, слично производу.\n\n\n\n\n\n","кг ",20,"X",null,"=",{"$f":"D674*F674","v":{"v":0,"d":"0.00"}}]
[12,"Испорука и монтажа термоманометара опсега мерења 0-6 бара\n\n\n\n\n","ком",1,"X",null,"=",{"$f":"D675*F675","v":{"v":0,"d":"0.00"}}]
[13,"Испорука и монтажа манометарске славине Р1/2”\n\n\n\n\n","ком",1,"X",null,"=",{"$f":"D676*F676","v":{"v":0,"d":"0.00"}}]
[14,"Испорука и монтажа аксијалних термометара у заштитном месинганом кућишту за опсег мерења 0-60°Ц\n\n\n\n\n","ком",3,"X",null,"=",{"$f":"D677*F677","v":{"v":0,"d":"0.00"}}]
[15,"Испорука и монтажа славина за пуњење и пражњење инсталације са капом и ланцем\nР3/4”\n\n\n\n\n\n","ком",2,"X",null,"=",{"$f":"D678*F678","v":{"v":0,"d":"0.00"}}]
[16,"Испорука и монтажа одзрачних судова Ø 35x1x300 мм\n\n\n\n\n\n","ком",4,"X",null,"=",{"$f":"D679*F679","v":{"v":0,"d":"0.00"}}]
[17,"Плочасти измењивач топлоте са растављивим ламелама производ TRACO или слично. Број ламела у зависности од производача.\nИспорука укључује и постоље\nПримар 110/75 Ц\nСекундар 70/50 Ц\n\n\n\n\n\n\n","ком",1,"X",null,"=",{"$f":"D680*F680","v":{"v":0,"d":"0.00"}}]
[null,"КЛИМА КОМОРЕ\n\n\n"]
[1,"Климатизациона комора (двоетажна – опслуживање дефинисати приликом извођења радова) за припрему ваздуха, за унутрашњу уградњу и ниским интензитетом буке при раду. Уређај треба испоручити у секцијама и саставити на лицу места.\n\nКућиште клима коморе се састоји од изолованих панела и врата са могућношћу закључавања, од галванизованог лима дебљине 0,8 мм, са изолацијом од минералне вуне дебљине 60мм (густина = 23 кг/м3), која је смештена између унутрашњег и спољњег панела. Спољашност панела је у боји  (RAL7035). Јединица се састоји из  5 секција ради лакшег постављања.\nМеханиске карактеристике кућишта клима коморе треба да буду у складу са ЕN 886, и то да обезбеђује минимално следеће класе :\n\nУ склопу коморе испоручује се електрокомандни орман са повезивањем опреме у пољу.\nСа комором долази интегрисани систем аутоматског управљања базиран на  микропоцесору (I/О Pro 812U) са засебним контролним дисплејем. Све унутрашње контроле и сензори су повезани у фабрици. Систем регулише температуре, протоке и остале функције.  Све остале додатне функције су предпрограмиране у микроприцесор и активарају се преко управљацког екрана осетљивог на додир на клима комори. Микропроцесор компатибилан са BMS-ом омогућава коришћење аларма и детекцију грешака. Клима комора се прилагођава захтевима у скалду са EMS директивама  и теситрана је према медународном стандарду ЕН50081-1&ЕН50082-2\nКлима комора поседује ис Еуровент цертификат са нултим одступањем измеду измерених вредности и вредности у тех документацији.\n\nПроизводње Царриер или еквивалентно, тип 39ХQ 08.04 Еуровент идентификациони број: 08.02.251\n \nКлима комора се састоји од следецих секција:\n\nУлазна секција са демперима у куцишту за унутрашњу уградњу. Дампери за  регулацију колицине ваздуха класе непропусности 3, у комплету са он/офф погоном.\n\nПредфилтер за спољасњи ваздух на убацном делу клима коморе Предфилтер за доводни ваздуха је равног типа.\nДимензије:2x(592x592) мм\nПропуштање ваздуха на бајпасу филтера је прилагодено Исо Цоарсе 60 (ЕН 779 Г4) класификацији.\nПоцетни пад притиска 60 Па Крајњи пад притиска  110 Па\n\nФилтери за спољашњи ваздух на  убацном делу клима коморе Филетри доводног  ваздуха су врецастог типа, еПМ1 50% (Ф7), . Филтере на   месту држи уредај са брзим закљуцавањем.\nДимензије  вреца:2x(592x592x292)\nПропуштање ваздуха на бајпасу филтера је прилагодено   еПМ1 50% (Ф7) класификацији.\nПоцетни пад притиска 67 Па Крајњи пад притиска  167 Па\n\nПотисни вентилатор са директно куплованим и фреквентно регулисаним моторима типа ЕЦ за довод ваздуха, са антивибрационим опругама следецих карактеристика:\nБрој вентилатора: 1 ком\nзапремински проток ваздуха   Лу=5100 м³/х\nекстерни пад притиска у убацном каналу Пеxт=400 Па екстерни пад притиска у усисном каналу Пеxт=50 Па укупни пад притиска Птот=788 Па\nснага електромотора: 3.35 кW\n\n\nНиво звуцног притиска у складу са ИСО 3741 за у околину и ИСО 5136 за у канале\nу околину :\nХз 63 125 250 500 1к 2к 4к 8к Алл\n72 43 61 67 71 73 73 72 дБ 64 дБ(А)\n\nДодатни прибор клима коморе\nТБXЗ-1-36 - подесиве ногице за нивелацију БXЗ-1-37 - антивибрациони ослонци за ногице\nДX хладњак/грејац за рад са фреоном Р410Ау комплету са сифоном, елиминатором капи и регулационим сетом ДX , следецих карактеристика:\nколицина ваздуха Лу=5100 м³/х\nТемп испаравања/кондензације: 6.5/45 ºЦ брзина ваздуха: 3.22 м/с\nстање ваздуха пре хладњака/грејаца 27ºЦ/13ºЦ стање ваздуха после хладњака/грејаца 13ºЦ/26ºЦ Qх сенз=24.41 кW\nQх тот=31.29 кW Qгр=33,5 кW\nПад притиска са ваздусне стране 68 Па\n \n\n РОТАЦИОНИ РЕКУПЕРАТОР кондензациони тип, са степ мотором и са регулатором звука. \n Модел:СТ1-НЛ-WВ-1185-СМ-В7-А1-0,W1235,Х1235 \n Зимски режим: \n Проток ваздуха [м3/х]: 5100 \n Температура ваздуха УЛАЗ [°Ц]/[%]: -14.8/90 \n Температура ваздуха ИЗЛАЗ [°Ц]/[%]: 12.9/50 \n Тотална размена: 63.40 кW \n Летњи режим: \n Проток ваздуха [м3/х]: 5100 \n Температура ваздуха УЛАЗ [°Ц]/[%]: 35.0/50 \n Температура ваздуха ИЗЛАЗ [°Ц]/[%]: 26.7/80 \n Тотална размена: 14.60 кW \n Напон: 1x230В \n радни напон (пхасеxВxХз): 3x400 В, 50 Хз \n димензије ВxШxД: 1050x400x1636 \n тежина НЕТ/СХИППИНГ: 149/168 кг \n\n\n\n\n\n\n\n","ком",2,"X",null,"=",{"$f":"D682*F682","v":{"v":0,"d":"0.00"}}]
[]
[]
[]
[]
[]
[]
[2,"Испорука и монтажа унутрашње DH Coil  кит за АHU јединицу, са\nкомплетном електронском регулацијом помоћу зидног жичаног\nконтролера,  електронски контролисаним електромагнетним вентилом,\nпроизводац \"CARRIER\", или слицно, следећих карактеристика:\nтип:   40ВА020Т7ФАQЕЕ\nноминални капацитет хладења: 31,5 кW\nноминални капацитет грејања: 35 кW\nрасхладно средство: Р410А\nрадни напон (пхасеxВxХз): 1x230 В, 50 Хз\nдимензије VhŠhD: 296x433x193\nтежина NET/SHIPPING: 8/13 кг\n\n\n\n\n\n\n","ком",2,"X",null,"=",{"$f":"D689*F689","v":{"v":0,"d":"0.00"}}]
[3,"Испорука и монтажа изолованих бакарних цевних водова, тврде или\nполутврде, у шипкма или бунту, које по квалитету и димензијама\nодговарају СРПС или ДИН стандардима, за транспорт гасне и тецне\nфазе фреона (Р410А), између унутрашњих касетних и парапентих\nјединица и спољне јединице VRF система, следећих димензија:\n\n\n\n\n\n\n\n"]
[null,"Ø12,70x0,8 мм","м",69,"X",null,"=",{"$f":"D691*F691","v":{"v":0,"d":"0.00"}}]
[null,"Ø28,58x1,0 мм","м",69,"X",null,"=",{"$f":"D692*F692","v":{"v":0,"d":"0.00"}}]
[4,"Ослонци и носачи, колена, конзоле, држачи, цевне обујмице, вешалице\nза цеви, металне розетне, зидне цауре, варење цеви у струји азота\nса материјалом, дисугас, оксиген и ситан потрошни спојни и заптивни\nматеријал потребан за монтажу бакарних цеви. За позицију се узима\n50% од вредности бакарних цеви у претходној позицији.\nНапомена: Овом позицијом нису обухваћена израда отвора за\nпролаз бакарних цеви,\nса затварањем отвора након монтаже цевовода.\n\n\n\n\n\n\n\n",{"v":0.5,"d":"50%"},0.5,"X",null,"=",{"$f":"D693*F693","v":{"v":0,"d":"0.00"}}]
[5,"Испорука и уградња комуникационих каблова за повезивање клима\nкоморе са спољном јединицом ЛиХцХ 2 x 1.5 мм2.\n\n\n\n\n\n\n\n\n","м",69,"X",null,"=",{"$f":"D694*F694","v":{"v":0,"d":"0.00"}}]
[6,"NIBCO цеви за одводење кондензата. Колена, рачве итд. укључени\nу јединицну цену дужине. Специфициране су цеви за хоризонтални и\nвертиклани развод.\nУПВЦ Ø 32 мм\n\n\n\n\n\n\n\n\n\n","м",120,"X",null,"=",{"$f":"D695*F695","v":{"v":0,"d":"0.00"}}]
[7,"Допуна радног медијума у систему - фреона Р410А. Колицину допуњеног фреона контролисати електронском вагом који треба да буде у складу са техницким препорукама производаца опреме.\n\n\n\n\n\n\n\n\n\n","кг ",8,"X",null,"=",{"$f":"D696*F696","v":{"v":0,"d":"0.00"}}]
[null,"ВРФ систем\n\n\n"]
[1,"Испорука и монтажа спољашње ВРФ јединице система за грејање и хладење пословног простора, производ \"CARRIER\" или слицно, тип\n38ВС280174ХQЕЕ. Спољашња компресорска јединица компактне изведбе са инвертерским компресорским испаривачем са ваздушно хладеним компресором, Уређај је компактне изведбе са свим унутрашњим цевним прикључцима за медијум и електричним ожичењем безбедносном и функцијском микропроцесорском аутоматиком, укључено са инструментима за надзор и контролу деловања.\nАутоматска регулација је микропроцесорска, програмска, са регулацијом сваке унутрашње јединице и посебним режимом рада. Јединица је са функцијом ЕТЦ.\nСпољашња јединица је следећих карактеристика:\n\nмодел спољашње ј-че:  38ВС280174ХQЕЕ\nноминални капацитет хлађења: 28,0 кW\nноминални капацитет грејања: 32,0 кW\nпотребна ел.напајање хладење/грејање: 8,75/8,03 кW\nрад у режиму хладења/грејања -5~48 / -20~27\nЕЕR/SЕЕR:3,2/8,2\nCOP/SCOP:3,8/4,8\nниво буке: 64,0/66,0 dB\nрасхладно средство: R410А\nрадни напон (phasaseh VhHz): 3x400 В, 50 Hз\nдимензије VhŠhD: 1050x400x1636\nтежина NET/SHIPPING: 149/168 кг\n\n\n\n\n\n\n\n\n\n\n","ком",1,"X",null,"=",{"$f":"D698*F698","v":{"v":0,"d":"0.00"}}]
[]
[2,"Испорука и монтажа унутрашње каналске јединице, са комплетном електронском регулацијом помоћу зидног жичаног контролера, тростепеним вентилаторорм, ваздушним филтером, пумпом за одвод кондензата, електронски контролисаним електромагнетним вентилом, производац \"CARRIER\", или слично, следећих карактеристика:\nтип:   40ВД018С-7С-QЕЕ\nноминални капацитет хладења: 5,6 кW\nноминални капацитет грејања: 6,3 кW\nпотребна ел.напајање хлађење/грејање: 37 W\nпроток ваздуха:  L/М/H 640/765/915 м3/х\nмаксимални располозиви напор: 200Pa\nниво буке: 29-31-33 дБ\nрасхладно средство: R410А\nрадни напон (phasehVhHz): 1x230V, 50 Hz\nдимензије VhŠhD: 248x1100x700\nтежина NET/SHIPPING: 36,8/43,4 кг\n\n\n\n\n\n\n\n\n\n\n","ком",1,"X",null,"=",{"$f":"D700*F700","v":{"v":0,"d":"0.00"}}]
[3,"Испорука и монтажа унутрашње каналске јединице, са комплетном електронском регулацијом помоцу зидног жицаног контролера, тростепеним вентилаторорм, ваздушним филтером, пумпом за одвод кондензата, електронски контролисаним електромагнетним вентилом, производац \"ЦАРРИЕР\", или слицно, следецих карактеристика:    \n тип:   40ВД028С-7С-QЕЕ    \n \nноминални капацитет хладења: 8,0 кW номинални капацитет грејања: 9,0 кW\nпотребна ел.напајање хладење/грејање: 68 W проток ваздуха:  Л/М/Х 875/1050/1275 м3/х максимални располозиви напор: 180Па\nниво буке: 34-38-42 dB расхладно средство: R410А\nрадни напон (phasehVhHz): 1x230V, 50 Hz димензије VhŠhD: 248x1100x700\nтежина NET/SHIPPING: 36,8/43,4 кг\n\n\n\n\n\n\n\n\n\n\n\n","ком",2,"X",null,"=",{"$f":"D701*F701","v":{"v":0,"d":"0.00"}}]
[]
[4,"Испорука и монтажа унутрашње зидне јединице, у комплету са регулацијом помоћу даљинског контролера, тростепеним вентилаторорм, ваздушним филтером, електронски контролисаним електромагнетним вентилом, производац \"CARRIER\", или слицно, следећих карактеристика:\nтип:   40ВК009С-7С-QЕЕ\nноминални капацитет хладења: 2,8 кW номинални капацитет грејања: 3,2 кW\nпотребна ел.напајање хладење/грејање: 38 W проток ваздуха:  Л/М/H 470/530/600 м3/h ниво буке: 29-31-35 дБ\nрасхладно средство: R410А\nрадни напон (phasehVhHz): 1x230 V, 50 Hz димензије VhŠhD: 280x855x208\nтежина NET/SHIPPING: 9,9/12 кг\n\n\n\n\n\n\n\n\n\n\n\n\n","ком",2,"X",null,"=",{"$f":"D703*F703","v":{"v":0,"d":"0.00"}}]
[5,"Испорука и монтажа жичаних контролера,производ  \"CARRIER\", или слично,тип 40ВЦW217FQЕЕ\nLCD дисплеј са термостатом на себи\nФункције: избор резима рада, подешавање температуре и брзине иструјавања\nнедељни тајмер\n\n\n\n\n\n\n\n\n\n\n\n\n","ком",3,"X",null,"=",{"$f":"D704*F704","v":{"v":0,"d":"0.00"}}]
[6,"Испорука и монтажа комплета диструбутивних Y-рачви за развод гасне и течне фазе фреона, производ \"CARRIER\" или сично. У цену урачуната и испорука и монтажа фабричке термичке изолације дистрибутивних рачви, са парном браном на бази синтетичког каучука\n40ВЈ012М7-ХQЕЕ\n\n\n\n\n\n\n\n\n\n\n\n\n\n","ком",3,"X",null,"=",{"$f":"D705*F705","v":{"v":0,"d":"0.00"}}]
[7,"Испорука и монтажа  предизолованих бакарних цевних водова, тврде или полутврде, у шипкма или бунту, које по квалитету и димензијама одговарају СРПС или ДИН стандардима, за транспорт гасне и течне фазе фреона (Р410А), између унутрашњих  и спољних јединице VRF. \n\n\n\n\n\n\n\n\n\n\n\n\n\n"]
[null,"Ø6,35x0,8 мм\n\n\n\n\n\n\n\n\n\n\n\n\n\n","м",13,"X",null,"=",{"$f":"D707*F707","v":{"v":0,"d":"0.00"}}]
[null,"Ø9,52x0,8 мм\n\n\n\n\n\n\n\n\n\n\n\n\n\n","м",67.5,"X",null,"=",{"$f":"D708*F708","v":{"v":0,"d":"0.00"}}]
[null,"Ø12,70x0,8 мм\n\n\n\n\n\n\n\n\n\n\n\n\n\n","м",9,"X",null,"=",{"$f":"D709*F709","v":{"v":0,"d":"0.00"}}]
[null,"Ø15,88x1,0 мм\n\n\n\n\n\n\n\n\n\n\n\n\n\n","м",56.5,"X",null,"=",{"$f":"D710*F710","v":{"v":0,"d":"0.00"}}]
[null,"Ø22,2x1,0 мм\n\n\n\n\n\n\n\n\n\n\n\n\n\n","м",7,"X",null,"=",{"$f":"D711*F711","v":{"v":0,"d":"0.00"}}]
[8,"Ослонци и носачи, колена, конзоле, држачи, цевне обујмице, вешалице за цеви, металне розетне, зидне чауре, варење цеви у струји азота  са материјалом, дисугас, оксиген и ситан потрошни спојни и заптивни материјал потребан за монтажу бакарних цеви. За позицију се узима 50% од вредности бакарних цеви у претходној позицији   \nНапомена: Овом позицијом нису обухваћена израда отвора за пролаз бакарних цеви,\nса затварањем отвора након монтаже цевовода.\n\n\n\n\n\n\n\n\n\n\n\n\n\n",{"v":0.5,"d":"50%"},0.5,"X",null,"=",{"$f":"D712*F712","v":{"v":0,"d":"0.00"}}]
[9,"NIBCO цеви за одвођење кондензата. Колена, рачве итд. укључени у јединичну цену дужине. Специфициране су цеви за хоризонтални и вертиклани развод.\nУПВЦ Ø 32 мм\n\n\n\n\n\n\n\n\n\n\n\n\n\n","м",50,"X",null,"=",{"$f":"D713*F713","v":{"v":0,"d":"0.00"}}]
[10,"Допуна радног медијума у систему - фреона R410А. Количину допуњеног фреона контролисати електронском вагом који треба да буде у складу са техничким препорукама произвођача опреме.\n\n\n\n\n\n\n\n\n\n\n\n\n\n","кг ",5,"X",null,"=",{"$f":"D714*F714","v":{"v":0,"d":"0.00"}}]
[11,"Испорука и уградња комуникационих каблова за повезивање јединица ВРФ система LiHcH 2 x 1.5 мм2.\n\n\n\n\n\n\n\n\n\n\n\n\n\n","кг ",200,"X",null,"=",{"$f":"D715*F715","v":{"v":0,"d":"0.00"}}]
[12,"Испорука и уградња каблова за повезивање унутрашњих јединица са термостатом LiHcH 3 x 0.75 мм2.\n\n\n\n\n\n\n\n\n\n\n\n\n\n","кг ",100,"X",null,"=",{"$f":"D716*F716","v":{"v":0,"d":"0.00"}}]
[13,"Испитивање фреонске инсталације на непропусност азотом-притисак 40 бар  У складу са техничким препорукама производаца.\n\n\n\n\n\n\n\n\n\n\n\n\n\n","паушално",1,"X",null,"=",{"$f":"D717*F717","v":{"v":0,"d":"0.00"}}]
[14,"Пуштање ВРФ система у рад са мерењем параметра у зимском и летњем периоду са израдом протокола и извршеним мерењима.\n\n\n\n\n\n\n\n\n\n\n\n\n\n\n\n","паушално",1,"X",null,"=",{"$f":"D718*F718","v":{"v":0,"d":"0.00"}}]
[]
[null,"ВЕНТИЛАЦИЈА\n\n\n"]
[1,"Испорука и монтажа рекуператора топлоте производ \"CARRIER\" или слично, тип ЕРВ0250БНW, са тростепеним вентилатором, филтером за ваздух, комплетна електронска регулација помоћу даљинског управљача као и сва опрема потребна за монтажу и повезивање, ефикасност према ЕrP Directive, Lot 11.\nУ комплету са рекуператором топлоте испоруцује се и његов жицани зидни контролер.\n\nпроток ваздуха H/М/L: 250/200/150  (м3/h)\nстепен искоришћења лето/зима  57,1/68,5%\nел. снага: 105 W\nЕкстерни статицки притисак: 75 Pa\nрадни напон (phasehVhHz): 1x230 В, 50 Хз\nниво буке H/М/L: 33,2/29,3/26,5 dB\nдимензије: 850 x 630 x 268 мм\nтежина: 28 кг\n\n\n\n\n\n\n\n\n\n\n\n\n\n\n\n","КОМ",1,"X",null,"=",{"$f":"D721*F721","v":{"v":0,"d":"0.00"}}]
[2,"Испорука и монтажа рекуператора топлоте производ \"CARRIER\" или слицно, тип ЕRВ0250BNW, са тростепеним вентилатором, филтером за ваздух, комплетна електронска регулација помоћу даљинског управљача као и сва опрема потребна за монтажу и повезивање, ефикасност према ЕrP Directive,  Lot 11.\nУ комплету са рекуператором топлоте испоруцује се и његов жицани зидни контролер.\n\nпроток ваздуха H/М/L: 250/200/150  (м3/h)\nстепен искоришћења лето/зима  57,1/68,5%\nел. снага: 105 W\nЕкстерни статички притисак: 75 Па\nрадни напон (phasehVhHz): 1x230V, 50 Hz\nниво буке H/М/L: 33,2/29,3/26,5 dB\nдимензије: 850 x 630 x 268 мм\nтежина: 28 кг\n\n\n\n\n\n\n\n\n\n\n\n\n\n\n\n","КОМ",2,"X",null,"=",{"$f":"D722*F722","v":{"v":0,"d":"0.00"}}]
[3,"Испорука и уградња каналског електричног грејача за уградњу са рекуператорима топлоте, производ Sustemair, комплет са аутоматиком за вођење грејача:\n-Тип: CEM 150-2,1 230V/1\n-Снага: 2,1 кW\n-Димензија прикључка за канал: Ø150 мм\n-Напајање : 220/250 V на 50/60 Hz, са дозвољеним одступањем\n+- 10%\n\n\n\n\n\n\n\n\n\n\n\n\n\n\n\n\n","комплет",1,"X",null,"=",{"$f":"D723*F723","v":{"v":0,"d":"0.00"}}]
[4,"Испорука и уградња каналског електрицног грејача за уградњу са\nрекуператорима топлоте, производ Сyстемаир комплет са\nаутоматиком за вођење грејача:\n-Тип: ЦБМ 250-3 230В/1\n-Снага: 3,0 кW\n-Димензија прикључка за канал: Ø250 мм\n-Напајање : 220/250 В на 50/60 Хз, са дозвољеним одступањем\n+- 10%\n\n\n\n\n\n\n\n\n\n\n\n\n\n\n\n\n","комплет",2,"X",null,"=",{"$f":"D724*F724","v":{"v":0,"d":"0.00"}}]
[5,"Испорука и монтажа линијских дифузора са регулатором протока за убацивање или извлачење ваздуха\nПроизвођач: ТRОX\n\n\n\n\n\n\n\n\n\n\n\n\n\n\n\n\n\n\n"]
[null,"Тип: PL50-1-S-SF-HS\n\n\n\n\n\n\n\n\n\n\n\n\n\n\n\n\n\n\n"]
[null,"1200x¢158\n\n\n\n\n\n\n\n\n\n\n\n\n\n\n\n\n\n\n","ком",10,"X",null,"=",{"$f":"D727*F727","v":{"v":0,"d":"0.00"}}]
[null,"1050x¢158\n\n\n\n\n\n\n\n\n\n\n\n\n\n\n\n\n\n\n","ком",16,"X",null,"=",{"$f":"D728*F728","v":{"v":0,"d":"0.00"}}]
[null,"Тип: PL50-2-S-SF-HS\n\n\n\n\n\n\n\n\n\n\n\n\n\n\n\n\n\n\n"]
[null,"1050x¢198\n\n\n\n\n\n\n\n\n\n\n\n\n\n\n\n\n\n\n","ком",8,"X",null,"=",{"$f":"D730*F730","v":{"v":0,"d":"0.00"}}]
[6,"Испорука и монтажа ЈЕТ млазница са могуцим померањем\nправца дувања са регулатором протока за монтажу Сали\nПроизводац: ТRОH\nТИП ДУК-В-К/250\n\n\n\n\n\n\n\n\n\n\n\n\n\n\n\n\n\n\n\n","ком",12,"X",null,"=",{"$f":"D731*F731","v":{"v":0,"d":"0.00"}}]
[7,"Испорука и монтажа решетки за извлацење ваздуха са једним редом\nусмеравајућих лопатица, за монтажу на четвртасте канале, следећих\nкарактеристика:\nПроизводач: ТROH\nАH-АG 1225x225\n\n\n\n\n\n\n\n\n\n\n\n\n\n\n\n\n\n\n\n\n","ком",8,"X",null,"=",{"$f":"D732*F732","v":{"v":0,"d":"0.00"}}]
[8,"Набавка, испорука и монтажа  ваздушних вентила за извлачење\nваздуха, производ \"Тroh\" или слично са неповратном клапном:\nтип\n\n\n\n\n\n\n\n\n\n\n\n\n\n\n\n\n\n\n\n\n\n"]
[null,"LVS 160\n\n\n\n\n\n\n\n\n\n\n\n\n\n\n\n\n\n\n","ком",6,"X",null,"=",{"$f":"D734*F734","v":{"v":0,"d":"0.00"}}]
[null,"LVS 100\n\n\n\n\n\n\n\n\n\n\n\n\n\n\n\n\n\n\n","ком",2,"X",null,"=",{"$f":"D735*F735","v":{"v":0,"d":"0.00"}}]
[9,"Набавка, испорука и монтажа  алуминијумских преструјних решетки\nса контрарамом, следећих димензија:\nПроизводац: ТРОX; Тип АГС-Т\nТип: АГС-Т 325x150\n\n\n\n\n\n\n\n\n\n\n\n\n\n\n\n\n\n\n\n\n\n","ком",3,"X",null,"=",{"$f":"D736*F736","v":{"v":0,"d":"0.00"}}]
[10,"Испорука и монтажа POR преструјне решетке производ VIS\nCompani димензија\n300x150\n\n\n\n\n\n\n\n\n\n\n\n\n\n\n\n\n\n\n\n\n\n\n","ком",3,"X",null,"=",{"$f":"D737*F737","v":{"v":0,"d":"0.00"}}]
[11,"Испорука и монтажа ПП електромоторне клапне производ VIS Companu\n\n\n\n\n\n\n\n\n\n\n\n\n\n\n\n\n\n\n\n\n\n\n\n"]
[null,"250x200\n\n\n\n\n\n\n\n\n\n\n\n\n\n\n\n\n\n\n","ком",7,"X",null,"=",{"$f":"D739*F739","v":{"v":0,"d":"0.00"}}]
[null,"200x200\n\n\n\n\n\n\n\n\n\n\n\n\n\n\n\n\n\n\n","ком",4,"X",null,"=",{"$f":"D740*F740","v":{"v":0,"d":"0.00"}}]
[null,"600x200\n\n\n\n\n\n\n\n\n\n\n\n\n\n\n\n\n\n\n","ком",4,"X",null,"=",{"$f":"D741*F741","v":{"v":0,"d":"0.00"}}]
[null,"¢630\n\n\n\n\n\n\n\n\n\n\n\n\n\n\n\n\n\n\n","ком",2,"X",null,"=",{"$f":"D742*F742","v":{"v":0,"d":"0.00"}}]
[12,"Набавка, испорука и монтажа алуминијумске противкишне жалузине производ TROH тип АWG,АWК или сл. са заштитном мрежом следећих димензија:\n\n\n\n\n\n\n\n\n\n\n\n\n\n\n\n\n\n\n\n"]
[null,"1000x700\n\n\n\n\n\n\n\n\n\n\n\n\n\n\n\n\n\n\n","ком",4,"X",null,"=",{"$f":"D744*F744","v":{"v":0,"d":"0.00"}}]
[null,"400x300\n\n\n\n\n\n\n\n\n\n\n\n\n\n\n\n\n\n\n","ком",2,"X",null,"=",{"$f":"D745*F745","v":{"v":0,"d":"0.00"}}]
[13,"Испорука и монтажа вентилационе капе за монтажу на коси кров\n300x300\n\n\n\n\n\n\n\n\n\n\n\n\n\n\n\n\n\n\n\n\n","ком",1,"X",null,"=",{"$f":"D746*F746","v":{"v":0,"d":"0.00"}}]
[14,"Испорука и монтажа регулатора протока производ ТROH или слично ТИП ЈZ V\n\n\n\n\n\n\n\n\n\n\n\n\n\n\n\n\n\n\n\n\n"]
[null,"200x200\n\n\n\n\n\n\n\n\n\n\n\n\n\n\n\n\n\n\n","ком",2,"X",null,"=",{"$f":"D748*F748","v":{"v":0,"d":"0.00"}}]
[null,"250x200\n\n\n\n\n\n\n\n\n\n\n\n\n\n\n\n\n\n\n","ком",1,"X",null,"=",{"$f":"D749*F749","v":{"v":0,"d":"0.00"}}]
[null,"400x400\n\n\n\n\n\n\n\n\n\n\n\n\n\n\n\n\n\n\n","ком",4,"X",null,"=",{"$f":"D750*F750","v":{"v":0,"d":"0.00"}}]
[15,"Испорука и монтажа канала за убацивање и извлачење ваздуха израђених од поцинкованог  лима дебљине д = 0,5-0.75-1.00-1.25 мм у зависности од димензије канала.\nОва ставка се односи на канале правоугаоног попречног пресека, комплетно са коленима, прелазним комадима, рачвама. Канали су израђени од поцинкованог лима.\n\n\n\n\n\n\n\n\n\n\n\n\n\n\n\n\n\n\n\n\n\n","кг ",1100,"X",null,"=",{"$f":"D751*F751","v":{"v":0,"d":"0.00"}}]
[16,"Испорука и монтажа елемената за вешање канала, прирубнице, као и остали  монтажни  материјал (конзоле, вешаљке, заптивке вијци, навртке, подлошке) узима се 40 %  \n\n\n\n\n\n\n\n\n\n\n\n\n\n\n\n\n\n\n\n\n\n",0.4]
[17,"Испорука и монтажа спиро канала пречника 560 мм.\n\n\n\n\n\n\n\n\n\n\n\n\n\n\n\n\n\n\n\n\n\n","м",50,"X",null,"=",{"$f":"D753*F753","v":{"v":0,"d":"0.00"}}]
[18,"Испорука и монтажа елемената за вешање канала, прирубнице, као и остали  монтажни  материјал (конзоле, вешаљке, заптивке вијци, навртке, подлошке) узима се 40 %  \n\n\n\n\n\n\n\n\n\n\n\n\n\n\n\n\n\n\n\n\n\n",0.4]
[19,"Испорука и монтажа термичке изолације од плочасте изолације класе А1 према норми СРПС ЕН 13501-1, за изолацију канала убаченог ваздуха у простору. У позицију је урачунат ситан материјал за припрему канала за лепљење плочасте изолације (лепак, четке, нитроразређивач за  \n\n\n\n\n\n\n\n\n\n\n\n\n\n\n\n\n\n\n\n\n\n","м²",100,"X",null,"=",{"$f":"D755*F755","v":{"v":0,"d":"0.00"}}]
[20,"Испорука и монтажа  ваздушне завесе са ЕЛЕКТРО грејацима комплет са аутоматиком и жичаним контролером. Производач Олефини или сл. Ваздушна завеса је следећих карактеристика:\nКЕH-17W, ширина 1.8 м, ел. снага 12 кW\n\n\n\n\n\n\n\n\n\n\n\n\n\n\n\n\n\n\n\n\n\n\n","ком",1,"X",null,"=",{"$f":"D756*F756","v":{"v":0,"d":"0.00"}}]
[21,"Испорука и монтажа каналског \"ин-лине\" вентилатора серија МIHVENT- ТD. Вентилатор је следећих карактеристика:\nПроизводац: S&P или сл. У ставку урачунати електро повезивање.\n- тип: ТD-800/200\n- проток: 400 м3/х\n- потребан напор: 89 Pa\n- напор за дати проток: 150 Pa\n- максимална ел. снага: 120 W\n- максимална јацина струје: 0,5 А\n- радни напон: 1x230В, 50 Hz\n\n\n\n\n\n\n\n\n\n\n\n\n\n\n\n\n\n\n\n\n\n\n\n","ком",1,"X",null,"=",{"$f":"D757*F757","v":{"v":0,"d":"0.00"}}]
[22,"Набавка, испорука и монтажа реостата тип REM1,5N, производ\n\"Soler&Palau\".\n\n\n\n\n\n\n\n\n\n\n\n\n\n\n\n\n\n\n\n\n\n\n\n\n","ком",1,"X",null,"=",{"$f":"D758*F758","v":{"v":0,"d":"0.00"}}]
[23,"Испорука и монтажа неизолованих флекси црева за повезивање PV вентила и вентилатора са каналима и спољним противкишним решеткама, следећих димензија:\n\n\n\n\n\n\n\n\n\n\n\n\n\n\n\n\n\n\n\n\n\n\n\n"]
[null,"Ø160 мм\n\n\n\n\n\n\n\n\n\n\n\n\n\n\n\n\n\n\n\n\n\n\n\n\n","м",50,"X",null,"=",{"$f":"D760*F760","v":{"v":0,"d":"0.00"}}]
[null,"Ø200 мм\n\n\n\n\n\n\n\n\n\n\n\n\n\n\n\n\n\n\n\n\n\n\n\n\n","м",10,"X",null,"=",{"$f":"D761*F761","v":{"v":0,"d":"0.00"}}]
[24,"Регулација протока на каналима и предаја извештаја о регулацији\n\n\n\n\n\n\n\n\n\n\n\n\n\n\n\n\n\n\n\n\n\n\n\n\n","паушално",{"$nulls":3},"="]
[null,"ГРАЂЕВИНСКИ И ПП РАДОВИ У МАШИНСКИМ ПРОСТОРИЈАМА\n\n\n"]
[1,"Пробијање отвора у зидовима машинске просторије за пролаз цеви са затварањем и крпљењем истих након монтаже цеви.\n\n\n\n\n\n\n\n\n\n\n\n\n\n\n\n\n\n\n\n\n\n\n\n\n","паушално",1,"X",null,"=",{"$f":"D764*F764","v":{"v":0,"d":"0.00"}}]
[2,"Непредвидени грађевински и грађевинско-занатски радови у машинској просторији (разна штемовања,рушења,малтерисања...)\n\n\n\n\n\n\n\n\n\n\n\n\n\n\n\n\n\n\n\n\n\n\n\n\n","паушално",1,"X",null,"=",{"$f":"D765*F765","v":{"v":0,"d":"0.00"}}]
["УКУПНО МАШИНСКЕ ИНСТАЛАЦИЈЕ",{"$nulls":6},{"$f":"SUM(H628:H765)","v":{"v":0,"d":"0.00"}}]
[]
[null,"РЕКАПИТУЛАЦИЈА "]
[1,"Припремно-завршни радови",null,null,{"$f":"H27","v":0}]
[2,"Радови на рушењу и демонтажи",null,null,{"$f":"H94","v":0}]
[3,"Земљани радови",null,null,{"$f":"H107","v":0}]
[4,"Бетонски радови",null,null,{"$f":"H123","v":0}]
[5,"Армирачки радови",null,null,{"$f":"H127","v":0}]
[6,"Зидарски радови",null,null,{"$f":"H139","v":0}]
[7,"Изолатерски радови",null,null,{"$f":"H149","v":0}]
[8,"Монтажни радови суве градње - гипсарски радови",null,null,{"$f":"H164","v":{"v":0,"d":"0.0"}}]
[9,"Тесарски радови",null,null,{"$f":"H172","v":0}]
[10,"Браварски радови",null,null,{"$f":"H178","v":0}]
[11,"Кровопокривачки радови",null,null,{"$f":"H182","v":0}]
[12,"Фасадерски радови",null,null,{"$f":"H186","v":0}]
[13,"Молерско-фарбарски радови",null,null,{"$f":"H194","v":0}]
[14,"Лимарски радови",null,null,{"$f":"H201","v":0}]
[15,"Подополагачки радови",null,null,{"$f":"H213","v":0}]
[16,"Керамичарски радови",null,null,{"$f":"H219","v":0}]
[17,"Грађевинска столарија",null,null,{"$f":"H253","v":0}]
[18,"Столарски радови",null,null,{"$f":"H258","v":0}]
[19,"Остали грађевинско-занатски радови",null,null,{"$f":"H278","v":0}]
[20,"Радови на опремању ",null,null,{"$f":"H289","v":0}]
[21,"Водовод и канализација ",null,null,{"$f":"H377","v":0}]
[22,"Eлектроенергетске инсталације - јака струја",null,null,{"$f":"H568","v":{"v":0,"d":"0.0"}}]
[23,"Eлектроенергетске инсталације - слаба струја",null,null,{"$f":"H625","v":{"v":0,"d":"0.0"}}]
[24,"Машинске инсталације",null,null,{"$f":"H766","v":{"v":0,"d":"0.0"}}]
["УКУПНО СВИ РАДОВИ:",{"$nulls":3},{"$f":"SUM(E769:E792)","v":0}]